Workbook

Sheet "actual" curve
A1: LogPearson typeIII frequency curve | R1: exp prob | S1: Zp | T1: Kp,g | U1: flow | V1: logflow | W1: =INDEX($R3:$R206,MATCH(MAX(W3:W205),W3:W205,0)) -> 0.88 | X1: =INDEX($R3:$R206,MATCH(MAX(X3:X205),X3:X205,0)) -> 0.505
W2: flow | X2: logflow
B3: mean | C3: 3.6 | Q3: =1-R3 -> 0.0005 | R3: 0.9995 | S3: =NORMSINV(1-R3) -> -3.290526731 | T3: =2/skew*(((S3-skew/6)*skew/6+1)^3-1) -> -3.29036294 | U3: =10^(mean+stdev*T3) -> 90.11944945 | V3: =LOG(U3) -> 1.95481853 | W3: =-(R4-R3)/(U4-U3) -> 2.139504569e-05 | X3: =-(R4-R3)/(V4-V3) -> 0.00499318118
B4: standard deviation | C4: 0.5 | Q4: =1-R4 -> 0.001 | R4: 0.999 | S4: -3.090232306 | T4: -3.090089815 | U4: 113.4893458 | V4: 2.054955093 | W4: =-(R5-R4)/(U5-U4) -> 3.186630357e-05 | X4: =-(R5-R4)/(V5-V4) -> 0.009431761277
B5: skew | C5: 0.0001 | Q5: 0.002 | R5: 0.998 | S5: -2.878161739 | T5: -2.878040343 | U5: 144.8704565 | V5: 2.160979829 | W5: =-(R6-R5)/(U6-U5) -> 4.974443092e-05 | X5: =-(R6-R5)/(V6-V5) -> 0.01984750802
Q6: 0.005 | R6: 0.995 | S6: -2.575829304 | T6: -2.575735389 | U6: 205.178715 | V6: 2.312132306 | W6: =-(R7-R6)/(U7-U6) -> 7.324743257e-05 | X6: =-(R7-R6)/(V7-V6) -> 0.04008641888
A7: exc prob | B7: Zp | C7: Kp,g | D7: flow | Q7: 0.01 | R7: 0.99 | S7: -2.326347874 | T7: -2.326274342 | U7: 273.4404933 | V7: 2.436862829 | W7: =-(R8-R7)/(U8-U7) -> 9.278255611e-05 | X7: =-(R8-R7)/(V8-V7) -> 0.06400172588
A8: 0.99 | B8: =NORMSINV(1-A8) -> -2.326347874 | C8: =2/skew*(((B8-skew/6)*skew/6+1)^3-1) -> -2.326274342 | D8: =10^(mean+stdev*C8) -> 273.4404933 | Q8: 0.015 | R8: 0.985 | S8: -2.170090378 | T8: -2.170028556 | U8: 327.3299334 | V8: 2.514985722 | W8: 0.0001065827089 | X8: 0.08595992708
A9: 0.9 | B9: =NORMSINV(1-A9) -> -1.281551566 | C9: -1.281540859 | D9: 910.3943853 | Q9: 0.02 | R9: 0.98 | S9: -2.053748911 | T9: -2.053695279 | U9: 374.241858 | V9: 2.573152361 | W9: 0.000117185097 | X9: 0.1066340766
A10: 0.75 | B10: -0.6744897502 | C10: -0.6744988342 | D10: 1831.262419 | Q10: 0.025 | R10: 0.975 | S10: -1.959963985 | T10: -1.959916626 | U10: 416.9093996 | V10: 2.620041687 | W10: 0.0001256799734 | X10: 0.1263179565
A11: 0.5 | B11: 0 | C11: -1.666666805e-05 | D11: 3980.995317 | Q11: 0.03 | R11: 0.97 | S11: -1.880793608 | T11: -1.880751318 | U11: 456.6929853 | V11: 2.659624341 | W11: 0.0001326604891 | X11: 0.1451827721
A12: 0.25 | B12: 0.6744897502 | C12: 0.6744806655 | D12: 8654.467129 | Q12: 0.035 | R12: 0.965 | S12: -1.811910673 | T12: -1.811872622 | U12: 494.3831825 | V12: 2.694063689 | W12: 0.0001384921976 | X12: 0.1633427335
A13: 0.1 | B13: 1.281551566 | C13: 1.281562271 | D13: 17409.29304 | Q13: 0.04 | R13: 0.96 | S13: -1.750686071 | T13: -1.750651656 | U13: 530.4862995 | V13: 2.724674172 | W13: 0.0001434190245 | X13: 0.1808802829
A14: 0.05 | B14: 1.644853627 | C14: 1.644882052 | D14: 26450.93487 | Q14: 0.045 | R14: 0.955 | S14: -1.69539771 | T14: -1.69536647 | U14: 565.3491778 | V14: 2.752316765 | W14: 0.0001476130711 | X14: 0.1978581088
A15: 0.02 | B15: 2.053748911 | C15: 2.053802542 | D15: 42354.66693 | Q15: 0.05 | R15: 0.95 | S15: -1.644853627 | T15: -1.644825201 | U15: 599.2215169 | V15: 2.7775874 | W15: 0.000151200913 | X15: 0.2143256784
A16: 0.01 | B16: 2.326347874 | C16: 2.326421405 | D16: 57970.98808 | E16: =LOG(Q100cfs) -> 4.763210703 | Q16: 0.055 | R16: 0.945 | S16: -1.59819314 | T16: -1.598167236 | U16: 632.2901003 | V16: 2.800916382 | W16: 0.0001542786932 | X16: 0.2303231286
A17: 0.005 | B17: 2.575829304 | C17: 2.575923219 | D17: 77261.22848 | Q17: 0.06 | R17: 0.94 | S17: -1.554773595 | T17: -1.554749972 | U17: 664.6989825 | V17: 2.822625014 | W17: 0.0001569213491 | X17: 0.245883742
A18: 0.002 | B18: 2.878161739 | C18: 2.878283137 | D18: 109431.3025 | Q18: 0.065 | R18: 0.935 | S18: -1.514101888 | T18: -1.514080345 | U18: 696.5620784 | V18: 2.842959827 | W18: 0.000159188538 | X18: 0.2610356041
Q19: 0.07 | R19: 0.93 | S19: -1.475791028 | T19: -1.475771395 | U19: 727.971375 | V19: 2.862114302 | W19: 0.0001611286003 | X19: 0.2758027586
Q20: 0.075 | R20: 0.925 | S20: -1.439531471 | T20: -1.4395136 | U20: 759.0024892 | V20: 2.8802432 | W20: 0.0001627812977 | X20: 0.2902060377
A21: This is the frequency curve from which statistical | Q21: 0.08 | R21: 0.92 | S21: -1.40507156 | T21: -1.405055323 | U21: 789.7185486 | V21: 2.897472339 | W21: 0.0001641797604 | X21: 0.304263678
A22: experiments will be conducted | Q22: 0.085 | R22: 0.915 | S22: -1.372203809 | T22: -1.372189093 | U22: 820.1729724 | V22: 2.913905454 | W22: 0.0001653519038 | X22: 0.3179917845
Q23: 0.09 | R23: 0.91 | S23: -1.340755034 | T23: -1.340741739 | U23: 850.4115114 | V23: 2.92962913 | W23: 0.0001663214817 | X23: 0.3314046897
Q24: 0.095 | R24: 0.905 | S24: -1.310579112 | T24: -1.310567151 | U24: 880.4737736 | V24: 2.944716424 | W24: 0.0001671088834 | X24: 0.3445152348
Q25: 0.1 | R25: 0.9 | S25: -1.281551566 | T25: -1.281540859 | U25: 910.3943853 | V25: 2.959229571 | W25: 0.0001677317464 | X25: 0.3573349935
Q26: 0.105 | R26: 0.895 | S26: -1.253565438 | T26: -1.253555914 | U26: 940.2038883 | V26: 2.973222043 | W26: 0.0001682054341 | X26: 0.3698744531
Q27: 0.11 | R27: 0.89 | S27: -1.22652812 | T27: -1.226519713 | U27: 969.929444 | V27: 2.986740143 | W27: 0.000168543413 | X27: 0.3821431609
Q28: 0.115 | R28: 0.885 | S28: -1.200358858 | T28: -1.20035151 | U28: 999.5953912 | V28: 2.999824245 | W28: 0.0001687575546 | X28: 0.3941498466
Q29: 0.12 | R29: 0.88 | S29: -1.174986792 | T29: -1.174980448 | U29: 1029.223694 | V29: 3.012509776 | W29: 0.0001688583785 | X29: 0.4059025233
Q30: 0.125 | R30: 0.875 | S30: -1.15034938 | T30: -1.150343991 | U30: 1058.834307 | V30: 3.024828004 | W30: 0.0001688552501 | X30: 0.4174085718
Q31: 0.13 | R31: 0.87 | S31: -1.126391129 | T31: -1.126386649 | U31: 1088.445468 | V31: 3.036806675 | W31: 0.0001687565444 | X31: 0.4286748126
Q32: 0.135 | R32: 0.865 | S32: -1.103062556 | T32: -1.103058943 | U32: 1118.073948 | V32: 3.048470528 | W32: 0.0001685697802 | X32: 0.4397075675
Q33: 0.14 | R33: 0.86 | S33: -1.080319341 | T33: -1.080316555 | U33: 1147.735255 | V33: 3.059841722 | W33: 0.0001683017328 | X33: 0.4505127109
H34: =B8 -> -2.326347874 | I34: =B8 -> -2.326347874 | J34: 100 | K34: 1000000 | Q34: 0.145 | R34: 0.855 | S34: -1.058121618 | T34: -1.058119624 | U34: 1177.443803 | V34: 3.070940188 | W34: 0.0001679585285 | X34: 0.461095716
H35: -1.281551566 | I35: -1.281551566 | J35: 100 | K35: 1000000 | Q35: 0.15 | R35: 0.85 | S35: -1.036433389 | T35: -1.036432152 | U35: 1207.213056 | V35: 3.081783924 | W35: 0.000167545725 | X35: 0.4714616937
H36: -0.6744897502 | I36: -0.6744897502 | J36: 100 | K36: 1000000 | Q36: 0.155 | R36: 0.845 | S36: -1.015222033 | T36: -1.015221521 | U36: 1237.055656 | V36: 3.092389239 | W36: 0.0001670683783 | X36: 0.4816154264
H37: 0 | I37: 0 | J37: 100 | K37: 1000000 | Q37: 0.16 | R37: 0.84 | S37: -0.9944578832 | T37: -0.994458067 | U37: 1266.983522 | V37: 3.102770967 | W37: 0.0001665311015 | X37: 0.4915613982
H38: 0.6744897502 | I38: 0.6744897502 | J38: 100 | K38: 1000000 | Q38: 0.165 | R38: 0.835 | S38: -0.9741138771 | T38: -0.9741147283 | U38: 1297.007943 | V38: 3.112942636 | W38: 0.0001659381143 | X38: 0.501303821
H39: 1.281551566 | I39: 1.281551566 | J39: 100 | K39: 1000000 | Q39: 0.17 | R39: 0.83 | S39: -0.9541652531 | T39: -0.9541667455 | U39: 1327.139658 | V39: 3.122916627 | W39: 0.000165293286 | X39: 0.5108466582
H40: 1.644853627 | I40: 1.644853627 | J40: 100 | K40: 1000000 | Q40: 0.175 | R40: 0.825 | S40: -0.9345892911 | T40: -0.9345913997 | U40: 1357.388921 | V40: 3.1327043 | W40: 0.0001646001728 | X40: 0.5201936444
H41: 2.053748911 | I41: 2.053748911 | J41: 100 | K41: 1000000 | Q41: 0.18 | R41: 0.82 | S41: -0.9153650878 | T41: -0.9153677892 | U41: 1387.76556 | V41: 3.142316105 | W41: 0.0001638620502 | X41: 0.5293483046
H42: 2.326347874 | I42: 2.326347874 | J42: 100 | K42: 1000000 | Q42: 0.185 | R42: 0.815 | S42: -0.896473364 | T42: -0.8964766358 | U42: 1418.279031 | V42: 3.151761682 | W42: 0.0001630819415 | X42: 0.5383139702
H43: 2.575829304 | I43: 2.575829304 | J43: 100 | K43: 1000000 | Q43: 0.19 | R43: 0.81 | S43: -0.8778962951 | T43: -0.8779001163 | U43: 1448.938465 | V43: 3.161049942 | W43: 0.0001622626422 | X43: 0.5470937933
H44: 2.878161739 | I44: 2.878161739 | J44: 100 | K44: 1000000 | Q44: 0.195 | R44: 0.805 | S44: -0.8596173642 | T44: -0.8596217148 | U44: 1479.752705 | V44: 3.170189143 | W44: 0.0001614067425 | X44: 0.5556907613
Q45: 0.2 | R45: 0.8 | S45: -0.8416212336 | T45: -0.8416260944 | U45: 1510.730345 | V45: 3.179186953 | W45: 0.0001605166458 | X45: 0.5641077062
Q46: 0.205 | R46: 0.795 | S46: -0.8238936303 | T46: -0.8238989833 | U46: 1541.879763 | V46: 3.188050508 | W46: 0.0001595945865 | X46: 0.5723473179
Q47: 0.21 | R47: 0.79 | S47: -0.806421247 | T47: -0.8064270747 | U47: 1573.209146 | V47: 3.196786463 | W47: 0.0001586426448 | X47: 0.5804121522
Q48: 0.215 | R48: 0.785 | S48: -0.7891916527 | T48: -0.7891979385 | U48: 1604.726523 | V48: 3.205401031 | W48: 0.0001576627603 | X48: 0.5883046409
Q49: 0.22 | R49: 0.78 | S49: -0.7721932142 | T49: -0.7721999424 | U49: 1636.439782 | V49: 3.213900029 | W49: 0.0001566567442 | X49: 0.5960270987
Q50: 0.225 | R50: 0.775 | S50: -0.7554150264 | T50: -0.7554221818 | U50: 1668.356697 | V50: 3.222288909 | W50: 0.0001556262896 | X50: 0.6035817307
Q51: 0.23 | R51: 0.77 | S51: -0.7388468492 | T51: -0.7388544172 | U51: 1700.484945 | V51: 3.230572791 | W51: 0.0001545729821 | X51: 0.6109706399
Q52: 0.235 | R52: 0.765 | S52: -0.7224790519 | T52: -0.7224870186 | U52: 1732.832125 | V52: 3.238756491 | W52: 0.0001534983076 | X52: 0.6181958325
Q53: 0.24 | R53: 0.76 | S53: -0.7063025628 | T53: -0.7063109148 | U53: 1765.405774 | V53: 3.246844543 | W53: 0.0001524036609 | X53: 0.6252592241
Q54: 0.245 | R54: 0.755 | S54: -0.6903088239 | T54: -0.6903175481 | U54: 1798.213385 | V54: 3.254841226 | W54: 0.0001512903521 | X54: 0.6321626438
Q55: 0.25 | R55: 0.75 | S55: -0.6744897502 | T55: -0.6744988342 | U55: 1831.262419 | V55: 3.262750583 | W55: 0.0001501596139 | X55: 0.6389078405
Q56: 0.255 | R56: 0.745 | S56: -0.6588376927 | T56: -0.6588471246 | U56: 1864.56032 | V56: 3.270576438 | W56: 0.0001490126066 | X56: 0.6454964859
Q57: 0.26 | R57: 0.74 | S57: -0.6433454054 | T57: -0.6433551735 | U57: 1898.114528 | V57: 3.278322413 | W57: 0.000147850424 | X57: 0.6519301798
Q58: 0.265 | R58: 0.735 | S58: -0.6280060144 | T58: -0.6280161076 | U58: 1931.93249 | V58: 3.285991946 | W58: 0.0001466740979 | X58: 0.6582104517
Q59: 0.27 | R59: 0.73 | S59: -0.612812991 | T59: -0.6128233984 | U59: 1966.021672 | V59: 3.293588301 | W59: 0.0001454846027 | X59: 0.6643387682
Q60: 0.275 | R60: 0.725 | S60: -0.597760126 | T60: -0.5977708371 | U60: 2000.38957 | V60: 3.301114581 | W60: 0.0001442828592 | X60: 0.6703165304
Q61: 0.28 | R61: 0.72 | S61: -0.5828415073 | T61: -0.5828525119 | U61: 2035.043721 | V61: 3.308573744 | W61: 0.0001430697387 | X61: 0.6761450836
Q62: 0.285 | R62: 0.715 | S62: -0.5680514983 | T62: -0.5680627867 | U62: 2069.991712 | V62: 3.315968607 | W62: 0.0001418460658 | X62: 0.6818257138
Q63: 0.29 | R63: 0.71 | S63: -0.5533847196 | T63: -0.553396282 | U63: 2105.241192 | V63: 3.323301859 | W63: 0.0001406126221 | X63: 0.687359655
Q64: 0.295 | R64: 0.705 | S64: -0.5388360303 | T64: -0.5388478576 | U64: 2140.799877 | V64: 3.330576071 | W64: 0.0001393701487 | X64: 0.6927480894
Q65: 0.3 | R65: 0.7 | S65: -0.5244005127 | T65: -0.5244125958 | U65: 2176.675566 | V65: 3.337793702 | W65: 0.0001381193486 | X65: 0.6979921486
Q66: 0.305 | R66: 0.695 | S66: -0.510073457 | T66: -0.5100857871 | U66: 2212.876142 | V66: 3.344957106 | W66: 0.0001368608898 | X66: 0.7030929193
Q67: 0.31 | R67: 0.69 | S67: -0.4958503473 | T67: =2/skew*(((S67-skew/6)*skew/6+1)^3-1) -> -0.495862916 | U67: =10^(mean+stdev*T67) -> 2249.409588 | V67: 3.352068542 | W67: 0.0001355954069 | X67: 0.7080514405
Q68: =1-R68 -> 0.315 | R68: 0.685 | S68: -0.4817268496 | T68: -0.4817396483 | U68: 2286.283994 | V68: 3.359130176 | W68: 0.0001343235037 | X68: 0.7128687104
Q69: 0.32 | R69: 0.68 | S69: =NORMSINV(1-R69) -> -0.4676987991 | T69: -0.4677118198 | U69: 2323.507561 | V69: =LOG(U69) -> 3.36614409 | W69: =-(R70-R69)/(U70-U69) -> 0.0001330457542 | X69: =-(R70-R69)/(V70-V69) -> 0.7175456828
Q70: 0.325 | R70: 0.675 | S70: -0.4537621902 | T70: -0.4537754249 | U70: 2361.088618 | V70: 3.373112288 | W70: 0.0001317627058 | X70: 0.7220832743
Q71: 0.33 | R71: 0.67 | S71: -0.4399131657 | T71: -0.4399266067 | U71: 2399.035622 | V71: 3.380036697 | W71: 0.0001304748793 | X71: 0.7264823602
Q72: 0.335 | R72: 0.665 | S72: -0.4261480078 | T72: -0.4261616476 | U72: 2437.357175 | V72: 3.386919176 | W72: 0.0001291827719 | X72: 0.7307437802
Q73: 0.34 | R73: 0.66 | S73: -0.4124631294 | T73: -0.4124769605 | U73: 2476.062027 | V73: 3.39376152 | W73: 0.0001278868576 | X73: 0.734868338
Q74: 0.345 | R74: 0.655 | S74: -0.3988550656 | T74: -0.3988690807 | U74: 2515.159085 | V74: 3.40056546 | W74: 0.0001265875889 | X74: 0.7388568017
Q75: 0.35 | R75: 0.65 | S75: -0.3853204664 | T75: -0.3853346583 | U75: 2554.657428 | V75: 3.407332671 | W75: 0.0001252853981 | X75: 0.7427099065
Q76: 0.355 | R76: 0.645 | S76: -0.3718560894 | T76: -0.3718704512 | U76: 2594.566309 | V76: 3.414064774 | W76: 0.0001239806983 | X76: 0.746428356
Q77: 0.36 | R77: 0.64 | S77: -0.3584587933 | T77: -0.3584733182 | U77: 2634.895167 | V77: 3.420763341 | W77: 0.0001226738844 | X77: 0.7500128202
Q78: 0.365 | R78: 0.635 | S78: -0.3451255315 | T78: -0.3451402128 | U78: 2675.653639 | V78: 3.427429894 | W78: 0.0001213653343 | X78: 0.7534639406
Q79: 0.37 | R79: 0.63 | S79: -0.3318533464 | T79: -0.3318681775 | U79: 2716.851564 | V79: 3.434065911 | W79: 0.0001200554098 | X79: 0.7567823283
Q80: 0.375 | R80: 0.625 | S80: -0.318639364 | T80: -0.3186543383 | U80: 2758.499 | V80: 3.440672831 | W80: 0.0001187444573 | X80: 0.7599685658
Q81: 0.38 | R81: 0.62 | S81: -0.3054807881 | T81: -0.3054958993 | U81: 2800.606229 | V81: 3.44725205 | W81: 0.0001174328086 | X81: 0.7630232072
Q82: 0.385 | R82: 0.615 | S82: -0.2923748962 | T82: -0.292390138 | U82: 2843.183768 | V82: 3.453804931 | W82: 0.0001161207821 | X82: 0.76594678
Q83: 0.39 | R83: 0.61 | S83: -0.2793190344 | T83: -0.2793344006 | U83: 2886.242382 | V83: 3.4603328 | W83: 0.0001148086829 | X83: 0.7687397844
Q84: 0.395 | R84: 0.605 | S84: -0.2663106132 | T84: -0.2663260977 | U84: 2929.793095 | V84: 3.466836951 | W84: 0.0001134968041 | X84: 0.7714026961
Q85: 0.4 | R85: 0.6 | S85: -0.2533471031 | T85: -0.2533626999 | U85: 2973.847199 | V85: 3.47331865 | W85: 0.0001121854265 | X85: 0.7739359635
Q86: 0.405 | R86: 0.595 | S86: -0.2404260311 | T86: -0.2404417343 | U86: 3018.416268 | V86: 3.479779133 | W86: 0.0001108748206 | X86: 0.7763400115
Q87: 0.41 | R87: 0.59 | S87: -0.2275449766 | T87: -0.2275607802 | U87: 3063.51217 | V87: 3.48621961 | W87: 0.0001095652457 | X87: 0.7786152407
Q88: 0.415 | R88: 0.585 | S88: -0.214701568 | T88: -0.2147174663 | U88: 3109.147078 | V88: 3.492641267 | W88: 0.0001082569516 | X88: 0.7807620287
Q89: 0.42 | R89: 0.58 | S89: -0.2018934791 | T89: -0.2019094663 | U89: 3155.333489 | V89: 3.499045267 | W89: 0.0001069501781 | X89: 0.7827807272
Q90: 0.425 | R90: 0.575 | S90: -0.1891184263 | T90: -0.1891344967 | U90: 3202.084229 | V90: 3.505432752 | W90: 0.0001056451563 | X90: 0.7846716678
Q91: 0.43 | R91: 0.57 | S91: -0.1763741648 | T91: -0.1763903129 | U91: 3249.412476 | V91: 3.511804844 | W91: 0.0001043421086 | X91: 0.7864351588
Q92: 0.435 | R92: 0.565 | S92: -0.1636584862 | T92: -0.1636747064 | U92: 3297.331768 | V92: 3.518162647 | W92: 0.0001030412493 | X92: 0.788071486
Q93: 0.44 | R93: 0.56 | S93: -0.1509692155 | T93: -0.1509855022 | U93: 3345.856024 | V93: 3.524507249 | W93: 0.0001017427847 | X93: 0.7895809133
Q94: 0.445 | R94: 0.555 | S94: -0.138304208 | T94: -0.1383205557 | U94: 3394.999558 | V94: 3.530839722 | W94: 0.0001004469139 | X94: 0.7909636844
Q95: 0.45 | R95: 0.55 | S95: -0.1256613469 | T95: -0.1256777503 | U95: 3444.777096 | V95: 3.537161125 | W95: 9.915382877e-05 | X95: 0.79222002
Q96: 0.455 | R96: 0.545 | S96: -0.1130385406 | T96: -0.1130549943 | U96: 3495.203792 | V96: 3.543472503 | W96: 9.786371463e-05 | X96: 0.7933501213
Q97: 0.46 | R97: 0.54 | S97: -0.1004337205 | T97: -0.100450219 | U97: 3546.295251 | V97: 3.54977489 | W97: 9.657675037e-05 | X97: 0.7943541691
Q98: 0.465 | R98: 0.535 | S98: -0.0878448379 | T98: -0.0878613759 | U98: 3598.067546 | V98: 3.556069312 | W98: 9.529310851e-05 | X98: 0.795232321
Q99: 0.47 | R99: 0.53 | S99: -0.0752698621 | T99: -0.0752864343 | U99: 3650.537238 | V99: 3.562356783 | W99: 9.40129562e-05 | X99: 0.7959847184
Q100: 0.475 | R100: 0.525 | S100: -0.06270677794 | T100: -0.06272337904 | U100: 3703.721396 | V100: 3.56863831 | W100: 9.273645463e-05 | X100: 0.7966114787
Q101: 0.48 | R101: 0.52 | S101: -0.05015358346 | T101: -0.05017020818 | U101: 3757.637626 | V101: 3.574914896 | W101: 9.146375991e-05 | X101: 0.7971127014
Q102: 0.485 | R102: 0.515 | S102: -0.03760828766 | T102: -0.03762493073 | U102: 3812.304087 | V102: 3.581187535 | W102: 9.019502324e-05 | X102: 0.7974884668
Q103: 0.49 | R103: 0.51 | S103: -0.02506890826 | T103: -0.02508556444 | U103: 3867.739518 | V103: 3.587457218 | W103: 8.893039066e-05 | X103: 0.7977388326
Q104: 0.495 | R104: 0.505 | S104: -0.01253346951 | T104: -0.01255013355 | U104: 3923.963267 | V104: 3.593724933 | W104: 8.767000386e-05 | X104: 0.7978638387
Q105: 0.5 | R105: 0.5 | S105: 0 | T105: -1.666666805e-05 | U105: 3980.995317 | V105: 3.599991667 | W105: 8.641400014e-05 | X105: 0.7978635049
Q106: 0.505 | R106: 0.495 | S106: 0.01253346951 | T106: 0.01251680546 | U106: 4038.856311 | V106: 3.606258403 | W106: 8.51625128e-05 | X106: 0.7977378333
Q107: 0.51 | R107: 0.49 | S107: 0.02506890826 | T107: 0.02505225205 | U107: 4097.56759 | V107: 3.612526126 | W107: 8.391567055e-05 | X107: 0.7974868002
Q108: 0.515 | R108: 0.485 | S108: 0.03760828766 | T108: 0.03759164454 | U108: 4157.151217 | V108: 3.618795822 | W108: 8.267359914e-05 | X108: 0.7971103701
Q109: 0.52 | R109: 0.48 | S109: 0.05015358346 | T109: 0.05013695869 | U109: 4217.630016 | V109: 3.625068479 | W109: 8.143642006e-05 | X109: 0.7966084816
Q110: 0.525 | R110: 0.475 | S110: 0.06270677794 | T110: 0.06269017677 | U110: 4279.027607 | V110: 3.631345088 | W110: 8.020425174e-05 | X110: 0.7959810571
Q111: 0.53 | R111: 0.47 | S111: 0.0752698621 | T111: 0.07525328982 | U111: 4341.368441 | V111: 3.637626645 | W111: 7.897720915e-05 | X111: 0.7952279974
Q112: 0.535 | R112: 0.465 | S112: 0.0878448379 | T112: 0.08782829979 | U112: 4404.677845 | V112: 3.64391415 | W112: 7.775540415e-05 | X112: 0.7943491833
Q113: 0.54 | R113: 0.46 | S113: 0.1004337205 | T113: 0.1004172219 | U113: 4468.982057 | V113: 3.650208611 | W113: 7.65389457e-05 | X113: 0.7933444764
Q114: 0.545 | R114: 0.455 | S114: 0.1130385406 | T114: 0.1130220869 | U114: 4534.308277 | V114: 3.656511043 | W114: 7.532793975e-05 | X114: 0.7922137163
Q115: 0.55 | R115: 0.45 | S115: 0.1256613469 | T115: 0.1256449433 | U115: 4600.68471 | V115: 3.662822472 | W115: 7.412248988e-05 | X115: 0.7909567249
Q116: 0.555 | R116: 0.445 | S116: 0.138304208 | T116: 0.13828786 | U116: 4668.14062 | V116: 3.66914393 | W116: 7.292269672e-05 | X116: 0.7895732999
Q117: 0.56 | R117: 0.44 | S117: 0.1509692155 | T117: 0.1509529286 | U117: 4736.706379 | V117: 3.675476464 | W117: 7.172865878e-05 | X117: 0.7880632215
Q118: 0.565 | R118: 0.435 | S118: 0.1636584862 | T118: 0.1636422659 | U118: 4806.413523 | V118: 3.681821133 | W118: 7.054047195e-05 | X118: 0.7864262448
Q119: 0.57 | R119: 0.43 | S119: 0.1763741648 | T119: 0.1763580165 | U119: 4877.294818 | V119: 3.688179008 | W119: 6.935823028e-05 | X119: 0.784662108
Q120: 0.575 | R120: 0.425 | S120: 0.1891184263 | T120: 0.1891023556 | U120: 4949.384316 | V120: 3.694551178 | W120: 6.81820255e-05 | X120: 0.7827705245
Q121: 0.58 | R121: 0.42 | S121: 0.2018934791 | T121: 0.2018774917 | U121: 5022.717427 | V121: 3.700938746 | W121: 6.701194746e-05 | X121: 0.7807511868
Q122: 0.585 | R122: 0.415 | S122: 0.214701568 | T122: 0.2146856695 | U122: 5097.330987 | V122: 3.707342835 | W122: 6.584808396e-05 | X122: 0.7786037627
Q123: 0.59 | R123: 0.41 | S123: 0.2275449766 | T123: 0.2275291728 | U123: 5173.263341 | V123: 3.713764586 | W123: 6.469052146e-05 | X123: 0.7763279021
Q124: 0.595 | R124: 0.405 | S124: 0.2404260311 | T124: 0.2404103278 | U124: 5250.554417 | V124: 3.720205164 | W124: 6.353934422e-05 | X124: 0.7739232251
Q125: 0.6 | R125: 0.4 | S125: 0.2533471031 | T125: 0.2533315061 | U125: 5329.245818 | V125: 3.726665753 | W125: 6.239463544e-05 | X125: 0.7713893343
Q126: 0.605 | R126: 0.395 | S126: 0.2663106132 | T126: 0.2662951284 | U126: 5409.380912 | V126: 3.733147564 | W126: 6.125647646e-05 | X126: 0.7687258028
Q127: 0.61 | R127: 0.39 | S127: 0.2793190344 | T127: 0.2793036679 | U127: 5491.004934 | V127: 3.739651834 | W127: 6.01249476e-05 | X127: 0.7659321838
Q128: 0.615 | R128: 0.385 | S128: 0.2923748962 | T128: 0.2923596541 | U128: 5574.16509 | V128: 3.746179827 | W128: 5.900012758e-05 | X128: 0.763008001
Q129: 0.62 | R129: 0.38 | S129: 0.3054807881 | T129: 0.3054656766 | U129: 5658.910669 | V129: 3.752732838 | W129: 5.788209425e-05 | X129: 0.759952756
Q130: 0.625 | R130: 0.375 | S130: 0.318639364 | T130: 0.3186243893 | U130: 5745.293169 | V130: 3.759312195 | W130: 5.677092391e-05 | X130: 0.7567659185
Q131: 0.63 | R131: 0.37 | S131: 0.3318533464 | T131: =2/skew*(((S131-skew/6)*skew/6+1)^3-1) -> 0.331838515 | U131: =10^(mean+stdev*T131) -> 5833.366423 | V131: 3.765919258 | W131: 5.566669245e-05 | X131: 0.7534469386
Q132: =1-R132 -> 0.635 | R132: 0.365 | S132: 0.3451255315 | T132: 0.3451108498 | U132: 5923.186741 | V132: 3.772555425 | W132: 5.456947424e-05 | X132: 0.7499952307
Q133: 0.64 | R133: 0.36 | S133: =NORMSINV(1-R133) -> 0.3584587933 | T133: 0.3584442679 | U133: 6014.813059 | V133: =LOG(U133) -> 3.779222134 | W133: =-(R134-R133)/(U134-U133) -> 5.34793431e-05 | X133: =-(R134-R133)/(V134-V133) -> 0.7464101848
Q134: 0.645 | R134: 0.355 | S134: 0.3718560894 | T134: 0.3718417271 | U134: 6108.307102 | V134: 3.785920864 | W134: 5.239637215e-05 | X134: 0.7426911613
Q135: 0.65 | R135: 0.35 | S135: 0.3853204664 | T135: 0.3853062741 | U135: 6203.733556 | V135: 3.792653137 | W135: 5.132063368e-05 | X135: 0.7388374892
Q136: 0.655 | R136: 0.345 | S136: 0.3988550656 | T136: 0.3988410502 | U136: 6301.160256 | V136: 3.799420525 | W136: 5.025219933e-05 | X136: 0.7348484647
Q137: 0.66 | R137: 0.34 | S137: 0.4124631294 | T137: 0.412449298 | U137: 6400.658389 | V137: 3.806224649 | W137: 4.919114032e-05 | X137: 0.7307233534
Q138: 0.665 | R138: 0.335 | S138: 0.4261480078 | T138: 0.4261343676 | U138: 6502.302709 | V138: 3.813067184 | W138: 4.81375275e-05 | X138: 0.7264613881
Q139: 0.67 | R139: 0.33 | S139: 0.4399131657 | T139: 0.4398997242 | U139: 6606.171774 | V139: 3.819949862 | W139: 4.709143115e-05 | X139: 0.7220617642
Q140: 0.675 | R140: 0.325 | S140: 0.4537621902 | T140: 0.4537489549 | U140: 6712.348204 | V140: 3.826874477 | W140: 4.605292145e-05 | X140: 0.7175236435
Q141: 0.68 | R141: 0.32 | S141: 0.4676987991 | T141: 0.4676857779 | U141: 6820.918949 | V141: 3.833842889 | W141: 4.502206831e-05 | X141: 0.7128461502
Q142: 0.685 | R142: 0.315 | S142: 0.4817268496 | T142: 0.4817140503 | U142: 6931.975597 | V142: 3.840857025 | W142: 4.399894145e-05 | X142: 0.7080283679
Q143: 0.69 | R143: 0.31 | S143: 0.4958503473 | T143: 0.4958377782 | U143: 7045.614694 | V143: 3.847918889 | W143: 4.298361079e-05 | X143: 0.7030693447
Q144: 0.695 | R144: 0.305 | S144: 0.510073457 | T144: 0.5100611263 | U144: 7161.9381 | V144: 3.855030563 | W144: 4.197614593e-05 | X144: 0.6979680806
Q145: 0.7 | R145: 0.3 | S145: 0.5244005127 | T145: 0.524388429 | U145: 7281.053371 | V145: 3.862194215 | W145: 4.097661694e-05 | X145: 0.6927235379
Q146: 0.705 | R146: 0.295 | S146: 0.5388360303 | T146: 0.5388242024 | U146: 7403.074182 | V146: 3.869412101 | W146: 3.998509393e-05 | X146: 0.6873346308
Q147: 0.71 | R147: 0.29 | S147: 0.5533847196 | T147: 0.5533731565 | U147: 7528.12078 | V147: 3.876686578 | W147: 3.900164735e-05 | X147: 0.6818002264
Q148: 0.715 | R148: 0.285 | S148: 0.5680514983 | T148: 0.5680402094 | U148: 7656.320493 | V148: 3.884020105 | W148: 3.802634818e-05 | X148: 0.6761191453
Q149: 0.72 | R149: 0.28 | S149: 0.5828415073 | T149: 0.582830502 | U149: 7787.808271 | V149: 3.891415251 | W149: 3.705926763e-05 | X149: 0.670290152
Q150: 0.725 | R150: 0.275 | S150: 0.597760126 | T150: 0.5977494143 | U150: 7922.727289 | V150: 3.898874707 | W150: 3.610047769e-05 | X150: 0.6643119604
Q151: 0.73 | R151: 0.27 | S151: 0.612812991 | T151: 0.612802583 | U151: 8061.229611 | V151: 3.906401292 | W151: 3.515005106e-05 | X151: 0.6581832283
Q152: 0.735 | R152: 0.265 | S152: 0.6280060144 | T152: 0.6279959206 | U152: 8203.476915 | V152: 3.91399796 | W152: 3.420806115e-05 | X152: 0.6519025529
Q153: 0.74 | R153: 0.26 | S153: 0.6433454054 | T153: 0.6433356366 | U153: 8349.641294 | V153: 3.921667818 | W153: 3.327458223e-05 | X153: 0.6454684681
Q154: 0.745 | R154: 0.255 | S154: 0.6588376927 | T154: 0.6588282602 | U154: 8499.906141 | V154: 3.92941413 | W154: 3.23496897e-05 | X154: 0.6388794452
Q155: 0.75 | R155: 0.25 | S155: 0.6744897502 | T155: 0.6744806655 | U155: 8654.467129 | V155: 3.937240333 | W155: 3.143346006e-05 | X155: 0.6321338854
Q156: 0.755 | R156: 0.245 | S156: 0.6903088239 | T156: 0.690300099 | U156: 8813.533295 | V156: 3.94515005 | W156: 3.052597103e-05 | X156: 0.6252301168
Q157: 0.76 | R157: 0.24 | S157: 0.7063025628 | T157: 0.7062942102 | U157: 8977.328249 | V157: 3.953147105 | W157: 2.96273017e-05 | X157: 0.6181663907
Q158: 0.765 | R158: 0.235 | S158: 0.7224790519 | T158: 0.7224710845 | U158: 9146.091508 | V158: 3.961235542 | W158: 2.873753281e-05 | X158: 0.61094088
Q159: 0.77 | R159: 0.23 | S159: 0.7388468492 | T159: 0.7388392804 | U159: 9320.08 | V159: 3.96941964 | W159: 2.785674659e-05 | X159: 0.6035516676
Q160: 0.775 | R160: 0.225 | S160: 0.7554150264 | T160: 0.7554078702 | U160: 9499.569733 | V160: 3.977703935 | W160: 2.698502727e-05 | X160: 0.5959967496
Q161: 0.78 | R161: 0.22 | S161: 0.7721932142 | T161: 0.7721864852 | U161: 9684.857669 | V161: 3.986093243 | W161: 2.612246096e-05 | X161: 0.5882740228
Q162: 0.785 | R162: 0.215 | S162: 0.7891916527 | T162: 0.789185366 | U162: 9876.263831 | V162: 3.994592683 | W162: 2.526913598e-05 | X162: 0.5803812826
Q163: 0.79 | R163: 0.21 | S163: 0.806421247 | T163: 0.8064154185 | U163: 10074.13367 | V163: 4.003207709 | W163: 2.442514302e-05 | X163: 0.572316215
Q164: 0.795 | R164: 0.205 | S164: 0.8238936303 | T164: 0.8238882766 | U164: 10278.84077 | V164: 4.011944138 | W164: 2.359057535e-05 | X164: 0.5640763897
Q165: 0.8 | R165: 0.2 | S165: 0.8416212336 | T165: 0.8416163719 | U165: 10490.78982 | V165: 4.020808186 | W165: 2.276552894e-05 | X165: 0.5556592501
Q166: 0.805 | R166: 0.195 | S166: 0.8596173642 | T166: 0.8596130129 | U166: 10710.42012 | V166: 4.029806506 | W166: 2.195010289e-05 | X166: 0.5470621084
Q167: 0.81 | R167: 0.19 | S167: 0.8778962951 | T167: 0.877892473 | U167: 10938.20948 | V167: 4.038946236 | W167: 2.114439951e-05 | X167: 0.5382821317
Q168: 0.815 | R168: 0.185 | S168: 0.896473364 | T168: 0.8964700913 | U168: 11174.67872 | V168: 4.048235046 | W168: 2.034852476e-05 | X168: 0.5293163359
Q169: 0.82 | R169: 0.18 | S169: 0.9153650878 | T169: 0.9153623856 | U169: 11420.39678 | V169: 4.057681193 | W169: 1.956258832e-05 | X169: 0.5201615674
Q170: 0.825 | R170: 0.175 | S170: 0.9345892911 | T170: 0.9345871816 | U170: 11675.98668 | V170: 4.067293591 | W170: 1.878670423e-05 | X170: 0.5108144972
Q171: 0.83 | R171: 0.17 | S171: 0.9541652531 | T171: 0.9541637599 | U171: 11942.13235 | V171: 4.07708188 | W171: 1.802099101e-05 | X171: 0.5012716005
Q172: 0.835 | R172: 0.165 | S172: 0.9741138771 | T172: 0.9741130249 | U172: 12219.58657 | V172: 4.087056512 | W172: 1.726557219e-05 | X172: 0.4915291433
Q173: 0.84 | R173: 0.16 | S173: 0.9944578832 | T173: 0.9944576985 | U173: 12509.18021 | V173: 4.097228849 | W173: 1.652057675e-05 | X173: 0.4815831645
Q174: 0.845 | R174: 0.155 | S174: 1.015222033 | T174: 1.015222544 | U174: 12811.83309 | V174: 4.107611272 | W174: 1.578613956e-05 | X174: 0.4714294521
Q175: 0.85 | R175: 0.15 | S175: 1.036433389 | T175: 1.036434626 | U175: 13128.56663 | V175: 4.118217313 | W175: 1.506240202e-05 | X175: 0.4610635242
Q176: 0.855 | R176: 0.145 | S176: 1.058121618 | T176: 1.058123611 | U176: 13460.519 | V176: 4.129061805 | W176: 1.434951259e-05 | X176: 0.4504805989
Q177: 0.86 | R177: 0.14 | S177: 1.080319341 | T177: 1.080322125 | U177: 13808.96289 | V177: 4.140161063 | W177: 1.364762758e-05 | X177: 0.4396755668
Q178: 0.865 | R178: 0.135 | S178: 1.103062556 | T178: 1.103066168 | U178: 14175.32693 | V178: 4.151533084 | W178: 1.295691188e-05 | X178: 0.4286429569
Q179: 0.87 | R179: 0.13 | S179: 1.126391129 | T179: 1.126395608 | U179: 14561.22135 | V179: 4.163197804 | W179: 1.227753987e-05 | X179: 0.4173768952
Q180: 0.875 | R180: 0.125 | S180: 1.15034938 | T180: 1.150354768 | U180: 14968.46907 | V180: 4.175177384 | W180: 1.160969643e-05 | X180: 0.4058710626
Q181: 0.88 | R181: 0.12 | S181: 1.174986792 | T181: 1.174993135 | U181: 15399.14355 | V181: 4.187496567 | W181: 1.095357812e-05 | X181: 0.3941186398
Q182: 0.885 | R182: 0.115 | S182: 1.200358858 | T182: 1.200366205 | U182: 15855.61539 | V182: 4.200183103 | W182: 1.030939453e-05 | X182: 0.382112248
Q183: 0.89 | R183: 0.11 | S183: 1.22652812 | T183: 1.226536526 | U183: 16340.60993 | V183: 4.213268263 | W183: 9.677369813e-06 | X183: 0.369843877
Q184: 0.895 | R184: 0.105 | S184: 1.253565438 | T184: 1.253574962 | U184: 16857.27924 | V184: 4.226787481 | W184: 9.057744471e-06 | X184: 0.3573047986
Q185: 0.9 | R185: 0.1 | S185: 1.281551566 | T185: 1.281562271 | U185: 17409.29304 | V185: 4.240781136 | W185: 8.450777565e-06 | X185: 0.3444854685
Q186: 0.905 | R186: 0.095 | S186: 1.310579112 | T186: 1.310591072 | U186: 18000.95457 | V186: 4.255295536 | W186: 7.856749148e-06 | X186: 0.3313754022
Q187: 0.91 | R187: 0.09 | S187: 1.340755034 | T187: 1.340768327 | U187: 18637.3501 | V187: 4.270384163 | W187: 7.27596331e-06 | X187: 0.3179630292
Q188: 0.915 | R188: 0.085 | S188: 1.372203809 | T188: 1.372218524 | U188: 19324.54433 | V188: 4.286109262 | W188: 6.708751778e-06 | X188: 0.3042355117
Q189: 0.92 | R189: 0.08 | S189: 1.40507156 | T189: 1.405087797 | U189: 20069.83946 | V189: 4.302543898 | W189: 6.15547832e-06 | X189: 0.2901785216
Q190: 0.925 | R190: 0.075 | S190: 1.439531471 | T190: 1.439549341 | U190: 20882.12402 | V190: 4.319774671 | W190: 5.616544131e-06 | X190: 0.2757759581
Q191: 0.93 | R191: 0.07 | S191: 1.475791028 | T191: 1.47581066 | U191: 21772.35115 | V191: 4.33790533 | W191: 5.092394573e-06 | X191: 0.2610095899
Q192: 0.935 | R192: 0.065 | S192: 1.514101888 | T192: 1.514123429 | U192: 22754.20751 | V192: 4.357061714 | W192: 4.583527674e-06 | X192: 0.2458585903
Q193: 0.94 | R193: 0.06 | S193: 1.554773595 | T193: 1.554797216 | U193: 23845.07035 | V193: 4.377398608 | W193: 4.090505035e-06 | X193: 0.2302989232
Q194: 0.945 | R194: 0.055 | S194: 1.59819314 | T194: 1.598219043 | U194: 25067.4133 | V194: 4.399109522 | W194: 3.613966074e-06 | X194: 0.2143025106
Q195: 0.95 | R195: 0.05 | S195: 1.644853627 | T195: =2/skew*(((S195-skew/6)*skew/6+1)^3-1) -> 1.644882052 | U195: =10^(mean+stdev*T195) -> 26450.93487 | V195: 4.422441026 | W195: 3.154647071e-06 | X195: 0.1978360802
Q196: =1-R196 -> 0.955 | R196: 0.045 | S196: 1.69539771 | T196: 1.695428949 | U196: 28035.89822 | V196: 4.447714475 | W196: 2.71340718e-06 | X196: 0.1808595065
Q197: 0.96 | R197: 0.04 | S197: =NORMSINV(1-R197) -> 1.750686071 | T197: 1.750720486 | U197: 29878.59991 | V197: =LOG(U197) -> 4.475360243 | W197: =-(R198-R197)/(U198-U197) -> 2.291265099e-06 | X197: =-(R198-R197)/(V198-V197) -> 0.1633233372
Q198: 0.965 | R198: 0.035 | S198: 1.811910673 | T198: 1.811948723 | U198: 32060.80048 | V198: 4.505974361 | W198: 1.889452458e-06 | X198: 0.1451649027
Q199: 0.97 | R199: 0.03 | S199: 1.880793608 | T199: 1.880835897 | U199: 34707.06976 | V199: 4.540417949 | W199: 1.509494882e-06 | X199: 0.1263017857
Q200: 0.975 | R200: 0.025 | S200: 1.959963985 | T200: 1.960011342 | U200: 38019.43608 | V200: 4.580005671 | W200: 1.153341119e-06 | X200: 0.1066198109
... 6 more rows

Sheet samples mean
A2: Population Statistics | D2: Sample of size N=10 | F2: mean = | G2: =AVERAGE(G5:G14) -> 3.59316336 | J2: Sample of size N=50 | L2: mean = | M2: =AVERAGE(M5:M54) -> 3.655438333 | Z2: Sample of size N=500 | AB2: mean = | AC2: =AVERAGE(AC5:AC504) -> 3.596201326
Q3: 10 | R3: 50
A4: mean | B4: =mean -> 3.6 | E4: U[0,1] | F4: Kpg | G4: log flow | H4: flow | K4: U[0,1] | L4: Kpg | M4: log flow | N4: flow | Q4: =G2 -> 3.59316336 | R4: =M2 -> 3.655438333 | AA4: U[0,1] | AB4: Kg | AC4: log flow | AD4: flow
A5: st.dev. | B5: =stdev -> 0.5 | D5: 1 | E5: =RAND() -> 0.8505164543 | F5: =2/skew*(((NORMSINV(E5)-skew/6)*skew/6+1)^3-1) -> 1.038652283 | G5: =mean+stdev*F5 -> 4.119326142 | H5: =10^G5 -> 13162.12896 | I5: 0.1 | J5: 1 | K5: =E5 -> 0.8505164543 | L5: =2/skew*(((NORMSINV(K5)-skew/6)*skew/6+1)^3-1) -> 1.038652283 | M5: =mean+stdev*L5 -> 4.119326142 | N5: =10^M5 -> 13162.12896 | O5: 0.2 | Z5: 1 | AA5: =K5 -> 0.8505164543 | AB5: =2/skew*(((NORMSINV(AA5)-skew/6)*skew/6+1)^3-1) -> 1.038652283 | AC5: =mean+stdev*AB5 -> 4.119326142 | AD5: =10^AC5 -> 13162.12896 | AE5: 0.3
A6: skew | B6: =skew -> 0.0001 | D6: 2 | E6: =RAND() -> 0.1717954355 | F6: -0.9470957377 | G6: 3.126452131 | H6: =10^G6 -> 1337.987731 | I6: 0.1 | J6: 2 | K6: =E6 -> 0.1717954355 | L6: -0.9470957377 | M6: 3.126452131 | N6: =10^M6 -> 1337.987731 | O6: 0.2 | Z6: 2 | AA6: =K6 -> 0.1717954355 | AB6: -0.9470957377 | AC6: 3.126452131 | AD6: =10^AC6 -> 1337.987731 | AE6: 0.3
D7: 3 | E7: 0.1760268329 | F7: -0.9306154672 | G7: 3.134692266 | H7: 1363.616559 | I7: 0.1 | J7: 3 | K7: 0.1760268329 | L7: -0.9306154672 | M7: 3.134692266 | N7: 1363.616559 | O7: 0.2 | Z7: 3 | AA7: 0.1760268329 | AB7: -0.9306154672 | AC7: 3.134692266 | AD7: 1363.616559 | AE7: 0.3
D8: 4 | E8: 0.4996357651 | F8: -0.0009296683157 | G8: 3.599535166 | H8: 3976.812964 | I8: 0.1 | J8: 4 | K8: 0.4996357651 | L8: -0.0009296683157 | M8: 3.599535166 | N8: 3976.812964 | O8: 0.2 | Z8: 4 | AA8: 0.4996357651 | AB8: -0.0009296683157 | AC8: 3.599535166 | AD8: 3976.812964 | AE8: 0.3
D9: 5 | E9: 0.4171072128 | F9: -0.2093154576 | G9: 3.495342271 | H9: 3128.544028 | I9: 0.1 | J9: 5 | K9: 0.4171072128 | L9: -0.2093154576 | M9: 3.495342271 | N9: 3128.544028 | O9: 0.2 | Z9: 5 | AA9: 0.4171072128 | AB9: -0.2093154576 | AC9: 3.495342271 | AD9: 3128.544028 | AE9: 0.3
D10: 6 | E10: 0.3413557916 | F10: -0.4087796231 | G10: 3.395610188 | H10: 2486.624386 | I10: 0.1 | J10: 6 | K10: 0.3413557916 | L10: -0.4087796231 | M10: 3.395610188 | N10: 2486.624386 | O10: 0.2 | Q10: 0 | R10: =G2 -> 3.59316336 | S10: =M2 -> 3.655438333 | T10: 3.6 | Z10: 6 | AA10: 0.3413557916 | AB10: -0.4087796231 | AC10: 3.395610188 | AD10: 2486.624386 | AE10: 0.3
D11: 7 | E11: 0.8399602873 | F11: 0.9942944891 | G11: 4.097147245 | H11: 12506.82994 | I11: 0.1 | J11: 7 | K11: 0.8399602873 | L11: 0.9942944891 | M11: 4.097147245 | N11: 12506.82994 | O11: 0.2 | Q11: 3 | R11: =R10 -> 3.59316336 | S11: =S10 -> 3.655438333 | T11: =T10 -> 3.6 | Z11: 7 | AA11: 0.8399602873 | AB11: 0.9942944891 | AC11: 4.097147245 | AD11: 12506.82994 | AE11: 0.3
D12: 8 | E12: 0.4448397336 | F12: -0.138726154 | G12: 3.530636923 | H12: 3393.414592 | I12: 0.1 | J12: 8 | K12: 0.4448397336 | L12: -0.138726154 | M12: 3.530636923 | N12: 3393.414592 | O12: 0.2 | Z12: 8 | AA12: 0.4448397336 | AB12: -0.138726154 | AC12: 3.530636923 | AD12: 3393.414592 | AE12: 0.3
D13: 9 | E13: 0.45996238 | F13: -0.1005449952 | G13: 3.549727502 | H13: 3545.908318 | I13: 0.1 | J13: 9 | K13: 0.45996238 | L13: -0.1005449952 | M13: 3.549727502 | N13: 3545.908318 | O13: 0.2 | R13: 10 | S13: 50 | T13: 10 | U13: 50 | X13: 500 | Z13: 9 | AA13: 0.45996238 | AB13: -0.1005449952 | AC13: 3.549727502 | AD13: 3545.908318 | AE13: 0.3
D14: 10 | E14: 0.7144182757 | F14: 0.5663275387 | G14: 3.883163769 | H14: 7641.238749 | I14: 0.1 | J14: 10 | K14: 0.7144182757 | L14: 0.5663275387 | M14: 3.883163769 | N14: 7641.238749 | O14: 0.2 | Q14: 2.125 | R14: =FREQUENCY(G5:G14,$Q14:$Q28) -> 0 | S14: =FREQUENCY(M5:M54,$Q14:$Q28) -> 0 | T14: =R14/R$13/($Q$15-$Q$14) -> 0 | U14: =S14/S$13/($Q$15-$Q$14) -> 0 | V14: 2 | X14: =FREQUENCY(AC5:AC504,$Q14:$Q28) -> 1 | Y14: =X14/X$29/($Q$15-$Q$14) -> 0.008 | Z14: 10 | AA14: 0.7144182757 | AB14: 0.5663275387 | AC14: 3.883163769 | AD14: 7641.238749 | AE14: 0.3
J15: 11 | K15: =RAND() -> 0.7848263724 | L15: 0.7885912616 | M15: 3.994295631 | N15: 9869.510895 | O15: 0.2 | Q15: 2.375 | R15: 0 | S15: 0 | T15: =R15/R$13/($Q$15-$Q$14) -> 0 | U15: =S15/S$13/($Q$15-$Q$14) -> 0 | V15: =AVERAGE(Q14:Q15) -> 2.25 | W15: =interp('"actual" curve'!$V$3:$V$205,'"actual" curve'!$X$3:$X$205,'samples mean'!V15) -> 0.03176706997 | X15: 0 | Y15: =X15/X$29/($Q$15-$Q$14) -> 0 | Z15: 11 | AA15: 0.7848263724 | AB15: 0.7885912616 | AC15: 3.994295631 | AD15: 9869.510895 | AE15: 0.3
J16: 12 | K16: 0.3544595722 | L16: -0.3733224493 | M16: 3.413338775 | N16: 2590.232662 | O16: 0.2 | Q16: 2.625 | R16: 0 | S16: 0 | T16: 0 | U16: 0 | V16: =AVERAGE(Q15:Q16) -> 2.5 | W16: =interp('"actual" curve'!$V$3:$V$205,'"actual" curve'!$X$3:$X$205,'samples mean'!V16) -> 0.08174785188 | X16: 9 | Y16: 0.072 | Z16: 12 | AA16: 0.3544595722 | AB16: -0.3733224493 | AC16: 3.413338775 | AD16: 2590.232662 | AE16: 0.3
J17: 13 | K17: 0.7636319589 | L17: 0.7180263164 | M17: 3.959013158 | N17: 9099.408415 | O17: 0.2 | Q17: 2.875 | R17: 0 | S17: 2 | T17: 0 | U17: 0.16 | V17: 2.75 | W17: =interp('"actual" curve'!$V$3:$V$205,'"actual" curve'!$X$3:$X$205,'samples mean'!V17) -> 0.1964351732 | X17: 25 | Y17: 0.2 | Z17: 13 | AA17: 0.7636319589 | AB17: 0.7180263164 | AC17: 3.959013158 | AD17: 9099.408415 | AE17: 0.3
J18: 14 | K18: 0.7123799268 | L18: 0.5603394206 | M18: 3.88016971 | N18: 7588.740642 | O18: 0.2 | Q18: 3.125 | R18: 0 | S18: 5 | T18: 0 | U18: 0.4 | V18: 3 | W18: =interp('"actual" curve'!$V$3:$V$205,'"actual" curve'!$X$3:$X$205,'samples mean'!V18) -> 0.394312677 | X18: 61 | Y18: 0.488 | Z18: 14 | AA18: 0.7123799268 | AB18: 0.5603394206 | AC18: 3.88016971 | AD18: 7588.740642 | AE18: 0.3
J19: 15 | K19: 0.7524257426 | L19: 0.6821341171 | M19: 3.941067059 | N19: 8731.061726 | O19: 0.2 | Q19: 3.375 | R19: 2 | S19: 6 | T19: 0.8 | U19: 0.48 | V19: 3.25 | W19: =interp('"actual" curve'!$V$3:$V$205,'"actual" curve'!$X$3:$X$205,'samples mean'!V19) -> 0.6279832843 | X19: 65 | Y19: 0.52 | Z19: 15 | AA19: 0.7524257426 | AB19: 0.6821341171 | AC19: 3.941067059 | AD19: 8731.061726 | AE19: 0.3
J20: 16 | K20: 0.05363262435 | L20: -1.610581158 | M20: 2.794709421 | N20: 623.3176445 | O20: 0.2 | Q20: 3.625 | R20: 5 | S20: 12 | T20: 2 | U20: 0.96 | V20: 3.5 | W20: =interp('"actual" curve'!$V$3:$V$205,'"actual" curve'!$X$3:$X$205,'samples mean'!V20) -> 0.7830633648 | X20: 103 | Y20: 0.824 | Z20: 16 | AA20: 0.05363262435 | AB20: -1.610581158 | AC20: 2.794709421 | AD20: 623.3176445 | AE20: 0.3
J21: 17 | K21: 0.08136169794 | L21: -1.395954631 | M21: 2.902022685 | N21: 798.0363704 | O21: 0.2 | Q21: 3.875 | R21: 0 | S21: 5 | T21: 0 | U21: 0.4 | V21: 3.75 | W21: =interp('"actual" curve'!$V$3:$V$205,'"actual" curve'!$X$3:$X$205,'samples mean'!V21) -> 0.7612269016 | X21: 87 | Y21: 0.696 | Z21: 17 | AA21: 0.08136169794 | AB21: -1.395954631 | AC21: 2.902022685 | AD21: 798.0363704 | AE21: 0.3
J22: 18 | K22: 0.4512407035 | L22: -0.1225437412 | M22: 3.538728129 | N22: 3457.228857 | O22: 0.2 | Q22: 4.125 | R22: 3 | S22: 15 | T22: 1.2 | U22: 1.2 | V22: 4 | W22: =interp('"actual" curve'!$V$3:$V$205,'"actual" curve'!$X$3:$X$205,'samples mean'!V22) -> 0.5753191533 | X22: 73 | Y22: 0.584 | Z22: 18 | AA22: 0.4512407035 | AB22: -0.1225437412 | AC22: 3.538728129 | AD22: 3457.228857 | AE22: 0.3
J23: 19 | K23: 0.379493244 | L23: -0.3068270789 | M23: 3.446586461 | N23: 2796.317371 | O23: 0.2 | Q23: 4.375 | R23: 0 | S23: 3 | T23: 0 | U23: 0.24 | V23: 4.25 | W23: =interp('"actual" curve'!$V$3:$V$205,'"actual" curve'!$X$3:$X$205,'samples mean'!V23) -> 0.3361585711 | X23: 53 | Y23: 0.424 | Z23: 19 | AA23: 0.379493244 | AB23: -0.3068270789 | AC23: 3.446586461 | AD23: 2796.317371 | AE23: 0.3
J24: 20 | K24: 0.2099086852 | L24: -0.8067439504 | M24: 3.196628025 | N24: 1572.635318 | O24: 0.2 | Q24: 4.625 | R24: 0 | S24: 1 | T24: 0 | U24: 0.08 | V24: 4.5 | W24: =interp('"actual" curve'!$V$3:$V$205,'"actual" curve'!$X$3:$X$205,'samples mean'!V24) -> 0.1487085308 | X24: 14 | Y24: 0.112 | Z24: 20 | AA24: 0.2099086852 | AB24: -0.8067439504 | AC24: 3.196628025 | AD24: 1572.635318 | AE24: 0.3
J25: 21 | K25: 0.4475749461 | L25: -0.1318070145 | M25: 3.534096493 | N25: 3420.554329 | O25: 0.2 | Q25: 4.875 | R25: 0 | S25: 0 | T25: 0 | U25: 0 | V25: 4.75 | W25: =interp('"actual" curve'!$V$3:$V$205,'"actual" curve'!$X$3:$X$205,'samples mean'!V25) -> 0.04412286422 | X25: 6 | Y25: 0.048 | Z25: 21 | AA25: 0.4475749461 | AB25: -0.1318070145 | AC25: 3.534096493 | AD25: 3420.554329 | AE25: 0.3
J26: 22 | K26: 0.7888991094 | L26: 0.8026013114 | M26: 4.001300656 | N26: 10029.9936 | O26: 0.2 | Q26: 5.125 | R26: 0 | S26: 1 | T26: 0 | U26: 0.08 | V26: 5 | W26: =interp('"actual" curve'!$V$3:$V$205,'"actual" curve'!$X$3:$X$205,'samples mean'!V26) -> 0.01212614772 | X26: 2 | Y26: 0.016 | Z26: 22 | AA26: 0.7888991094 | AB26: 0.8026013114 | AC26: 4.001300656 | AD26: 10029.9936 | AE26: 0.3
J27: 23 | K27: 0.567267116 | L27: 0.1694044794 | M27: 3.68470224 | N27: 4838.405238 | O27: 0.2 | Q27: 5.375 | R27: 0 | S27: 0 | T27: 0 | U27: 0 | V27: 5.25 | W27: =interp('"actual" curve'!$V$3:$V$205,'"actual" curve'!$X$3:$X$205,'samples mean'!V27) -> -0.009320222767 | X27: 1 | Y27: 0.008 | Z27: 23 | AA27: 0.567267116 | AB27: 0.1694044794 | AC27: 3.68470224 | AD27: 4838.405238 | AE27: 0.3
J28: 23 | K28: 0.0891322894 | L28: -1.346104111 | M28: 2.926947944 | N28: 845.1775341 | O28: 0.2 | Q28: 5.625 | R28: 0 | S28: 0 | T28: 0 | U28: 0 | V28: 5.5 | W28: =interp('"actual" curve'!$V$3:$V$205,'"actual" curve'!$X$3:$X$205,'samples mean'!V28) -> -0.03155090577 | X28: 0 | Y28: 0 | Z28: 24 | AA28: 0.0891322894 | AB28: -1.346104111 | AC28: 2.926947944 | AD28: 845.1775341 | AE28: 0.3
J29: 25 | K29: 0.8062682055 | L29: 0.864222078 | M29: 4.032111039 | N29: 10767.40476 | O29: 0.2 | R29: =SUM(R14:R28) -> 10 | S29: =SUM(S14:S28) -> 50 | X29: =SUM(X14:X28) -> 500 | Z29: 25 | AA29: 0.8062682055 | AB29: 0.864222078 | AC29: 4.032111039 | AD29: 10767.40476 | AE29: 0.3
J30: 26 | K30: 0.3866134272 | L30: -0.288171901 | M30: 3.45591405 | N30: 2857.025058 | O30: 0.2 | Z30: 26 | AA30: 0.3866134272 | AB30: -0.288171901 | AC30: 3.45591405 | AD30: 2857.025058 | AE30: 0.3
J31: 27 | K31: 0.1900615231 | L31: -0.8776734287 | M31: 3.161163286 | N31: 1449.316664 | O31: 0.2 | Z31: 27 | AA31: 0.1900615231 | AB31: -0.8776734287 | AC31: 3.161163286 | AD31: 1449.316664 | AE31: 0.3
J32: 28 | K32: 0.8882486023 | L32: 1.217274635 | M32: 4.208637317 | N32: 16167.29331 | O32: 0.2 | Z32: 28 | AA32: 0.8882486023 | AB32: 1.217274635 | AC32: 4.208637317 | AD32: 16167.29331 | AE32: 0.3
J33: 29 | K33: 0.739722753 | L33: 0.6424811159 | M33: 3.921240558 | N33: 8341.430929 | O33: 0.2 | Z33: 29 | AA33: 0.739722753 | AB33: 0.6424811159 | AC33: 3.921240558 | AD33: 8341.430929 | AE33: 0.3
J34: 30 | K34: 0.6356294491 | L34: 0.3467859703 | M34: 3.773392985 | N34: 5934.620947 | O34: 0.2 | Z34: 30 | AA34: 0.6356294491 | AB34: 0.3467859703 | AC34: 3.773392985 | AD34: 5934.620947 | AE34: 0.3
J35: 31 | K35: 0.7807176 | L35: 0.7746123789 | M35: 3.987306189 | N35: 9711.944445 | O35: 0.2 | Z35: 31 | AA35: 0.7807176 | AB35: 0.7746123789 | AC35: 3.987306189 | AD35: 9711.944445 | AE35: 0.3
J36: 32 | K36: 0.1114733726 | L36: -1.21872176 | M36: 2.99063912 | N36: 978.67641 | O36: 0.2 | Z36: 32 | AA36: 0.1114733726 | AB36: -1.21872176 | AC36: 2.99063912 | AD36: 978.67641 | AE36: 0.3
J37: 33 | K37: 0.561943267 | L37: =2/skew*(((NORMSINV(K37)-skew/6)*skew/6+1)^3-1) -> 0.1558816823 | M37: =mean+stdev*L37 -> 3.677940841 | N37: 4763.660926 | O37: 0.2 | Z37: 33 | AA37: 0.561943267 | AB37: 0.1558816823 | AC37: 3.677940841 | AD37: 4763.660926 | AE37: 0.3
J38: 34 | K38: 0.4462221971 | L38: -0.1352281915 | M38: 3.532385904 | N38: 3407.108031 | O38: 0.2 | Z38: 34 | AA38: 0.4462221971 | AB38: -0.1352281915 | AC38: 3.532385904 | AD38: 3407.108031 | AE38: 0.3
J39: 35 | K39: 0.2776850779 | L39: -0.5897431417 | M39: 3.305128429 | N39: 2018.963321 | O39: 0.2 | Z39: 35 | AA39: 0.2776850779 | AB39: -0.5897431417 | AC39: 3.305128429 | AD39: 2018.963321 | AE39: 0.3
J40: 36 | K40: 0.7892445413 | L40: 0.8037968234 | M40: 4.001898412 | N40: 10043.80822 | O40: 0.2 | Z40: 36 | AA40: 0.7892445413 | AB40: 0.8037968234 | AC40: 4.001898412 | AD40: 10043.80822 | AE40: 0.3
J41: 37 | K41: 0.9947610188 | L41: 2.559735907 | M41: 4.879867954 | N41: 75834.69661 | O41: 0.2 | Z41: 37 | AA41: 0.9947610188 | AB41: 2.559735907 | AC41: 4.879867954 | AD41: 75834.69661 | AE41: 0.3
J42: 38 | K42: 0.29935749 | L42: -0.5262613859 | M42: 3.336869307 | N42: 2172.047443 | O42: 0.2 | Z42: 38 | AA42: 0.29935749 | AB42: -0.5262613859 | AC42: 3.336869307 | AD42: 2172.047443 | AE42: 0.3
J43: 39 | K43: 0.8175374109 | L43: 0.9060171811 | M43: 4.053008591 | N43: 11298.18263 | O43: 0.2 | Z43: 39 | AA43: 0.8175374109 | AB43: 0.9060171811 | AC43: 4.053008591 | AD43: 11298.18263 | AE43: 0.3
J44: 40 | K44: 0.1684158516 | L44: -0.9604454892 | M44: 3.119777255 | N44: 1317.580793 | O44: 0.2 | Z44: 40 | AA44: 0.1684158516 | AB44: -0.9604454892 | AC44: 3.119777255 | AD44: 1317.580793 | AE44: 0.3
J45: 41 | K45: 0.5116931683 | L45: 0.02929797193 | M45: 3.614648986 | N45: 4117.645801 | O45: 0.2 | Z45: 41 | AA45: 0.5116931683 | AB45: 0.02929797193 | AC45: 3.614648986 | AD45: 4117.645801 | AE45: 0.3
J46: 42 | K46: 0.9272422722 | L46: 1.455574438 | M46: 4.327787219 | N46: 21270.96628 | O46: 0.2 | Z46: 42 | AA46: 0.9272422722 | AB46: 1.455574438 | AC46: 4.327787219 | AD46: 21270.96628 | AE46: 0.3
J47: 43 | K47: 0.9746294721 | L47: 1.953710191 | M47: 4.576855095 | N47: 37744.6233 | O47: 0.2 | Z47: 43 | AA47: 0.9746294721 | AB47: 1.953710191 | AC47: 4.576855095 | AD47: 37744.6233 | AE47: 0.3
J48: 44 | K48: 0.03382519265 | L48: -1.827289562 | M48: 2.686355219 | N48: 485.6855904 | O48: 0.2 | Z48: 44 | AA48: 0.03382519265 | AB48: -1.827289562 | AC48: 2.686355219 | AD48: 485.6855904 | AE48: 0.3
J49: 45 | K49: 0.7957990856 | L49: 0.8267040593 | M49: 4.01335203 | N49: 10312.21668 | O49: 0.2 | Z49: 45 | AA49: 0.7957990856 | AB49: 0.8267040593 | AC49: 4.01335203 | AD49: 10312.21668 | AE49: 0.3
J50: 46 | K50: 0.7220353416 | L50: 0.5888876834 | M50: 3.894443842 | N50: 7842.307041 | O50: 0.2 | Z50: 46 | AA50: 0.7220353416 | AB50: 0.5888876834 | AC50: 3.894443842 | AD50: 7842.307041 | AE50: 0.3
J51: 47 | K51: 0.6888069564 | L51: 0.4924588433 | M51: 3.846229422 | N51: 7018.259491 | O51: 0.2 | Z51: 47 | AA51: 0.6888069564 | AB51: 0.4924588433 | AC51: 3.846229422 | AD51: 7018.259491 | AE51: 0.3
J52: 48 | K52: 0.6773400672 | L52: 0.4602604395 | M52: 3.83013022 | N52: 6762.857239 | O52: 0.2 | Z52: 48 | AA52: 0.6773400672 | AB52: 0.4602604395 | AC52: 3.83013022 | AD52: 6762.857239 | AE52: 0.3
J53: 49 | K53: 0.9196762789 | L53: 1.402913515 | M53: 4.301456758 | N53: 20019.66277 | O53: 0.2 | Z53: 49 | AA53: 0.9196762789 | AB53: 1.402913515 | AC53: 4.301456758 | AD53: 20019.66277 | AE53: 0.3
J54: 50 | K54: 0.1577551518 | L54: -1.0037267 | M54: 3.09813665 | N54: 1253.535536 | O54: 0.2 | Z54: 50 | AA54: 0.1577551518 | AB54: -1.0037267 | AC54: 3.09813665 | AD54: 1253.535536 | AE54: 0.3
Z55: 51 | AA55: =RAND() -> 0.08443068286 | AB55: =2/skew*(((NORMSINV(AA55)-skew/6)*skew/6+1)^3-1) -> -1.375856792 | AC55: =mean+stdev*AB55 -> 2.912071604 | AD55: =10^AC55 -> 816.7170163 | AE55: 0.3
Z56: 52 | AA56: 0.1146966968 | AB56: -1.201915508 | AC56: 2.999042246 | AD56: 997.7971194 | AE56: 0.3
Z57: 53 | AA57: 0.3412138498 | AB57: -0.4091664455 | AC57: 3.395416777 | AD57: 2485.517225 | AE57: 0.3
Z58: 54 | AA58: 0.7680079094 | AB58: 0.7322943981 | AC58: 3.966147199 | AD58: 9250.116428 | AE58: 0.3
Z59: 55 | AA59: 0.07604241404 | AB59: -1.432188644 | AC59: 2.883905678 | AD59: 765.4303496 | AE59: 0.3
Z60: 56 | AA60: 0.5693302457 | AB60: 0.1746531205 | AC60: 3.68732656 | AD60: 4867.730888 | AE60: 0.3
Z61: 57 | AA61: 0.6943957894 | AB61: 0.5083369123 | AC61: 3.854168456 | AD61: 7147.73522 | AE61: 0.3
Z62: 58 | AA62: 0.01194615627 | AB62: -2.258788127 | AC62: 2.470605936 | AD62: 295.5329686 | AE62: 0.3
Z63: 59 | AA63: 0.6570696446 | AB63: 0.4044647965 | AC63: 3.802232398 | AD63: 6342.089964 | AE63: 0.3
Z64: 60 | AA64: 0.9682531715 | AB64: 1.855759476 | AC64: 4.527879738 | AD64: 33719.39223 | AE64: 0.3
Z65: 61 | AA65: 0.1389681763 | AB65: -1.084963863 | AC65: 3.057518068 | AD65: 1141.610799 | AE65: 0.3
Z66: 62 | AA66: 0.04463293719 | AB66: -1.699251539 | AC66: 2.750374231 | AD66: 562.8261024 | AE66: 0.3
Z67: 63 | AA67: 0.3315268475 | AB67: -0.4357144819 | AC67: 3.382142759 | AD67: 2410.697731 | AE67: 0.3
Z68: 64 | AA68: 0.99317739 | AB68: 2.466554615 | AC68: 4.833277307 | AD68: 68120.41849 | AE68: 0.3
Z69: 65 | AA69: 0.5517647102 | AB69: 0.1301047622 | AC69: 3.665052381 | AD69: 4624.367934 | AE69: 0.3
Z70: 66 | AA70: 0.7273892663 | AB70: 0.6049255143 | AC70: 3.902462757 | AD70: 7988.454339 | AE70: 0.3
Z71: 67 | AA71: 0.2924647081 | AB71: -0.5462103119 | AC71: 3.326894844 | AD71: 2122.730422 | AE71: 0.3
Z72: 68 | AA72: 0.1391261607 | AB72: -1.084250787 | AC72: 3.057874606 | AD72: 1142.5484 | AE72: 0.3
Z73: 69 | AA73: 0.2905274667 | AB73: -0.5518560361 | AC73: 3.324071982 | AD73: 2108.977673 | AE73: 0.3
Z74: 70 | AA74: 0.06171026468 | AB74: -1.540550989 | AC74: 2.829724506 | AD74: 675.6542386 | AE74: 0.3
Z75: 71 | AA75: 0.1602459467 | AB75: -0.9934477785 | AC75: 3.103276111 | AD75: 1268.458055 | AE75: 0.3
Z76: 72 | AA76: 0.1778950897 | AB76: -0.9234189872 | AC76: 3.138290506 | AD76: 1374.961401 | AE76: 0.3
Z77: 73 | AA77: 0.4700063773 | AB77: -0.07527040351 | AC77: 3.562364798 | AD77: 3650.604613 | AE77: 0.3
Z78: 74 | AA78: 0.7570197038 | AB78: 0.6967392983 | AC78: 3.948369649 | AD78: 8879.114351 | AE78: 0.3
Z79: 75 | AA79: =RAND() -> 0.1480324045 | AB79: -1.044907946 | AC79: 3.077546027 | AD79: 1195.490218 | AE79: 0.3
Z80: 76 | AA80: 0.07146694856 | AB80: -1.464933327 | AC80: 2.867533337 | AD80: 737.1117542 | AE80: 0.3
Z81: 77 | AA81: 0.3084708593 | AB81: -0.5002019007 | AC81: 3.34989905 | AD81: 2238.200816 | AE81: 0.3
Z82: 78 | AA82: 0.9587634517 | AB82: 1.736546994 | AC82: 4.468273497 | AD82: 29395.00219 | AE82: 0.3
Z83: 79 | AA83: 0.4797161402 | AB83: -0.0508826462 | AC83: 3.574558677 | AD83: 3754.556783 | AE83: 0.3
Z84: 80 | AA84: 0.3291846968 | AB84: -0.4421789848 | AC84: 3.378910508 | AD84: 2392.822631 | AE84: 0.3
Z85: 81 | AA85: 0.7678985458 | AB85: 0.7319360003 | AC85: 3.965968 | AD85: 9246.300425 | AE85: 0.3
Z86: 82 | AA86: 0.2866200716 | AB86: -0.5632973878 | AC86: 3.318351306 | AD86: 2081.37966 | AE86: 0.3
Z87: 83 | AA87: 0.5456283301 | AB87: 0.1146073203 | AC87: 3.65730366 | AD87: 4542.591251 | AE87: 0.3
Z88: 84 | AA88: 0.4855041086 | AB88: -0.03636045527 | AC88: 3.581819772 | AD88: 3817.858009 | AE88: 0.3
Z89: 85 | AA89: 0.8553858654 | AB89: 1.059818157 | AC89: 4.129909078 | AD89: 13486.805 | AE89: 0.3
Z90: 86 | AA90: 0.08614416932 | AB90: -1.36487335 | AC90: 2.917563325 | AD90: 827.110102 | AE90: 0.3
Z91: 87 | AA91: 0.6963992628 | AB91: 0.5140599926 | AC91: 3.857029996 | AD91: 7194.986714 | AE91: 0.3
Z92: 88 | AA92: 0.06850416566 | AB92: -1.487004346 | AC92: 2.856497827 | AD92: 718.6175627 | AE92: 0.3
Z93: 89 | AA93: 0.5406466174 | AB93: 0.1020463861 | AC93: 3.651023193 | AD93: 4477.372145 | AE93: 0.3
Z94: 90 | AA94: 0.2451825036 | AB94: -0.6897371304 | AC94: 3.255131435 | AD94: 1799.415407 | AE94: 0.3
Z95: 91 | AA95: 0.9268188459 | AB95: 1.452519651 | AC95: 4.326259825 | AD95: 21196.28867 | AE95: 0.3
Z96: 92 | AA96: 0.03980066643 | AB96: -1.752969377 | AC96: 2.723515311 | AD96: 529.0726499 | AE96: 0.3
Z97: 93 | AA97: 0.5675021207 | AB97: 0.1700020977 | AC97: 3.685001049 | AD97: 4841.735369 | AE97: 0.3
Z98: 94 | AA98: 0.3569701589 | AB98: -0.3665837183 | AC98: 3.416708141 | AD98: 2610.406492 | AE98: 0.3
Z99: 95 | AA99: 0.9764085062 | AB99: 1.984702912 | AC99: 4.592351456 | AD99: 39115.73147 | AE99: 0.3
Z100: 96 | AA100: 0.9004452108 | AB100: 1.284103353 | AC100: 4.242051677 | AD100: 17460.299 | AE100: 0.3
Z101: 97 | AA101: 0.02512089018 | AB101: -1.9578525 | AC101: 2.62107375 | AD101: 417.9013267 | AE101: 0.3
Z102: 98 | AA102: 0.291916303 | AB102: -0.5478067616 | AC102: 3.326096619 | AD102: 2118.832468 | AE102: 0.3
Z103: 99 | AA103: 0.4925992162 | AB103: -0.0185687389 | AC103: 3.590715631 | AD103: 3896.867421 | AE103: 0.3
Z104: 100 | AA104: 0.6012695636 | AB104: 0.2566190173 | AC104: 3.728309509 | AD104: 5349.454631 | AE104: 0.3
Z105: 101 | AA105: 0.8956492045 | AB105: 1.257153413 | AC105: 4.228576706 | AD105: 16926.87186 | AE105: 0.3
Z106: 102 | AA106: 0.1766635518 | AB106: -0.9281574426 | AC106: 3.135921279 | AD106: 1367.48093 | AE106: 0.3
Z107: 103 | AA107: 0.2596957011 | AB107: -0.6442935734 | AC107: 3.277853213 | AD107: 1896.064964 | AE107: 0.3
Z108: 104 | AA108: 0.01264333799 | AB108: -2.236928124 | AC108: 2.481535938 | AD108: 303.0651074 | AE108: 0.3
Z109: 105 | AA109: 0.02940570435 | AB109: -1.889557668 | AC109: 2.655221166 | AD109: 452.0861122 | AE109: 0.3
Z110: 106 | AA110: 0.03784345555 | AB110: -1.776243272 | AC110: 2.711878364 | AD110: 515.0843609 | AE110: 0.3
Z111: 107 | AA111: 0.3854715701 | AB111: -0.2911567032 | AC111: 3.454421648 | AD111: 2847.224083 | AE111: 0.3
Z112: 108 | AA112: 0.3704154028 | AB112: -0.3307681867 | AC112: 3.434615907 | AD112: 2720.294395 | AE112: 0.3
Z113: 109 | AA113: 0.2376259411 | AB113: -0.7139682223 | AC113: 3.243015889 | AD113: 1749.910709 | AE113: 0.3
Z114: 110 | AA114: 0.6278297096 | AB114: 0.3260958332 | AC114: 3.763047917 | AD114: 5794.926295 | AE114: 0.3
Z115: 111 | AA115: 0.7788454663 | AB115: 0.7682930147 | AC115: 3.984146507 | AD115: 9641.54222 | AE115: 0.3
Z116: 112 | AA116: 0.9196222035 | AB116: 1.402550962 | AC116: 4.301275481 | AD116: 20011.30822 | AE116: 0.3
Z117: 113 | AA117: 0.7320868113 | AB117: 0.6191263165 | AC117: 3.909563158 | AD117: 8120.133292 | AE117: 0.3
Z118: 114 | AA118: 0.08701991523 | AB118: -1.359322851 | AC118: 2.920338575 | AD118: 832.4124642 | AE118: 0.3
Z119: 115 | AA119: 0.9369606525 | AB119: =2/skew*(((NORMSINV(AA119)-skew/6)*skew/6+1)^3-1) -> 1.529772041 | AC119: =mean+stdev*AB119 -> 4.364886021 | AD119: =10^AC119 -> 23167.86536 | AE119: 0.3
Z120: 116 | AA120: 0.315970377 | AB120: -0.4790098549 | AC120: 3.360495073 | AD120: 2293.480609 | AE120: 0.3
Z121: 117 | AA121: 0.2553888631 | AB121: -0.6576366364 | AC121: 3.271181682 | AD121: 1867.160631 | AE121: 0.3
Z122: 118 | AA122: 0.6621806883 | AB122: 0.4184082249 | AC122: 3.809204112 | AD122: 6444.720874 | AE122: 0.3
Z123: 119 | AA123: 0.306058602 | AB123: -0.5070659905 | AC123: 3.346467005 | AD123: 2220.58297 | AE123: 0.3
Z124: 120 | AA124: 0.1639099636 | AB124: -0.9785152003 | AC124: 3.1107424 | AD124: 1290.453619 | AE124: 0.3
Z125: 121 | AA125: 0.4970063164 | AB125: -0.007520788081 | AC125: 3.596239606 | AD125: 3946.749894 | AE125: 0.3
Z126: 122 | AA126: 0.4086293979 | AB126: -0.2310878685 | AC126: 3.484456066 | AD126: 3051.097357 | AE126: 0.3
Z127: 123 | AA127: 0.2544476658 | AB127: -0.6605681418 | AC127: 3.269715929 | AD127: 1860.869548 | AE127: 0.3
Z128: 124 | AA128: 0.8416669888 | AB128: 1.001332674 | AC128: 4.100666337 | AD128: 12608.58461 | AE128: 0.3
Z129: 125 | AA129: 0.1306120791 | AB129: -1.123498084 | AC129: 3.038250958 | AD129: 1092.071209 | AE129: 0.3
Z130: 126 | AA130: 0.8915442648 | AB130: 1.234791222 | AC130: 4.217395611 | AD130: 16496.64433 | AE130: 0.3
Z131: 127 | AA131: 0.8438744949 | AB131: 1.010510353 | AC131: 4.105255177 | AD131: 12742.51568 | AE131: 0.3
Z132: 128 | AA132: 0.9222525402 | AB132: 1.42040439 | AC132: 4.310202195 | AD132: 20426.88741 | AE132: 0.3
Z133: 129 | AA133: 0.8762870536 | AB133: 1.156629922 | AC133: 4.178314961 | AD133: 15077.00091 | AE133: 0.3
Z134: 130 | AA134: 0.7270190469 | AB134: 0.6038115376 | AC134: 3.901905769 | AD134: 7978.215608 | AE134: 0.3
Z135: 131 | AA135: 0.6198726181 | AB135: 0.30513114 | AC135: 3.75256557 | AD135: 5656.731563 | AE135: 0.3
Z136: 132 | AA136: 0.4392584509 | AB136: -0.1528658522 | AC136: 3.523567074 | AD136: 3338.62064 | AE136: 0.3
Z137: 133 | AA137: 0.7323186371 | AB137: 0.6198303518 | AC137: 3.909915176 | AD137: 8126.717739 | AE137: 0.3
Z138: 134 | AA138: 0.4685663828 | AB138: -0.07889066116 | AC138: 3.560554669 | AD138: 3635.420647 | AE138: 0.3
Z139: 135 | AA139: 0.8997402695 | AB139: 1.280083649 | AC139: 4.240041825 | AD139: 17379.68195 | AE139: 0.3
Z140: 136 | AA140: 0.507293761 | AB140: 0.01826710522 | AC140: 3.609133553 | AD140: 4065.683363 | AE140: 0.3
Z141: 137 | AA141: 0.9124807601 | AB141: 1.356204752 | AC141: 4.278102376 | AD141: 18971.53083 | AE141: 0.3
Z142: 138 | AA142: 0.4993710874 | AB142: -0.001593117283 | AC142: 3.599203441 | AD142: 3973.776539 | AE142: 0.3
Z143: 139 | AA143: =RAND() -> 0.7733834336 | AB143: 0.7500285267 | AC143: 3.975014263 | AD143: 9440.918821 | AE143: 0.3
Z144: 140 | AA144: 0.03712654235 | AB144: -1.785014314 | AC144: 2.707492843 | AD144: 509.9091944 | AE144: 0.3
Z145: 141 | AA145: 0.9407312311 | AB145: 1.560965512 | AC145: 4.380482756 | AD145: 24015.00912 | AE145: 0.3
Z146: 142 | AA146: 0.6912772959 | AB146: 0.4994616198 | AC146: 3.84973081 | AD146: 7075.071121 | AE146: 0.3
Z147: 143 | AA147: 0.9260980213 | AB147: 1.447350258 | AC147: 4.323675129 | AD147: 21070.51394 | AE147: 0.3
Z148: 144 | AA148: 0.6792566006 | AB148: 0.4656079601 | AC148: 3.83280398 | AD148: 6804.62161 | AE148: 0.3
Z149: 145 | AA149: 0.2469298364 | AB149: -0.684191774 | AC149: 3.257904113 | AD149: 1810.940215 | AE149: 0.3
Z150: 146 | AA150: 0.1534824541 | AB150: -1.021610569 | AC150: 3.089194715 | AD150: 1227.989675 | AE150: 0.3
Z151: 147 | AA151: 0.8101414894 | AB151: 0.8784140061 | AC151: 4.039207003 | AD151: 10944.77916 | AE151: 0.3
Z152: 148 | AA152: 0.5638799176 | AB152: 0.160797426 | AC152: 3.680398713 | AD152: 4790.697103 | AE152: 0.3
Z153: 149 | AA153: 0.4154307067 | AB153: -0.2136128108 | AC153: 3.493193595 | AD153: 3113.10375 | AE153: 0.3
Z154: 150 | AA154: 0.8618402464 | AB154: 1.088627587 | AC154: 4.144313794 | AD154: 13941.63773 | AE154: 0.3
Z155: 151 | AA155: 0.5469615026 | AB155: 0.1179717814 | AC155: 3.658985891 | AD155: 4560.221005 | AE155: 0.3
Z156: 152 | AA156: 0.4173206395 | AB156: -0.2087686643 | AC156: 3.495615668 | AD156: 3130.514126 | AE156: 0.3
Z157: 153 | AA157: 0.6569377663 | AB157: 0.40410607 | AC157: 3.802053035 | AD157: 6339.471226 | AE157: 0.3
Z158: 154 | AA158: 0.5111251384 | AB158: 0.02787354815 | AC158: 3.613936774 | AD158: 4110.89869 | AE158: 0.3
Z159: 155 | AA159: 0.4569349251 | AB159: -0.1081751151 | AC159: 3.545912442 | AD159: 3514.8957 | AE159: 0.3
Z160: 156 | AA160: 0.8142171388 | AB160: 0.8935410096 | AC160: 4.046770505 | AD160: 11137.0586 | AE160: 0.3
Z161: 157 | AA161: 0.6456231198 | AB161: 0.3735160096 | AC161: 3.786758005 | AD161: 6120.092762 | AE161: 0.3
Z162: 158 | AA162: 0.1135285894 | AB162: -1.207966566 | AC162: 2.996016717 | AD162: 990.8700849 | AE162: 0.3
Z163: 159 | AA163: 0.7867825015 | AB163: 0.7953007813 | AC163: 3.997650391 | AD163: 9946.044332 | AE163: 0.3
Z164: 160 | AA164: 0.3937601832 | AB164: -0.2695473963 | AC164: 3.465226302 | AD164: 2918.947621 | AE164: 0.3
Z165: 161 | AA165: 0.631013488 | AB165: 0.3345239899 | AC165: 3.767261995 | AD165: 5851.429744 | AE165: 0.3
Z166: 162 | AA166: 0.9428386948 | AB166: 1.579083517 | AC166: 4.389541758 | AD166: 24521.20219 | AE166: 0.3
Z167: 163 | AA167: 0.4383871205 | AB167: -0.1550759806 | AC167: 3.52246201 | AD167: 3330.136304 | AE167: 0.3
Z168: 164 | AA168: 0.1109868385 | AB168: -1.221288574 | AC168: 2.989355713 | AD168: 975.7885395 | AE168: 0.3
Z169: 165 | AA169: 0.8368881051 | AB169: 0.9817478473 | AC169: 4.090873924 | AD169: 12327.46913 | AE169: 0.3
Z170: 166 | AA170: 0.689463936 | AB170: 0.4943188411 | AC170: 3.847159421 | AD170: 7033.304506 | AE170: 0.3
Z171: 167 | AA171: 0.6803953965 | AB171: 0.4687917424 | AC171: 3.834395871 | AD171: 6829.60948 | AE171: 0.3
Z172: 168 | AA172: 0.4550871311 | AB172: -0.1128351927 | AC172: 3.543582404 | AD172: 3496.088386 | AE172: 0.3
Z173: 169 | AA173: 0.8362292902 | AB173: 0.9790773525 | AC173: 4.089538676 | AD173: 12289.62627 | AE173: 0.3
Z174: 170 | AA174: 0.7147448648 | AB174: 0.5672888537 | AC174: 3.883644427 | AD174: 7649.700408 | AE174: 0.3
Z175: 171 | AA175: 0.4590811677 | AB175: -0.1027652987 | AC175: 3.548617351 | AD175: 3536.855775 | AE175: 0.3
Z176: 172 | AA176: 0.3595654348 | AB176: -0.35963512 | AC176: 3.42018244 | AD176: 2631.373157 | AE176: 0.3
Z177: 173 | AA177: 0.4182127724 | AB177: -0.2064837177 | AC177: 3.496758141 | AD177: 3138.76023 | AE177: 0.3
Z178: 174 | AA178: 0.5530291002 | AB178: 0.1333017472 | AC178: 3.666650874 | AD178: 4641.420046 | AE178: 0.3
Z179: 175 | AA179: 0.1650815829 | AB179: -0.9737861372 | AC179: 3.113106931 | AD179: 1297.4987 | AE179: 0.3
Z180: 176 | AA180: 0.6295620254 | AB180: 0.3306787398 | AC180: 3.76533937 | AD180: 5825.582674 | AE180: 0.3
Z181: 177 | AA181: 0.3905737938 | AB181: -0.2778392227 | AC181: 3.461080389 | AD181: 2891.215002 | AE181: 0.3
Z182: 178 | AA182: 0.6109701585 | AB182: 0.2818331533 | AC182: 3.740916577 | AD182: 5507.019023 | AE182: 0.3
Z183: 179 | AA183: 0.6159843727 | AB183: =2/skew*(((NORMSINV(AA183)-skew/6)*skew/6+1)^3-1) -> 0.2949358576 | AC183: =mean+stdev*AB183 -> 3.747467929 | AD183: =10^AC183 -> 5590.722404 | AE183: 0.3
Z184: 180 | AA184: 0.8279910412 | AB184: 0.9462544759 | AC184: 4.073127238 | AD184: 11833.8821 | AE184: 0.3
Z185: 181 | AA185: 0.8579008148 | AB185: 1.070938085 | AC185: 4.135469043 | AD185: 13660.57697 | AE185: 0.3
Z186: 182 | AA186: 0.4678589547 | AB186: -0.08066956589 | AC186: 3.559665217 | AD186: 3627.98278 | AE186: 0.3
Z187: 183 | AA187: 0.1582909767 | AB187: -1.001506544 | AC187: 3.099246728 | AD187: 1256.743732 | AE187: 0.3
Z188: 184 | AA188: 0.1150399264 | AB188: -1.200145846 | AC188: 2.999927077 | AD188: 999.8321028 | AE188: 0.3
Z189: 185 | AA189: 0.3360792432 | AB189: -0.4232011537 | AC189: 3.388399423 | AD189: 2445.678824 | AE189: 0.3
Z190: 186 | AA190: 0.1813982435 | AB190: -0.9100522082 | AC190: 3.144973896 | AD190: 1396.284432 | AE190: 0.3
Z191: 187 | AA191: 0.3149041407 | AB191: -0.4820095071 | AC191: 3.358995246 | AD191: 2285.573787 | AE191: 0.3
Z192: 188 | AA192: 0.5941985658 | AB192: 0.2383430169 | AC192: 3.719171508 | AD192: 5238.072539 | AE192: 0.3
Z193: 189 | AA193: 0.8183983433 | AB193: 0.9092752774 | AC193: 4.054637639 | AD193: 11340.64194 | AE193: 0.3
Z194: 190 | AA194: 0.3594669896 | AB194: -0.3598983788 | AC194: 3.420050811 | AD194: 2630.57574 | AE194: 0.3
Z195: 191 | AA195: 0.5533069202 | AB195: 0.1340043911 | AC195: 3.667002196 | AD195: 4645.176235 | AE195: 0.3
Z196: 192 | AA196: 0.4253278569 | AB196: -0.1882979241 | AC196: 3.505851038 | AD196: 3205.16977 | AE196: 0.3
Z197: 193 | AA197: 0.7521170635 | AB197: 0.6811579924 | AC197: 3.940578996 | AD197: 8721.255225 | AE197: 0.3
Z198: 194 | AA198: 0.4456326124 | AB198: -0.1367197767 | AC198: 3.531640112 | AD198: 3401.262193 | AE198: 0.3
Z199: 195 | AA199: 0.5695017899 | AB199: 0.175089747 | AC199: 3.687544873 | AD199: 4870.178437 | AE199: 0.3
Z200: 196 | AA200: 0.9920345105 | AB200: 2.41057313 | AC200: 4.805286565 | AD200: 63868.47773 | AE200: 0.3
Z201: 197 | AA201: 0.1087017134 | AB201: -1.23345336 | AC201: 2.98327332 | AD201: 962.2176528 | AE201: 0.3
... 303 more rows

Sheet m1000 g=0
A1: actual m | B1: =mean -> 3.6 | C1: =mean -> 3.6 | D1: mean | E1: =mean -> 3.6
A2: average = | B2: =AVERAGE(B8:B1007) -> 3.601452641 | C2: =AVERAGE(C8:C1007) -> 3.601715753 | D2: st.dev. | E2: =stdev -> 0.5
A3: st.dev.= | B3: =STDEV(B8:B1007) -> 0.1539723007 | C3: =STDEV(C8:C1007) -> 0.07165838218 | D3: skew | E3: =skew -> 0.0001 | G3: N=10 | H3: N=50
A4: s/sqrt(N) | B4: =stdev/SQRT(10) -> 0.158113883 | C4: =stdev/SQRT(50) -> 0.07071067812 | F4: 2.975 | R4: 1.95
A5: skew = | B5: =SKEW(B8:B1007) -> 0.02191793093 | C5: =SKEW(C8:C1007) -> 0.06159867109 | F5: 3.025 | G5: =FREQUENCY(B8:B1007,$F$5:$F$29) -> 0 | H5: =FREQUENCY(C8:C1007,$F$5:$F$29) -> 0 | I5: =AVERAGE(F4:F5) -> 3 | R5: 2.05 | S5: =FREQUENCY(B8:B1007,$R5:$R40)/1000/0.1 -> 0 | T5: =FREQUENCY(C8:C1007,$R5:$R40)/1000/0.1 -> 0 | U5: =AVERAGE(R4:R5) -> 2
F6: 3.075 | G6: 0 | H6: 0 | I6: =AVERAGE(F5:F6) -> 3.05 | R6: 2.15 | S6: 0 | T6: 0 | U6: =AVERAGE(R5:R6) -> 2.1
B7: N=10 | C7: N=50 | F7: 3.125 | G7: 0 | H7: 0 | I7: 3.1 | R7: 2.25 | S7: 0 | T7: 0 | U7: 2.2
A8: 1 | B8: 3.517425962 | C8: 3.532136469 | F8: 3.175 | G8: 3 | H8: 0 | I8: 3.15 | R8: 2.35 | S8: 0 | T8: 0 | U8: 2.3
A9: 2 | B9: 3.734948768 | C9: 3.729970963 | F9: 3.225 | G9: 6 | H9: 0 | I9: 3.2 | R9: 2.45 | S9: 0 | T9: 0 | U9: 2.4
A10: 3 | B10: 3.578347598 | C10: 3.482486767 | F10: 3.275 | G10: 9 | H10: 0 | I10: 3.25 | R10: 2.55 | S10: 0 | T10: 0 | U10: 2.5
A11: 4 | B11: 3.659568681 | C11: 3.702410816 | F11: 3.325 | G11: 21 | H11: 0 | I11: 3.3 | R11: 2.65 | S11: 0 | T11: 0 | U11: 2.6
A12: 5 | B12: 3.743128592 | C12: 3.59122061 | F12: 3.375 | G12: 32 | H12: 0 | I12: 3.35 | R12: 2.75 | S12: 0 | T12: 0 | U12: 2.7
A13: 6 | B13: 3.634516884 | C13: 3.616781361 | F13: 3.425 | G13: 51 | H13: 7 | I13: 3.4 | R13: 2.85 | S13: 0 | T13: 0 | U13: 2.8
A14: 7 | B14: 3.616653533 | C14: 3.633442061 | F14: 3.475 | G14: 73 | H14: 28 | I14: 3.45 | R14: 2.95 | S14: 0 | T14: 0 | U14: 2.9
A15: 8 | B15: 3.619185356 | C15: 3.64880881 | F15: 3.525 | G15: 109 | H15: 96 | I15: 3.5 | R15: 3.05 | S15: 0 | T15: 0 | U15: 3
A16: 9 | B16: 3.396397465 | C16: 3.465001979 | F16: 3.575 | G16: 128 | H16: 227 | I16: 3.55 | R16: 3.15 | S16: 0 | T16: 0 | U16: 3.1
A17: 10 | B17: 3.629016632 | C17: 3.607570562 | F17: 3.625 | G17: 137 | H17: 271 | I17: 3.6 | R17: 3.25 | S17: 0.15 | T17: 0 | U17: 3.2
A18: 11 | B18: 3.575821111 | C18: 3.644684839 | F18: 3.675 | G18: 121 | H18: 226 | I18: 3.65 | R18: 3.35 | S18: 0.38 | T18: 0 | U18: 3.3
A19: 12 | B19: 3.885560182 | C19: 3.682028249 | F19: 3.725 | G19: 105 | H19: 96 | I19: 3.7 | R19: 3.45 | S19: 1.05 | T19: 0.16 | U19: 3.4
A20: 13 | B20: 3.673578 | C20: 3.62770164 | F20: 3.775 | G20: 70 | H20: 41 | I20: 3.75 | R20: 3.55 | S20: 2.17 | T20: 2.2 | U20: 3.5
A21: 14 | B21: 3.295880654 | C21: 3.435041792 | F21: 3.825 | G21: 57 | H21: 6 | I21: 3.8 | R21: 3.65 | S21: 2.55 | T21: 5.13 | U21: 3.6
A22: 15 | B22: 3.681340986 | C22: 3.631215358 | F22: 3.875 | G22: 43 | H22: 1 | I22: 3.85 | R22: 3.75 | S22: 2.03 | T22: 2.34 | U22: 3.7
A23: 16 | B23: 3.783403548 | C23: 3.622377794 | F23: 3.925 | G23: 20 | H23: 1 | I23: 3.9 | R23: 3.85 | S23: 1.11 | T23: 0.16 | U23: 3.8
A24: 17 | B24: 3.34480892 | C24: 3.433369464 | F24: 3.975 | G24: 7 | H24: 0 | I24: 3.95 | R24: 3.95 | S24: 0.45 | T24: 0.01 | U24: 3.9
A25: 18 | B25: 3.577118846 | C25: 3.614215356 | F25: 4.025 | G25: 4 | H25: 0 | I25: 4 | R25: 4.05 | S25: 0.08 | T25: 0 | U25: 4
A26: 19 | B26: 3.71361571 | C26: 3.570733673 | F26: 4.075 | G26: 3 | H26: 0 | I26: 4.05 | R26: 4.15 | S26: 0.03 | T26: 0 | U26: 4.1
A27: 20 | B27: 3.65435207 | C27: 3.662301646 | F27: 4.125 | G27: 1 | H27: 0 | I27: 4.1 | R27: 4.25 | S27: 0 | T27: 0 | U27: 4.2
A28: 21 | B28: 3.894250367 | C28: 3.567264975 | F28: 4.175 | G28: 0 | H28: 0 | I28: 4.15 | R28: 4.35 | S28: 0 | T28: 0 | U28: 4.3
A29: 22 | B29: 3.658619597 | C29: 3.677482826 | F29: 4.225 | G29: 0 | H29: 0 | I29: 4.2 | R29: 4.45 | S29: 0 | T29: 0 | U29: 4.4
A30: 23 | B30: 3.709029684 | C30: 3.683226666 | R30: 4.55 | S30: 0 | T30: 0 | U30: 4.5
A31: 24 | B31: 3.50448059 | C31: 3.540906891 | G31: =SUM(G5:G29) -> 1000 | H31: =SUM(H5:H29) -> 1000 | R31: 4.65 | S31: 0 | T31: 0 | U31: 4.6
A32: 25 | B32: 3.514677052 | C32: 3.617499921 | R32: 4.75 | S32: 0 | T32: 0 | U32: 4.7
A33: 26 | B33: 3.725018046 | C33: 3.630772411 | R33: 4.85 | S33: 0 | T33: 0 | U33: 4.8
A34: 27 | B34: 3.640379099 | C34: 3.625191932 | R34: 4.95 | S34: 0 | T34: 0 | U34: 4.9
A35: 28 | B35: 3.636517585 | C35: 3.610805935 | R35: 5.05 | S35: 0 | T35: 0 | U35: 5
A36: 29 | B36: 3.321250291 | C36: 3.51905801 | R36: 5.15 | S36: 0 | T36: 0 | U36: 5.1
A37: 30 | B37: 3.53296162 | C37: 3.503037471 | R37: 5.25 | S37: 0 | T37: 0 | U37: 5.2
A38: 31 | B38: 3.477111859 | C38: 3.602817348 | R38: 5.35 | S38: 0 | T38: 0 | U38: 5.3
A39: 32 | B39: 3.711556884 | C39: 3.571283207 | R39: 5.45 | S39: 0 | T39: 0 | U39: 5.4
A40: 33 | B40: 3.534197244 | C40: 3.535851413 | R40: 5.55 | S40: 0 | T40: 0 | U40: 5.5
A41: 34 | B41: 3.848812351 | C41: 3.647736835
A42: 35 | B42: 3.492565797 | C42: 3.688465907
A43: 36 | B43: 3.54238399 | C43: 3.645795237
A44: 37 | B44: 3.451847244 | C44: 3.595498869
A45: 38 | B45: 3.60081455 | C45: 3.480145127
A46: 39 | B46: 3.653969074 | C46: 3.587930188
A47: 40 | B47: 3.608673889 | C47: 3.555376328
A48: 41 | B48: 3.750034223 | C48: 3.737227916
A49: 42 | B49: 3.577185662 | C49: 3.55334262
A50: 43 | B50: 3.47016879 | C50: 3.533142507
A51: 44 | B51: 3.566533991 | C51: 3.704297577
A52: 45 | B52: 3.442208635 | C52: 3.570274481
A53: 46 | B53: 3.646062847 | C53: 3.655460718
A54: 47 | B54: 3.549808199 | C54: 3.530700519
A55: 48 | B55: 3.631727562 | C55: 3.692924252
A56: 49 | B56: 3.265732527 | C56: 3.628731983
A57: 50 | B57: 3.600374202 | C57: 3.585496926
A58: 51 | B58: 3.778608959 | C58: 3.513861503
A59: 52 | B59: 3.537515519 | C59: 3.584786144
A60: 53 | B60: 3.748301335 | C60: 3.677512891
A61: 54 | B61: 3.919764549 | C61: 3.724758569
A62: 55 | B62: 3.447849693 | C62: 3.568852166
A63: 56 | B63: 3.682507203 | C63: 3.672604199
A64: 57 | B64: 3.827055982 | C64: 3.636782799
A65: 58 | B65: 3.54211141 | C65: 3.549217872
A66: 59 | B66: 3.816486746 | C66: 3.632888077
A67: 60 | B67: 3.521970491 | C67: 3.6671353
A68: 61 | B68: 3.574484522 | C68: 3.59226697
A69: 62 | B69: 3.609208903 | C69: 3.627285684
A70: 63 | B70: 3.79081912 | C70: 3.729117
A71: 64 | B71: 3.631437682 | C71: 3.683561443
A72: 65 | B72: 3.637049158 | C72: 3.583319854
A73: 66 | B73: 3.641966852 | C73: 3.569449687
A74: 67 | B74: 3.671620131 | C74: 3.707195073
A75: 68 | B75: 3.681277176 | C75: 3.624413054
A76: 69 | B76: 4.004357037 | C76: 3.676742082
A77: 70 | B77: 3.423444683 | C77: 3.561597171
A78: 71 | B78: 3.808872843 | C78: 3.542345502
A79: 72 | B79: 3.57754715 | C79: 3.540951333
A80: 73 | B80: 3.449106054 | C80: 3.446519068
A81: 74 | B81: 3.589537734 | C81: 3.480413946
A82: 75 | B82: 3.503721811 | C82: 3.56353441
A83: 76 | B83: 3.853300813 | C83: 3.578871007
A84: 77 | B84: 3.568922146 | C84: 3.641043808
A85: 78 | B85: 3.582473281 | C85: 3.611460979
A86: 79 | B86: 3.654090093 | C86: 3.697373774
A87: 80 | B87: 3.546105462 | C87: 3.4758156
A88: 81 | B88: 3.543507177 | C88: 3.588082548
A89: 82 | B89: 3.557207042 | C89: 3.696498509
A90: 83 | B90: 3.528932975 | C90: 3.579689763
A91: 84 | B91: 3.49224625 | C91: 3.549745998
A92: 85 | B92: 3.831027779 | C92: 3.65858033
A93: 86 | B93: 3.589548619 | C93: 3.548586405
A94: 87 | B94: 3.653752257 | C94: 3.574653402
A95: 88 | B95: 3.364525733 | C95: 3.679611903
A96: 89 | B96: 3.644046679 | C96: 3.554984786
A97: 90 | B97: 3.245873976 | C97: 3.526725534
A98: 91 | B98: 3.568840165 | C98: 3.444194678
A99: 92 | B99: 3.428458492 | C99: 3.577089404
A100: 93 | B100: 3.701279895 | C100: 3.562421099
A101: 94 | B101: 3.84470653 | C101: 3.673920148
A102: 95 | B102: 3.563549016 | C102: 3.497839864
A103: 96 | B103: 3.678923946 | C103: 3.595405783
A104: 97 | B104: 3.57855266 | C104: 3.717596713
A105: 98 | B105: 3.245147256 | C105: 3.522985726
A106: 99 | B106: 3.563942281 | C106: 3.625840051
A107: 100 | B107: 3.59097387 | C107: 3.594375305
A108: 101 | B108: 3.45962073 | C108: 3.500476744
A109: 102 | B109: 3.870493893 | C109: 3.686999983
A110: 103 | B110: 3.851497217 | C110: 3.526293761
A111: 104 | B111: 3.559358176 | C111: 3.529178832
A112: 105 | B112: 3.668572186 | C112: 3.587456746
A113: 106 | B113: 3.657686586 | C113: 3.603442751
A114: 107 | B114: 3.536934173 | C114: 3.56146142
A115: 108 | B115: 3.38630073 | C115: 3.62301701
A116: 109 | B116: 3.516661081 | C116: 3.641108631
A117: 110 | B117: 3.756184317 | C117: 3.529756505
A118: 111 | B118: 3.363962623 | C118: 3.495877847
A119: 112 | B119: 3.510566453 | C119: 3.654587857
A120: 113 | B120: 3.59093974 | C120: 3.591114275
A121: 114 | B121: 3.533937705 | C121: 3.617573506
A122: 115 | B122: 3.593556721 | C122: 3.621267187
A123: 116 | B123: 3.521042409 | C123: 3.582792797
A124: 117 | B124: 3.663132445 | C124: 3.748350386
A125: 118 | B125: 3.783488409 | C125: 3.648250844
A126: 119 | B126: 3.631963145 | C126: 3.604995916
A127: 120 | B127: 3.443855243 | C127: 3.607771429
A128: 121 | B128: 3.725461575 | C128: 3.555795209
A129: 122 | B129: 3.469869162 | C129: 3.493176122
A130: 123 | B130: 3.693557581 | C130: 3.784389178
A131: 124 | B131: 3.479552627 | C131: 3.516371201
A132: 125 | B132: 3.691100232 | C132: 3.666169089
A133: 126 | B133: 3.705454113 | C133: 3.632979827
A134: 127 | B134: 3.44717601 | C134: 3.557695714
A135: 128 | B135: 3.651669254 | C135: 3.53474583
A136: 129 | B136: 3.728145814 | C136: 3.623286452
A137: 130 | B137: 3.908415031 | C137: 3.658752228
A138: 131 | B138: 4.085014384 | C138: 3.648771993
A139: 132 | B139: 3.73621702 | C139: 3.686453121
A140: 133 | B140: 3.874593052 | C140: 3.652931831
A141: 134 | B141: 3.540487001 | C141: 3.633243046
A142: 135 | B142: 3.214567526 | C142: 3.517812011
A143: 136 | B143: 3.485064061 | C143: 3.551317519
A144: 137 | B144: 3.459826392 | C144: 3.549699455
A145: 138 | B145: 3.428158137 | C145: 3.427561356
A146: 139 | B146: 3.755179457 | C146: 3.745553936
A147: 140 | B147: 3.688098464 | C147: 3.594977462
A148: 141 | B148: 3.39188141 | C148: 3.537893368
A149: 142 | B149: 3.702206868 | C149: 3.624512714
A150: 143 | B150: 3.559886513 | C150: 3.596920255
A151: 144 | B151: 3.722865714 | C151: 3.647554198
A152: 145 | B152: 3.572565482 | C152: 3.638606155
A153: 146 | B153: 3.429398135 | C153: 3.598742483
A154: 147 | B154: 3.212712681 | C154: 3.665930084
A155: 148 | B155: 3.504509527 | C155: 3.567113227
A156: 149 | B156: 3.289409921 | C156: 3.490211321
A157: 150 | B157: 3.261780932 | C157: 3.519470941
A158: 151 | B158: 3.551796285 | C158: 3.62812203
A159: 152 | B159: 3.526313289 | C159: 3.569079546
A160: 153 | B160: 3.531661297 | C160: 3.684957241
A161: 154 | B161: 3.649967596 | C161: 3.540515909
A162: 155 | B162: 3.607291777 | C162: 3.659777894
A163: 156 | B163: 3.873121039 | C163: 3.645322145
A164: 157 | B164: 3.600129145 | C164: 3.591571506
A165: 158 | B165: 3.418382776 | C165: 3.633480321
A166: 159 | B166: 3.723425205 | C166: 3.685633994
A167: 160 | B167: 3.70013083 | C167: 3.602659012
A168: 161 | B168: 3.505763569 | C168: 3.591582086
A169: 162 | B169: 3.55233082 | C169: 3.531745135
A170: 163 | B170: 3.689848053 | C170: 3.5699663
A171: 164 | B171: 3.65148083 | C171: 3.65734899
A172: 165 | B172: 3.58083446 | C172: 3.474216082
A173: 166 | B173: 3.615730623 | C173: 3.540259461
A174: 167 | B174: 3.734862706 | C174: 3.611688166
A175: 168 | B175: 3.579638825 | C175: 3.750685192
A176: 169 | B176: 3.827684207 | C176: 3.664182162
A177: 170 | B177: 3.603782419 | C177: 3.610005006
A178: 171 | B178: 3.776857813 | C178: 3.780906649
A179: 172 | B179: 3.575479515 | C179: 3.642883953
A180: 173 | B180: 3.635489354 | C180: 3.594154383
A181: 174 | B181: 3.729514841 | C181: 3.582458805
A182: 175 | B182: 3.507508581 | C182: 3.696268471
A183: 176 | B183: 3.512924953 | C183: 3.615507474
A184: 177 | B184: 3.662062882 | C184: 3.515291867
A185: 178 | B185: 3.366804615 | C185: 3.495305812
A186: 179 | B186: 3.581407134 | C186: 3.674279363
A187: 180 | B187: 3.772934009 | C187: 3.556830915
A188: 181 | B188: 3.417677601 | C188: 3.485478435
A189: 182 | B189: 3.689481593 | C189: 3.634931396
A190: 183 | B190: 3.674084212 | C190: 3.526526825
A191: 184 | B191: 3.596040743 | C191: 3.668185821
A192: 185 | B192: 3.705561083 | C192: 3.587810366
A193: 186 | B193: 3.459584074 | C193: 3.554681453
A194: 187 | B194: 3.890977062 | C194: 3.70336225
A195: 188 | B195: 3.69925568 | C195: 3.608487443
A196: 189 | B196: 3.488847258 | C196: 3.604671126
A197: 190 | B197: 3.692954549 | C197: 3.611506663
A198: 191 | B198: 3.468241341 | C198: 3.697453817
A199: 192 | B199: 3.559574957 | C199: 3.608208902
A200: 193 | B200: 3.795702784 | C200: 3.623385521
... 807 more rows

Sheet samples crv
A1: Population Statistics | D1: Sample of size N=10 | F1: mean = | G1: =AVERAGE(G6:G15) -> 3.657176038 | J1: Sample of size N=50 | L1: mean = | M1: =AVERAGE(M6:M55) -> 3.525564759 | P1: Sample of size N=10
F2: stdev = | G2: =STDEV(G6:G15) -> 0.4479783978 | L2: stdev = | M2: =STDEV(M6:M55) -> 0.5184280487 | P2: Fitted LP3 distribution
A3: mean | B3: =mean -> 3.6 | F3: skew = | G3: =SKEW(G6:G15) -> 0.8466497911 | L3: skew = | M3: =SKEW(M6:M55) -> 0.1157128737 | Q3: Zp | R3: Kpg | S3: log flow | T3: flow | AF3: Plotting positions for N=10 sample | AK3: Plotting positions for N=50 sample
A4: st.dev. | B4: =stdev -> 0.5 | P4: 0.99 | Q4: =NORMSINV(1-P4) -> -2.326347874 | R4: =2/$G$3*(((Q4-$G$3/6)*$G$3/6+1)^3-1) -> -1.708049383 | S4: =$G$1+$G$2*R4 -> 2.892006812 | T4: =10^S4 -> 779.8423422
A5: skew | B5: ='samples mean'!B6 -> 0.0001 | E5: U[0,1] | F5: Kg | G5: log flow | H5: flow | K5: U[0,1] | L5: Kg | M5: log flow | N5: flow | P5: 0.95 | Q5: =NORMSINV(1-P5) -> -1.644853627 | R5: =2/$G$3*(((Q5-$G$3/6)*$G$3/6+1)^3-1) -> -1.373683887 | S5: =$G$1+$G$2*R5 -> 3.041795331 | T5: =10^S5 -> 1101.020311
D6: 1 | E6: =RAND() -> 0.1432896972 | F6: =2/skew*(((NORMSINV(E6)-skew/6)*skew/6+1)^3-1) -> -1.054578354 | G6: =mean+stdev*F6 -> 3.072710823 | H6: =10^G6 -> 1182.254084 | I6: 0.1 | J6: 1 | K6: =E6 -> 0.1432896972 | L6: =2/skew*(((NORMSINV(K6)-skew/6)*skew/6+1)^3-1) -> -1.054578354 | M6: =mean+stdev*L6 -> 3.072710823 | N6: =10^M6 -> 1182.254084 | O6: 0.2 | P6: 0.9 | Q6: -1.281551566 | R6: -1.156173321 | S6: 3.139235366 | T6: 1377.95605 | AF6: 1 | AG6: =AF6/11 -> 0.09090909091 | AH6: =NORMSINV(1-AG6) -> 1.335177736 | AI6: =LARGE($H$6:$H$15,AF6) -> 35601.00496 | AK6: 1 | AL6: =AK6/51 -> 0.01960784314 | AM6: =NORMSINV(1-AL6) -> 2.061916501 | AN6: =LARGE($N$6:$N$55,AK6) -> 35601.00496
D7: 2 | E7: =RAND() -> 0.9637569872 | F7: =2/skew*(((NORMSINV(E7)-skew/6)*skew/6+1)^3-1) -> 1.902924515 | G7: 4.551462258 | H7: =10^G7 -> 35601.00496 | I7: 0.1 | J7: 2 | K7: =E7 -> 0.9637569872 | L7: 1.902924515 | M7: 4.551462258 | N7: =10^M7 -> 35601.00496 | O7: 0.2 | P7: 0.8 | Q7: -0.8416212336 | R7: -0.852752365 | S7: 3.2751614 | T7: 1884.349252 | AF7: 2 | AG7: =AF7/11 -> 0.1818181818 | AH7: =NORMSINV(1-AG7) -> 0.9084578685 | AI7: =LARGE($H$6:$H$15,AF7) -> 14154.66804 | AK7: 2 | AL7: =AK7/51 -> 0.03921568627 | AM7: =NORMSINV(1-AL7) -> 1.759861028 | AN7: =LARGE($N$6:$N$55,AK7) -> 34986.18655
D8: 3 | E8: 0.6194081631 | F8: 0.2571643659 | G8: 3.728582183 | H8: 5352.814372 | I8: 0.1 | J8: 3 | K8: 0.6194081631 | L8: 0.2571643659 | M8: 3.728582183 | N8: 5352.814372 | O8: 0.2 | P8: 0.7 | Q8: -0.5244005127 | R8: -0.604968011 | S8: 3.386163437 | T8: 2433.119489 | AF8: 3 | AG8: 0.2727272727 | AH8: 0.6045853466 | AI8: 8692.43172 | AK8: 3 | AL8: 0.05882352941 | AM8: 1.564726471 | AN8: 31179.0245
D9: 4 | E9: 0.4022984755 | F9: -0.2930017431 | G9: 3.453499128 | H9: 2841.182483 | I9: 0.1 | J9: 4 | K9: 0.4022984755 | L9: -0.2930017431 | M9: 3.453499128 | N9: 2841.182483 | O9: 0.2 | P9: 0.6 | Q9: -0.2533471031 | R9: -0.3729070062 | S9: 3.490121755 | T9: 3091.161919 | V9: 0 | W9: =G1 -> 3.657176038 | X9: =M1 -> 3.525564759 | Y9: 3.6 | AF9: 4 | AG9: 0.3636363636 | AH9: 0.3487556955 | AI9: 5352.814372 | AK9: 4 | AL9: 0.07843137255 | AM9: 1.415702094 | AN9: 27046.26473
D10: 5 | E10: 0.7600605504 | F10: 0.6782825759 | G10: 3.939141288 | H10: 8692.43172 | I10: 0.1 | J10: 5 | K10: 0.7600605504 | L10: 0.6782825759 | M10: 3.939141288 | N10: 8692.43172 | O10: 0.2 | P10: 0.5 | Q10: 0 | R10: -0.1383172617 | S10: 3.595212892 | T10: 3937.430422 | V10: 0.9 | W10: =W9 -> 3.657176038 | X10: =X9 -> 3.525564759 | Y10: =Y9 -> 3.6 | AF10: 5 | AG10: 0.4545454545 | AH10: 0.1141852943 | AI10: 4002.850864 | AK10: 5 | AL10: 0.09803921569 | AM10: 1.292805229 | AN10: 18539.94592
D11: 6 | E11: 0.3980922595 | F11: -0.3035605028 | G11: 3.448219749 | H11: 2806.853518 | I11: 0.1 | J11: 6 | K11: 0.3980922595 | L11: -0.3035605028 | M11: 3.448219749 | N11: 2806.853518 | O11: 0.2 | P11: 0.4 | Q11: 0.2533471031 | R11: 0.1140258079 | S11: 3.708257136 | T11: 5108.073486 | AF11: 6 | AG11: 0.5454545455 | AH11: -0.1141852943 | AI11: 2841.182483 | AK11: 6 | AL11: 0.1176470588 | AM11: 1.186831433 | AN11: 14154.66804
D12: 7 | E12: 0.8634882497 | F12: 1.101799377 | G12: 4.150899689 | H12: 14154.66804 | I12: 0.1 | J12: 7 | K12: 0.8634882497 | L12: 1.101799377 | M12: 4.150899689 | N12: 14154.66804 | O12: 0.2 | P12: 0.3 | Q12: 0.5244005127 | R12: 0.4043965902 | S12: 3.838336974 | T12: 6891.868373 | AF12: 7 | AG12: 0.6363636364 | AH12: -0.3487556955 | AI12: 2806.853518 | AK12: 7 | AL12: 0.137254902 | AM12: 1.092735829 | AN12: 13952.37364
D13: 8 | E13: 0.3486270138 | F13: -0.4294630564 | G13: 3.385268472 | H13: 2428.110639 | I13: 0.1 | J13: 8 | K13: 0.3486270138 | L13: -0.4294630564 | M13: 3.385268472 | N13: 2428.110639 | O13: 0.2 | P13: 0.2 | Q13: 0.8416212336 | R13: 0.7720389319 | S13: 4.003032801 | T13: 10070.07723 | AF13: 8 | AG13: 0.7272727273 | AH13: -0.6045853466 | AI13: 2428.110639 | AK13: 8 | AL13: 0.1568627451 | AM13: 1.007435601 | AN13: 12696.89545
D14: 9 | E14: 0.5218262817 | F14: 0.004738819345 | G14: 3.60236941 | H14: 4002.850864 | I14: 0.1 | J14: 9 | K14: 0.5218262817 | L14: 0.004738819345 | M14: 3.60236941 | N14: 4002.850864 | O14: 0.2 | P14: 0.1 | Q14: 1.281551566 | R14: 1.333815005 | S14: 4.254696347 | T14: 17976.13607 | AF14: 9 | AG14: 0.8181818182 | AH14: -0.9084578685 | AI14: 1736.230491 | AK14: 9 | AL14: 0.1764705882 | AM14: 0.9288994916 | AN14: 12654.14639
D15: 10 | E15: 0.2424496879 | F15: -0.7207852422 | G15: 3.239607379 | H15: 1736.230491 | I15: 0.1 | J15: 10 | K15: 0.2424496879 | L15: -0.7207852422 | M15: 3.239607379 | N15: 1736.230491 | O15: 0.2 | P15: 0.05 | Q15: 1.644853627 | R15: 1.84539518 | S15: 4.483873214 | T15: 30470.05328 | AF15: 10 | AG15: 0.9090909091 | AH15: -1.335177736 | AI15: 1182.254084 | AK15: 10 | AL15: 0.1960784314 | AM15: 0.8557124306 | AN15: 11653.09079
J16: 11 | K16: =RAND() -> 0.3450010948 | L16: -0.4388540418 | M16: 3.380572979 | N16: 2401.999867 | O16: 0.2 | P16: 0.02 | Q16: 2.053748911 | R16: 2.475281278 | S16: 4.766048579 | T16: 58351.03701 | AK16: 11 | AL16: 0.2156862745 | AM16: 0.7868450995 | AN16: 8692.43172
J17: 12 | K17: 0.3158879907 | L17: -0.515348016 | M17: 3.342325992 | N17: 2199.510259 | O17: 0.2 | P17: 0.01 | Q17: 2.326347874 | R17: 2.92832985 | S17: 4.969004552 | T17: 93111.76348 | AK17: 12 | AL17: 0.2352941176 | AM17: 0.721522284 | AN17: 8085.282129
J18: 13 | K18: 0.1353520806 | L18: -1.086423589 | M18: 3.056788205 | N18: 1139.693852 | O18: 0.2 | P18: 0.005 | Q18: 2.575829304 | R18: 3.366984633 | S18: 5.165512419 | T18: 146390.3398 | AK18: 13 | AL18: 0.2549019608 | AM18: 0.6591430371 | AN18: 7031.727771
J19: 14 | K19: 0.4423627394 | L19: -0.1930867873 | M19: 3.503456606 | N19: 3187.547068 | O19: 0.2 | P19: 0.002 | Q19: 2.878161739 | R19: 3.930253173 | S19: 5.417844557 | T19: 261724.6074 | AK19: 14 | AL19: 0.2745098039 | AM19: 0.5992298681 | AN19: 6459.745068
J20: 15 | K20: 0.4793448182 | L20: -0.1012807534 | M20: 3.549359623 | N20: 3542.905947 | O20: 0.2 | AK20: 15 | AL20: 0.2941176471 | AM20: 0.5413950851 | AN20: 6280.718611
J21: 16 | K21: 0.01169878747 | L21: -2.058847175 | M21: 2.570576413 | N21: 372.0286726 | O21: 0.2 | P21: Sample of size N=50 | AK21: 16 | AL21: 0.3137254902 | AM21: 0.4853177303 | AN21: 5661.56791
J22: 17 | K22: 0.3674784473 | L22: -0.38103994 | M22: 3.40948003 | N22: 2567.320153 | O22: 0.2 | P22: Fitted LP3 distribution | AK22: 17 | AL22: 0.3333333333 | AM22: 0.4307272993 | AN22: 5352.814372
J23: 18 | K23: 0.3852517378 | L23: -0.3359111385 | M23: 3.432044431 | N23: 2704.235008 | O23: 0.2 | Q23: Zp | R23: Kpg | S23: log flow | T23: flow | AK23: 18 | AL23: 0.3529411765 | AM23: 0.3773919438 | AN23: 4684.095259
J24: 19 | K24: 0.5044794886 | L24: -0.03869623886 | M24: 3.580651881 | N24: 3807.604931 | O24: 0.2 | P24: 0.99 | Q24: =NORMSINV(1-P24) -> -2.326347874 | R24: =2/$M$3*(((Q24-$M$3/6)*$M$3/6+1)^3-1) -> -2.241124728 | S24: =$M$1+$M$2*R24 -> 2.363702839 | T24: =10^S24 -> 231.0483327 | AK24: 19 | AL24: 0.3725490196 | AM24: 0.3251097114 | AN24: 4205.443324
J25: 20 | K25: 0.05108054186 | L25: -1.546577495 | M25: 2.826711253 | N25: 670.9825914 | O25: 0.2 | P25: 0.95 | Q25: -1.644853627 | R25: =2/$M$3*(((Q25-$M$3/6)*$M$3/6+1)^3-1) -> -1.61130205 | S25: =$M$1+$M$2*R25 -> 2.690220581 | T25: =10^S25 -> 490.0276445 | AK25: 20 | AL25: 0.3921568627 | AM25: 0.2737018896 | AN25: 4002.850864
J26: 21 | K26: 0.1215406918 | L26: -1.144729379 | M26: 3.027635311 | N26: 1065.700846 | O26: 0.2 | P26: 0.9 | Q26: -1.281551566 | R26: -1.268475503 | S26: 2.867951479 | T26: 737.821793 | AK26: 21 | AL26: 0.4117647059 | AM26: 0.2230078309 | AN26: 3975.679248
J27: 22 | K27: 0.1533035536 | L27: -1.015896349 | M27: 3.092051826 | N27: 1236.094932 | O27: 0.2 | P27: 0.8 | Q27: -0.8416212336 | R27: -0.8466921856 | S27: 3.086615781 | T27: 1220.719216 | AK27: 22 | AL27: 0.431372549 | AM27: 0.1728808328 | AN27: 3950.760318
J28: 23 | K28: 0.8610013345 | L28: 1.089296196 | M28: 4.144648098 | N28: 13952.37364 | O28: 0.2 | P28: 0.7 | Q28: -0.5244005127 | R28: -0.5380052353 | S28: 3.246647754 | T28: 1764.606012 | AK28: 23 | AL28: 0.4509803922 | AM28: 0.1231847715 | AN28: 3807.604931
J29: 24 | K29: 0.07063057025 | L29: -1.408354869 | M29: 2.895822565 | N29: 786.7243014 | O29: 0.2 | P29: 0.6 | Q29: -0.2533471031 | R29: -0.2712016332 | S29: 3.384966225 | T29: 2426.421387 | AK29: 24 | AL29: 0.4705882353 | AM29: 0.07379127381 | AN29: 3542.905947
J30: 25 | K30: 0.6694612833 | L30: 0.3960186731 | M30: 3.798009337 | N30: 6280.718611 | O30: 0.2 | P30: 0.5 | Q30: 0 | R30: -0.019278307 | S30: 3.515570344 | T30: 3277.708624 | AK30: 25 | AL30: 0.4901960784 | AM30: 0.02457726106 | AN30: 3187.547068
J31: 26 | K31: 0.5388395482 | L31: 0.04762356882 | M31: 3.623811784 | N31: 4205.443324 | O31: 0.2 | P31: 0.4 | Q31: 0.2533471031 | R31: 0.2351197659 | S31: 3.64745744 | T31: 4440.76141 | AK31: 26 | AL31: 0.5098039216 | AM31: -0.02457726106 | AN31: 2841.182483
J32: 27 | K32: 0.5754494245 | L32: 0.1412514372 | M32: 3.670625719 | N32: 4684.095259 | O32: 0.2 | P32: 0.3 | Q32: 0.5244005127 | R32: 0.5100515315 | S32: 3.789989779 | T32: 6165.804908 | AK32: 27 | AL32: 0.5294117647 | AM32: -0.07379127381 | AN32: 2808.988012
J33: 28 | K33: 0.7413037978 | L33: 0.6153903576 | M33: 3.907695179 | N33: 8085.282129 | O33: 0.2 | P33: 0.2 | Q33: 0.8416212336 | R33: 0.8354462341 | S33: 3.95868352 | T33: 9092.504399 | AK33: 28 | AL33: 0.5490196078 | AM33: -0.1231847715 | AN33: 2806.853518
J34: 29 | K34: 0.398355083 | L34: -0.3029002285 | M34: 3.448549886 | N34: 2808.988012 | O34: 0.2 | P34: 0.1 | Q34: 1.281551566 | R34: 1.293243283 | S34: 4.19601835 | T34: 15704.29159 | AK34: 29 | AL34: 0.568627451 | AM34: -0.1728808328 | AN34: 2704.235008
J35: 30 | K35: 0.7027738769 | L35: 0.4941240979 | M35: 3.847062049 | N35: 7031.727771 | O35: 0.2 | P35: 0.05 | Q35: 1.644853627 | R35: 1.677062026 | S35: 4.395000753 | T35: 24831.37408 | AK35: 30 | AL35: 0.5882352941 | AM35: -0.2230078309 | AN35: 2692.840067
J36: 31 | K36: 0.6779198481 | L36: 0.420430758 | M36: 3.810215379 | N36: 6459.745068 | O36: 0.2 | P36: 0.02 | Q36: 2.053748911 | R36: 2.115330802 | S36: 4.622211579 | T36: 41899.76419 | AK36: 31 | AL36: 0.6078431373 | AM36: -0.2737018896 | AN36: 2567.320153
J37: 32 | K37: 0.05537438296 | L37: -1.513270686 | M37: 2.843364657 | N37: 697.2116851 | O37: 0.2 | P37: 0.01 | Q37: 2.326347874 | R37: 2.411232429 | S37: 4.775615282 | T37: 59650.66398 | AK37: 32 | AL37: 0.6274509804 | AM37: -0.3251097114 | AN37: 2428.110639
J38: 33 | K38: 0.1177968453 | L38: =2/skew*(((NORMSINV(K38)-skew/6)*skew/6+1)^3-1) -> -1.161252496 | M38: =mean+stdev*L38 -> 3.019373752 | N38: 1045.619688 | O38: 0.2 | P38: 0.005 | Q38: 2.575829304 | R38: 2.68466367 | S38: 4.917369707 | T38: 82674.14398 | AK38: 33 | AL38: 0.6470588235 | AM38: -0.3773919438 | AN38: 2401.999867
J39: 34 | K39: 0.008746456348 | L39: -2.143763884 | M39: 2.528118058 | N39: 337.379009 | O39: 0.2 | P39: 0.002 | Q39: 2.878161739 | R39: 3.019396673 | S39: 5.090904684 | T39: 123283.4231 | AK39: 34 | AL39: 0.6666666667 | AM39: -0.4307272993 | AN39: 2199.510259
J40: 35 | K40: 0.2675605667 | L40: -0.6479995363 | M40: 3.276000232 | N40: 1887.992357 | O40: 0.2 | AK40: 35 | AL40: 0.6862745098 | AM40: -0.4853177303 | AN40: 1887.992357
J41: 36 | K41: 0.3838008264 | L41: -0.3395788789 | M41: 3.430210561 | N41: 2692.840067 | O41: 0.2 | AK41: 36 | AL41: 0.7058823529 | AM41: -0.5413950851 | AN41: 1864.451521
J42: 37 | K42: 0.0924089843 | L42: -1.283559157 | M42: 2.958220422 | N42: 908.2814018 | O42: 0.2 | AK42: 37 | AL42: 0.7254901961 | AM42: -0.5992298681 | AN42: 1736.230491
J43: 38 | K43: 0.8432388466 | L43: 1.004465708 | M43: 4.102232854 | N43: 12654.14639 | O43: 0.2 | AK43: 38 | AL43: 0.7450980392 | AM43: -0.6591430371 | AN43: 1236.094932
J44: 39 | K44: 0.8438783439 | L44: 1.007395087 | M44: 4.103697544 | N44: 12696.89545 | O44: 0.2 | AK44: 39 | AL44: 0.7647058824 | AM44: -0.721522284 | AN44: 1182.254084
J45: 40 | K45: 0.9552622266 | L45: 1.787725047 | M45: 4.493862523 | N45: 31179.0245 | O45: 0.2 | AK45: 40 | AL45: 0.7843137255 | AM45: -0.7868450995 | AN45: 1139.693852
J46: 41 | K46: 0.637322562 | L46: 0.3058734421 | M46: 3.752936721 | N46: 5661.56791 | O46: 0.2 | AK46: 41 | AL46: 0.8039215686 | AM46: -0.8557124306 | AN46: 1065.700846
J47: 42 | K47: 0.9627269375 | L47: 1.887793215 | M47: 4.543896607 | N47: 34986.18655 | O47: 0.2 | AK47: 42 | AL47: 0.8235294118 | AM47: -0.9288994916 | AN47: 1045.619688
J48: 43 | K48: 0.9443338821 | L48: 1.664214589 | M48: 4.432107295 | N48: 27046.26473 | O48: 0.2 | AK48: 43 | AL48: 0.8431372549 | AM48: -1.007435601 | AN48: 919.7827404
J49: 44 | K49: 0.5172923842 | L49: -0.006638633912 | M49: 3.596680683 | N49: 3950.760318 | O49: 0.2 | AK49: 44 | AL49: 0.862745098 | AM49: -1.092735829 | AN49: 908.2814018
J50: 45 | K50: 0.9041768921 | L50: 1.336216926 | M50: 4.268108463 | N50: 18539.94592 | O50: 0.2 | AK50: 45 | AL50: 0.8823529412 | AM50: -1.186831433 | AN50: 786.7243014
J51: 46 | K51: 0.8270227363 | L51: 0.9328822601 | M51: 4.06644113 | N51: 11653.09079 | O51: 0.2 | AK51: 46 | AL51: 0.9019607843 | AM51: -1.292805229 | AN51: 697.2116851
J52: 47 | K52: 0.5194696676 | L52: -0.00117732228 | M52: 3.599411339 | N52: 3975.679248 | O52: 0.2 | AK52: 47 | AL52: 0.9215686275 | AM52: -1.415702094 | AN52: 670.9825914
J53: 48 | K53: 0.09451236779 | L53: -1.272629488 | M53: 2.963685256 | N53: 919.7827404 | O53: 0.2 | AK53: 48 | AL53: 0.9411764706 | AM53: -1.564726471 | AN53: 372.0286726
J54: 49 | K54: 0.009468007273 | L54: -2.121032342 | M54: 2.539483829 | N54: 346.3249891 | O54: 0.2 | AK54: 49 | AL54: 0.9607843137 | AM54: -1.759861028 | AN54: 346.3249891
J55: 50 | K55: 0.2637320792 | L55: -0.6588978093 | M55: 3.270551095 | N55: 1864.451521 | O55: 0.2 | AK55: 50 | AL55: 0.9803921569 | AM55: -2.061916501 | AN55: 337.379009

Sheet samples skew
A2: Population Statistics | D2: Sample of size N=10 | F2: skew = | G2: =SKEW(G5:G14) -> -0.5071016682 | J2: Sample of size N=50 | L2: skew = | M2: =SKEW(M5:M54) -> -0.01684593343 | Z2: Sample of size N=500 | AB2: mean = | AC2: =AVERAGE(AC5:AC504) -> 3.558587454
Q3: 10 | R3: 50
A4: mean | B4: =mean -> 3.6 | E4: U[0,1] | F4: Kg | G4: log flow | H4: flow | K4: U[0,1] | L4: Kg | M4: log flow | N4: flow | Q4: =G2 -> -0.5071016682 | R4: =M2 -> -0.01684593343 | AA4: U[0,1] | AB4: Kg | AC4: log flow | AD4: flow
A5: st.dev. | B5: =stdev -> 0.5 | D5: 1 | E5: =RAND() -> 0.6221958157 | F5: =2/skew*(((NORMSINV(E5)-skew/6)*skew/6+1)^3-1) -> 0.3112378501 | G5: =mean+stdev*F5 -> 3.755618925 | H5: =10^G5 -> 5696.641968 | I5: 0.1 | J5: 1 | K5: =E5 -> 0.6221958157 | L5: =2/skew*(((NORMSINV(K5)-skew/6)*skew/6+1)^3-1) -> 0.3112378501 | M5: =mean+stdev*L5 -> 3.755618925 | N5: =10^M5 -> 5696.641968 | O5: 0.2 | Z5: 1 | AA5: =K5 -> 0.6221958157 | AB5: =2/skew*(((NORMSINV(AA5)-skew/6)*skew/6+1)^3-1) -> 0.3112378501 | AC5: =mean+stdev*AB5 -> 3.755618925 | AD5: =10^AC5 -> 5696.641968 | AE5: 0.3
A6: skew | B6: =skew -> 0.0001 | D6: 2 | E6: =RAND() -> 0.1768487051 | F6: -0.9274437185 | G6: 3.136278141 | H6: =10^G6 -> 1368.605058 | I6: 0.1 | J6: 2 | K6: =E6 -> 0.1768487051 | L6: -0.9274437185 | M6: 3.136278141 | N6: =10^M6 -> 1368.605058 | O6: 0.2 | Z6: 2 | AA6: =K6 -> 0.1768487051 | AB6: -0.9274437185 | AC6: 3.136278141 | AD6: =10^AC6 -> 1368.605058 | AE6: 0.3
D7: 3 | E7: 0.09071055895 | F7: -1.33637909 | G7: 2.931810455 | H7: 854.6936061 | I7: 0.1 | J7: 3 | K7: 0.09071055895 | L7: -1.33637909 | M7: 2.931810455 | N7: 854.6936061 | O7: 0.2 | Z7: 3 | AA7: 0.09071055895 | AB7: -1.33637909 | AC7: 2.931810455 | AD7: 854.6936061 | AE7: 0.3
D8: 4 | E8: 0.5349064052 | F8: 0.08759278733 | G8: 3.643796394 | H8: 4403.483706 | I8: 0.1 | J8: 4 | K8: 0.5349064052 | L8: 0.08759278733 | M8: 3.643796394 | N8: 4403.483706 | O8: 0.2 | Z8: 4 | AA8: 0.5349064052 | AB8: 0.08759278733 | AC8: 3.643796394 | AD8: 4403.483706 | AE8: 0.3
D9: 5 | E9: 0.3787098054 | F9: -0.3088861379 | G9: 3.445556931 | H9: 2789.69633 | I9: 0.1 | J9: 5 | K9: 0.3787098054 | L9: -0.3088861379 | M9: 3.445556931 | N9: 2789.69633 | O9: 0.2 | Z9: 5 | AA9: 0.3787098054 | AB9: -0.3088861379 | AC9: 3.445556931 | AD9: 2789.69633 | AE9: 0.3
D10: 6 | E10: 0.08111880567 | F10: -1.397569491 | G10: 2.901215254 | H10: 796.5540577 | I10: 0.1 | J10: 6 | K10: 0.08111880567 | L10: -1.397569491 | M10: 2.901215254 | N10: 796.5540577 | O10: 0.2 | Q10: 0 | R10: =G2 -> -0.5071016682 | S10: =M2 -> -0.01684593343 | T10: 3.6 | Z10: 6 | AA10: 0.08111880567 | AB10: -1.397569491 | AC10: 2.901215254 | AD10: 796.5540577 | AE10: 0.3
D11: 7 | E11: 0.8187029453 | F11: 0.9104303215 | G11: 4.055215161 | H11: 11355.73269 | I11: 0.1 | J11: 7 | K11: 0.8187029453 | L11: 0.9104303215 | M11: 4.055215161 | N11: 11355.73269 | O11: 0.2 | Q11: 3 | R11: =R10 -> -0.5071016682 | S11: =S10 -> -0.01684593343 | T11: =T10 -> 3.6 | Z11: 7 | AA11: 0.8187029453 | AB11: 0.9104303215 | AC11: 4.055215161 | AD11: 11355.73269 | AE11: 0.3
D12: 8 | E12: 0.7515231993 | F12: 0.67928186 | G12: 3.93964093 | H12: 8702.437842 | I12: 0.1 | J12: 8 | K12: 0.7515231993 | L12: 0.67928186 | M12: 3.93964093 | N12: 8702.437842 | O12: 0.2 | Z12: 8 | AA12: 0.7515231993 | AB12: 0.67928186 | AC12: 3.93964093 | AD12: 8702.437842 | AE12: 0.3
D13: 9 | E13: 0.7516893662 | F13: 0.6798065723 | G13: 3.939903286 | H13: 8707.69655 | I13: 0.1 | J13: 9 | K13: 0.7516893662 | L13: 0.6798065723 | M13: 3.939903286 | N13: 8707.69655 | O13: 0.2 | R13: 10 | S13: 50 | T13: 10 | U13: 50 | X13: 500 | Z13: 9 | AA13: 0.7516893662 | AB13: 0.6798065723 | AC13: 3.939903286 | AD13: 8707.69655 | AE13: 0.3
D14: 10 | E14: 0.5398354012 | F14: 0.1000025549 | G14: 3.650001277 | H14: 4466.849061 | I14: 0.1 | J14: 10 | K14: 0.5398354012 | L14: 0.1000025549 | M14: 3.650001277 | N14: 4466.849061 | O14: 0.2 | Q14: 2.125 | R14: =FREQUENCY(G5:G14,$Q14:$Q28) -> 0 | S14: =FREQUENCY(M5:M54,$Q14:$Q28) -> 0 | T14: =R14/R$13/($Q$15-$Q$14) -> 0 | U14: =S14/S$13/($Q$15-$Q$14) -> 0 | V14: 2 | X14: =FREQUENCY(AC5:AC504,$Q14:$Q28) -> 1 | Y14: =X14/X$29/($Q$15-$Q$14) -> 0.008 | Z14: 10 | AA14: 0.5398354012 | AB14: 0.1000025549 | AC14: 3.650001277 | AD14: 4466.849061 | AE14: 0.3
J15: 11 | K15: =RAND() -> 0.2413858517 | L15: -0.7018600757 | M15: 3.249069962 | N15: 1774.475315 | O15: 0.2 | Q15: 2.375 | R15: 0 | S15: 0 | T15: =R15/R$13/($Q$15-$Q$14) -> 0 | U15: 0 | V15: =AVERAGE(Q14:Q15) -> 2.25 | W15: =interp('"actual" curve'!$V$3:$V$205,'"actual" curve'!$X$3:$X$205,'samples skew'!V15) -> 0.03176706997 | X15: 6 | Y15: =X15/X$29/($Q$15-$Q$14) -> 0.048 | Z15: 11 | AA15: 0.2413858517 | AB15: -0.7018600757 | AC15: 3.249069962 | AD15: 1774.475315 | AE15: 0.3
J16: 12 | K16: 0.4846833219 | L16: -0.03841929756 | M16: 3.580790351 | N16: 3808.819143 | O16: 0.2 | Q16: 2.625 | R16: 0 | S16: 1 | T16: 0 | U16: 0.08 | V16: =AVERAGE(Q15:Q16) -> 2.5 | W16: =interp('"actual" curve'!$V$3:$V$205,'"actual" curve'!$X$3:$X$205,'samples skew'!V16) -> 0.08174785188 | X16: 12 | Y16: 0.096 | Z16: 12 | AA16: 0.4846833219 | AB16: -0.03841929756 | AC16: 3.580790351 | AD16: 3808.819143 | AE16: 0.3
J17: 13 | K17: 0.7079003147 | L17: 0.5472494159 | M17: 3.873624708 | N17: 7475.232552 | O17: 0.2 | Q17: 2.875 | R17: 0 | S17: 2 | T17: 0 | U17: 0.16 | V17: 2.75 | W17: =interp('"actual" curve'!$V$3:$V$205,'"actual" curve'!$X$3:$X$205,'samples skew'!V17) -> 0.1964351732 | X17: 26 | Y17: 0.208 | Z17: 13 | AA17: 0.7079003147 | AB17: 0.5472494159 | AC17: 3.873624708 | AD17: 7475.232552 | AE17: 0.3
J18: 14 | K18: 0.4634854375 | L18: -0.0916731333 | M18: 3.554163433 | N18: 3582.31221 | O18: 0.2 | Q18: 3.125 | R18: 2 | S18: 7 | T18: 0.8 | U18: 0.56 | V18: 3 | W18: =interp('"actual" curve'!$V$3:$V$205,'"actual" curve'!$X$3:$X$205,'samples skew'!V18) -> 0.394312677 | X18: 47 | Y18: 0.376 | Z18: 14 | AA18: 0.4634854375 | AB18: -0.0916731333 | AC18: 3.554163433 | AD18: 3582.31221 | AE18: 0.3
J19: 15 | K19: 0.8691935385 | L19: 1.122591374 | M19: 4.161295687 | N19: 14497.58578 | O19: 0.2 | Q19: 3.375 | R19: 1 | S19: 7 | T19: 0.4 | U19: 0.56 | V19: 3.25 | W19: =interp('"actual" curve'!$V$3:$V$205,'"actual" curve'!$X$3:$X$205,'samples skew'!V19) -> 0.6279832843 | X19: 86 | Y19: 0.688 | Z19: 15 | AA19: 0.8691935385 | AB19: 1.122591374 | AC19: 4.161295687 | AD19: 14497.58578 | AE19: 0.3
J20: 16 | K20: 0.6974448295 | L20: 0.5170534251 | M20: 3.858526713 | N20: 7219.825692 | O20: 0.2 | Q20: 3.625 | R20: 1 | S20: 13 | T20: 0.4 | U20: 1.04 | V20: 3.5 | W20: =interp('"actual" curve'!$V$3:$V$205,'"actual" curve'!$X$3:$X$205,'samples skew'!V20) -> 0.7830633648 | X20: 97 | Y20: 0.776 | Z20: 16 | AA20: 0.6974448295 | AB20: 0.5170534251 | AC20: 3.858526713 | AD20: 7219.825692 | AE20: 0.3
J21: 17 | K21: 0.6421126529 | L21: 0.364097117 | M21: 3.782048559 | N21: 6054.085618 | O21: 0.2 | Q21: 3.875 | R21: 3 | S21: 12 | T21: 1.2 | U21: 0.96 | V21: 3.75 | W21: =interp('"actual" curve'!$V$3:$V$205,'"actual" curve'!$X$3:$X$205,'samples skew'!V21) -> 0.7612269016 | X21: 97 | Y21: 0.776 | Z21: 17 | AA21: 0.6421126529 | AB21: 0.364097117 | AC21: 3.782048559 | AD21: 6054.085618 | AE21: 0.3
J22: 18 | K22: 0.08101389656 | L22: -1.398268104 | M22: 2.900865948 | N22: 795.9136405 | O22: 0.2 | Q22: 4.125 | R22: 3 | S22: 6 | T22: 1.2 | U22: 0.48 | V22: 4 | W22: =interp('"actual" curve'!$V$3:$V$205,'"actual" curve'!$X$3:$X$205,'samples skew'!V22) -> 0.5753191533 | X22: 72 | Y22: 0.576 | Z22: 18 | AA22: 0.08101389656 | AB22: -1.398268104 | AC22: 2.900865948 | AD22: 795.9136405 | AE22: 0.3
J23: 19 | K23: 0.08585986594 | L23: -1.366684342 | M23: 2.916657829 | N23: 825.3873886 | O23: 0.2 | Q23: 4.375 | R23: 0 | S23: 1 | T23: 0 | U23: 0.08 | V23: 4.25 | W23: =interp('"actual" curve'!$V$3:$V$205,'"actual" curve'!$X$3:$X$205,'samples skew'!V23) -> 0.3361585711 | X23: 29 | Y23: 0.232 | Z23: 19 | AA23: 0.08585986594 | AB23: -1.366684342 | AC23: 2.916657829 | AD23: 825.3873886 | AE23: 0.3
J24: 20 | K24: 0.6022685539 | L24: 0.259207834 | M24: 3.729603917 | N24: 5365.422387 | O24: 0.2 | Q24: 4.625 | R24: 0 | S24: 0 | T24: 0 | U24: 0 | V24: 4.5 | W24: =interp('"actual" curve'!$V$3:$V$205,'"actual" curve'!$X$3:$X$205,'samples skew'!V24) -> 0.1487085308 | X24: 17 | Y24: 0.136 | Z24: 20 | AA24: 0.6022685539 | AB24: 0.259207834 | AC24: 3.729603917 | AD24: 5365.422387 | AE24: 0.3
J25: 21 | K25: 0.9808079709 | L25: 2.07078455 | M25: 4.635392275 | N25: 43190.9021 | O25: 0.2 | Q25: 4.875 | R25: 0 | S25: 1 | T25: 0 | U25: 0.08 | V25: 4.75 | W25: =interp('"actual" curve'!$V$3:$V$205,'"actual" curve'!$X$3:$X$205,'samples skew'!V25) -> 0.04412286422 | X25: 5 | Y25: 0.04 | Z25: 21 | AA25: 0.9808079709 | AB25: 2.07078455 | AC25: 4.635392275 | AD25: 43190.9021 | AE25: 0.3
J26: 22 | K26: 0.4258451164 | L26: -0.1869783318 | M26: 3.506510834 | N26: 3210.042882 | O26: 0.2 | Q26: 5.125 | R26: 0 | S26: 0 | T26: 0 | U26: 0 | V26: 5 | W26: =interp('"actual" curve'!$V$3:$V$205,'"actual" curve'!$X$3:$X$205,'samples skew'!V26) -> 0.01212614772 | X26: 4 | Y26: 0.032 | Z26: 22 | AA26: 0.4258451164 | AB26: -0.1869783318 | AC26: 3.506510834 | AD26: 3210.042882 | AE26: 0.3
J27: 23 | K27: 0.05324794478 | L27: -1.614118652 | M27: 2.792940674 | N27: 620.7842273 | O27: 0.2 | Q27: 5.375 | R27: 0 | S27: 0 | T27: 0 | U27: 0 | V27: 5.25 | W27: =interp('"actual" curve'!$V$3:$V$205,'"actual" curve'!$X$3:$X$205,'samples skew'!V27) -> -0.009320222767 | X27: 1 | Y27: 0.008 | Z27: 23 | AA27: 0.05324794478 | AB27: -1.614118652 | AC27: 2.792940674 | AD27: 620.7842273 | AE27: 0.3
J28: 24 | K28: 0.4373913304 | L28: -0.1576027289 | M28: 3.521198636 | N28: 3320.462926 | O28: 0.2 | Q28: 5.625 | R28: 0 | S28: 0 | T28: 0 | U28: 0 | V28: 5.5 | W28: =interp('"actual" curve'!$V$3:$V$205,'"actual" curve'!$X$3:$X$205,'samples skew'!V28) -> -0.03155090577 | X28: 0 | Y28: 0 | Z28: 24 | AA28: 0.4373913304 | AB28: -0.1576027289 | AC28: 3.521198636 | AD28: 3320.462926 | AE28: 0.3
J29: 25 | K29: 0.2800469079 | L29: -0.582713172 | M29: 3.308643414 | N29: 2035.370211 | O29: 0.2 | R29: =SUM(R14:R28) -> 10 | S29: =SUM(S14:S28) -> 50 | X29: =SUM(X14:X28) -> 500 | Z29: 25 | AA29: 0.2800469079 | AB29: -0.582713172 | AC29: 3.308643414 | AD29: 2035.370211 | AE29: 0.3
J30: 26 | K30: 0.3411643944 | L30: -0.4093012367 | M30: 3.395349382 | N30: 2485.131542 | O30: 0.2 | Z30: 26 | AA30: 0.3411643944 | AB30: -0.4093012367 | AC30: 3.395349382 | AD30: 2485.131542 | AE30: 0.3
J31: 27 | K31: 0.2228436956 | L31: -0.7626314356 | M31: 3.218684282 | N31: 1654.566711 | O31: 0.2 | Z31: 27 | AA31: 0.2228436956 | AB31: -0.7626314356 | AC31: 3.218684282 | AD31: 1654.566711 | AE31: 0.3
J32: 28 | K32: 0.09165512819 | L32: -1.330618766 | M32: 2.934690617 | N32: 860.3806154 | O32: 0.2 | Z32: 28 | AA32: 0.09165512819 | AB32: -1.330618766 | AC32: 2.934690617 | AD32: 860.3806154 | AE32: 0.3
J33: 29 | K33: 0.4968728959 | L33: -0.007855233475 | M33: 3.596072383 | N33: 3945.230512 | O33: 0.2 | Z33: 29 | AA33: 0.4968728959 | AB33: -0.007855233475 | AC33: 3.596072383 | AD33: 3945.230512 | AE33: 0.3
J34: 30 | K34: 0.5581315634 | L34: 0.1462174271 | M34: 3.673108714 | N34: 4710.952372 | O34: 0.2 | Z34: 30 | AA34: 0.5581315634 | AB34: 0.1462174271 | AC34: 3.673108714 | AD34: 4710.952372 | AE34: 0.3
J35: 31 | K35: 0.3458667928 | L35: -0.3965176016 | M35: 3.401741199 | N35: 2521.977451 | O35: 0.2 | Z35: 31 | AA35: 0.3458667928 | AB35: -0.3965176016 | AC35: 3.401741199 | AD35: 2521.977451 | AE35: 0.3
J36: 32 | K36: 0.05455512205 | L36: -1.602179066 | M36: 2.798910467 | N36: 629.376419 | O36: 0.2 | Z36: 32 | AA36: 0.05455512205 | AB36: -1.602179066 | AC36: 2.798910467 | AD36: 629.376419 | AE36: 0.3
J37: 33 | K37: 0.827481949 | L37: 0.9442595617 | M37: 4.072129781 | N37: 11806.73405 | O37: 0.2 | Z37: 33 | AA37: 0.827481949 | AB37: 0.9442595617 | AC37: 4.072129781 | AD37: 11806.73405 | AE37: 0.3
J38: 34 | K38: 0.209919249 | L38: -0.8067072885 | M38: 3.196646356 | N38: 1572.701698 | O38: 0.2 | Z38: 34 | AA38: 0.209919249 | AB38: -0.8067072885 | AC38: 3.196646356 | AD38: 1572.701698 | AE38: 0.3
J39: 35 | K39: 0.4760158544 | L39: -0.06017220491 | M39: 3.569913898 | N39: 3714.615765 | O39: 0.2 | Z39: 35 | AA39: 0.4760158544 | AB39: -0.06017220491 | AC39: 3.569913898 | AD39: 3714.615765 | AE39: 0.3
J40: 36 | K40: 0.4405274902 | L40: -0.1496482676 | M40: 3.525175866 | N40: 3351.011098 | O40: 0.2 | Z40: 36 | AA40: 0.4405274902 | AB40: -0.1496482676 | AC40: 3.525175866 | AD40: 3351.011098 | AE40: 0.3
J41: 37 | K41: 0.7311051287 | L41: 0.6161484222 | M41: 3.908074211 | N41: 8092.341672 | O41: 0.2 | Z41: 37 | AA41: 0.7311051287 | AB41: 0.6161484222 | AC41: 3.908074211 | AD41: 8092.341672 | AE41: 0.3
J42: 38 | K42: 0.2782626396 | L42: -0.5880213528 | M42: 3.305989324 | N42: 2022.969447 | O42: 0.2 | Z42: 38 | AA42: 0.2782626396 | AB42: -0.5880213528 | AC42: 3.305989324 | AD42: 2022.969447 | AE42: 0.3
J43: 39 | K43: 0.7026984127 | L43: 0.5321653948 | M43: 3.866082697 | N43: 7346.537459 | O43: 0.2 | Z43: 39 | AA43: 0.7026984127 | AB43: 0.5321653948 | AC43: 3.866082697 | AD43: 7346.537459 | AE43: 0.3
J44: 40 | K44: 0.1556912573 | L44: -1.012324943 | M44: 3.093837528 | N44: 1241.187886 | O44: 0.2 | Z44: 40 | AA44: 0.1556912573 | AB44: -1.012324943 | AC44: 3.093837528 | AD44: 1241.187886 | AE44: 0.3
J45: 41 | K45: 0.337470374 | L45: -0.4193905743 | M45: 3.390304713 | N45: 2456.431811 | O45: 0.2 | Z45: 41 | AA45: 0.337470374 | AB45: -0.4193905743 | AC45: 3.390304713 | AD45: 2456.431811 | AE45: 0.3
J46: 42 | K46: 0.4244142016 | L46: -0.1906295732 | M46: 3.504685213 | N46: 3196.577317 | O46: 0.2 | Z46: 42 | AA46: 0.4244142016 | AB46: -0.1906295732 | AC46: 3.504685213 | AD46: 3196.577317 | AE46: 0.3
J47: 43 | K47: 0.3415777431 | L47: -0.4081748792 | M47: 3.39591256 | N47: 2488.356269 | O47: 0.2 | Z47: 43 | AA47: 0.3415777431 | AB47: -0.4081748792 | AC47: 3.39591256 | AD47: 2488.356269 | AE47: 0.3
J48: 44 | K48: 0.3223276988 | L48: -0.4612127368 | M48: 3.369393632 | N48: 2340.958052 | O48: 0.2 | Z48: 44 | AA48: 0.3223276988 | AB48: -0.4612127368 | AC48: 3.369393632 | AD48: 2340.958052 | AE48: 0.3
J49: 45 | K49: 0.5355554101 | L49: 0.08922597896 | M49: 3.644612989 | N49: 4411.771283 | O49: 0.2 | Z49: 45 | AA49: 0.5355554101 | AB49: 0.08922597896 | AC49: 3.644612989 | AD49: 4411.771283 | AE49: 0.3
J50: 46 | K50: 0.01383748919 | L50: -2.201798989 | M50: 2.499100505 | N50: 315.5734847 | O50: 0.2 | Z50: 46 | AA50: 0.01383748919 | AB50: -2.201798989 | AC50: 2.499100505 | AD50: 315.5734847 | AE50: 0.3
J51: 47 | K51: 0.7874131355 | L51: 0.7974714948 | M51: 3.998735747 | N51: 9970.931838 | O51: 0.2 | Z51: 47 | AA51: 0.7874131355 | AB51: 0.7974714948 | AC51: 3.998735747 | AD51: 9970.931838 | AE51: 0.3
J52: 48 | K52: 0.127354405 | L52: -1.138981485 | M52: 3.030509258 | N52: 1072.776515 | O52: 0.2 | Z52: 48 | AA52: 0.127354405 | AB52: -1.138981485 | AC52: 3.030509258 | AD52: 1072.776515 | AE52: 0.3
J53: 49 | K53: 0.5865881232 | L53: 0.2187611445 | M53: 3.709380572 | N53: 5121.304189 | O53: 0.2 | Z53: 49 | AA53: 0.5865881232 | AB53: 0.2187611445 | AC53: 3.709380572 | AD53: 5121.304189 | AE53: 0.3
J54: 50 | K54: 0.5500448354 | L54: 0.1257582212 | M54: 3.662879111 | N54: 4601.284752 | O54: 0.2 | Z54: 50 | AA54: 0.5500448354 | AB54: 0.1257582212 | AC54: 3.662879111 | AD54: 4601.284752 | AE54: 0.3
Z55: 51 | AA55: =RAND() -> 0.6331475588 | AB55: 0.3401866377 | AC55: 3.770093319 | AD55: 5889.701965 | AE55: 0.3
Z56: 52 | AA56: 0.7745002818 | AB56: 0.753742662 | AC56: 3.976871331 | AD56: 9481.375158 | AE56: 0.3
Z57: 53 | AA57: 0.3292131284 | AB57: -0.4421004015 | AC57: 3.378949799 | AD57: 2393.039125 | AE57: 0.3
Z58: 54 | AA58: 0.4964612116 | AB58: -0.008887208698 | AC58: 3.595556396 | AD58: 3940.545946 | AE58: 0.3
Z59: 55 | AA59: 0.3979405738 | AB59: -0.2586968532 | AC59: 3.470651573 | AD59: 2955.640258 | AE59: 0.3
Z60: 56 | AA60: 0.9710764257 | AB60: 1.896897765 | AC60: 4.548448883 | AD60: 35354.84053 | AE60: 0.3
Z61: 57 | AA61: 0.08503244897 | AB61: -1.371980603 | AC61: 2.914009699 | AD61: 820.3698644 | AE61: 0.3
Z62: 58 | AA62: 0.02121323623 | AB62: -2.029260516 | AC62: 2.585369742 | AD62: 384.9193484 | AE62: 0.3
Z63: 59 | AA63: 0.8001865697 | AB63: 0.8422829886 | AC63: 4.021141494 | AD63: 10498.84428 | AE63: 0.3
Z64: 60 | AA64: 0.2399490439 | AB64: -0.7064748333 | AC64: 3.246762583 | AD64: 1765.072641 | AE64: 0.3
Z65: 61 | AA65: 0.03156167845 | AB65: -1.85828072 | AC65: 2.67085964 | AD65: 468.6618906 | AE65: 0.3
Z66: 62 | AA66: 0.6903323171 | AB66: 0.4967799731 | AC66: 3.848389987 | AD66: 7053.261515 | AE66: 0.3
Z67: 63 | AA67: 0.4307554178 | AB67: -0.1744674151 | AC67: 3.512766292 | AD67: 3256.614052 | AE67: 0.3
Z68: 64 | AA68: 0.5512291635 | AB68: 0.1287510459 | AC68: 3.664375523 | AD68: 4617.166361 | AE68: 0.3
Z69: 65 | AA69: 0.5157951834 | AB69: =2/skew*(((NORMSINV(AA69)-skew/6)*skew/6+1)^3-1) -> 0.0395863625 | AC69: =mean+stdev*AB69 -> 3.619793181 | AD69: 4166.709101 | AE69: 0.3
Z70: 66 | AA70: 0.9804085863 | AB70: 2.062315915 | AC70: 4.631157957 | AD70: =10^AC70 -> 42771.84235 | AE70: 0.3
Z71: 67 | AA71: 0.8389146531 | AB71: 0.9900066756 | AC71: 4.095003338 | AD71: 12445.24177 | AE71: 0.3
Z72: 68 | AA72: 0.2840690197 | AB72: -0.5708070818 | AC72: 3.314596459 | AD72: 2063.461922 | AE72: 0.3
Z73: 69 | AA73: 0.8155159992 | AB73: 0.898404919 | AC73: 4.04920246 | AD73: 11199.59865 | AE73: 0.3
Z74: 70 | AA74: 0.9531141002 | AB74: 1.67585859 | AC74: 4.437929295 | AD74: 27411.2787 | AE74: 0.3
Z75: 71 | AA75: 0.3964907113 | AB75: -0.2624565756 | AC75: 3.468771712 | AD75: 2942.874299 | AE75: 0.3
Z76: 72 | AA76: 0.7863449309 | AB76: 0.793796814 | AC76: 3.996898407 | AD76: 9928.837594 | AE76: 0.3
Z77: 73 | AA77: 0.6225151187 | AB77: 0.3120780666 | AC77: 3.756039033 | AD77: 5702.155195 | AE77: 0.3
Z78: 74 | AA78: 0.5215735203 | AB78: 0.05408656115 | AC78: 3.627043281 | AD78: 4236.851872 | AE78: 0.3
Z79: 75 | AA79: 0.3202131568 | AB79: -0.4671158542 | AC79: 3.366442073 | AD79: 2325.102338 | AE79: 0.3
Z80: 76 | AA80: 0.2614256987 | AB80: -0.638966106 | AC80: 3.280516947 | AD80: 1907.730166 | AE80: 0.3
Z81: 77 | AA81: 0.2036559985 | AB81: -0.8286384198 | AC81: 3.18568079 | AD81: 1533.489442 | AE81: 0.3
Z82: 78 | AA82: 0.5049065487 | AB82: 0.01228253954 | AC82: 3.60614127 | AD82: 4037.767144 | AE82: 0.3
Z83: 79 | AA83: 0.6516020608 | AB83: 0.3896351816 | AC83: 3.794817591 | AD83: 6234.729139 | AE83: 0.3
Z84: 80 | AA84: 0.4886312423 | AB84: -0.02851776085 | AC84: 3.58574112 | AD84: 3852.486447 | AE84: 0.3
Z85: 81 | AA85: 0.5247721438 | AB85: 0.06211791092 | AC85: 3.631058955 | AD85: 4276.209317 | AE85: 0.3
Z86: 82 | AA86: 0.145142889 | AB86: -1.057492935 | AC86: 3.071253533 | AD86: 1178.293638 | AE86: 0.3
Z87: 83 | AA87: 0.9438343533 | AB87: 1.587826581 | AC87: 4.39391329 | AD87: 24769.27474 | AE87: 0.3
Z88: 84 | AA88: 0.5400771108 | AB88: 0.1006114898 | AC88: 3.650305745 | AD88: 4469.981697 | AE88: 0.3
Z89: 85 | AA89: 0.3017621235 | AB89: -0.5193513351 | AC89: 3.340324332 | AD89: 2189.396061 | AE89: 0.3
Z90: 86 | AA90: 0.5410206854 | AB90: 0.1029889807 | AC90: 3.65149449 | AD90: 4482.233636 | AE90: 0.3
Z91: 87 | AA91: 0.05037941965 | AB91: -1.641157638 | AC91: 2.779421181 | AD91: 601.7570416 | AE91: 0.3
Z92: 88 | AA92: 0.1570743092 | AB92: -1.006554885 | AC92: 3.096722558 | AD92: 1249.460576 | AE92: 0.3
Z93: 89 | AA93: 0.8907559632 | AB93: 1.230566967 | AC93: 4.215283483 | AD93: 16416.61009 | AE93: 0.3
Z94: 90 | AA94: 0.6823085524 | AB94: 0.4741511751 | AC94: 3.837075588 | AD94: 6871.880325 | AE94: 0.3
Z95: 91 | AA95: 0.1395255101 | AB95: -1.082450742 | AC95: 3.058774629 | AD95: 1144.918647 | AE95: 0.3
Z96: 92 | AA96: 0.09020844203 | AB96: -1.339459315 | AC96: 2.930270342 | AD96: 851.6680247 | AE96: 0.3
Z97: 93 | AA97: 0.09100373239 | AB97: -1.334586471 | AC97: 2.932706764 | AD97: 856.4593688 | AE97: 0.3
Z98: 94 | AA98: 0.583186193 | AB98: 0.2100353948 | AC98: 3.705017697 | AD98: 5070.113684 | AE98: 0.3
Z99: 95 | AA99: 0.5500661726 | AB99: 0.1258121305 | AC99: 3.662906065 | AD99: 4601.570342 | AE99: 0.3
Z100: 96 | AA100: 0.2642437017 | AB100: -0.6303267377 | AC100: 3.284836631 | AD100: 1926.799971 | AE100: 0.3
Z101: 97 | AA101: 0.4719600049 | AB101: -0.07036039884 | AC101: 3.564819801 | AD101: 3671.299377 | AE101: 0.3
Z102: 98 | AA102: 0.1267375212 | AB102: -1.141944358 | AC102: 3.029027821 | AD102: 1069.123366 | AE102: 0.3
Z103: 99 | AA103: 0.03761595287 | AB103: -1.779011837 | AC103: 2.710494081 | AD103: 513.4451801 | AE103: 0.3
Z104: 100 | AA104: 0.8528034381 | AB104: 1.048534619 | AC104: 4.124267309 | AD104: 13312.73568 | AE104: 0.3
Z105: 101 | AA105: 0.8885095259 | AB105: 1.218647852 | AC105: 4.209323926 | AD105: 16192.87361 | AE105: 0.3
Z106: 102 | AA106: 0.4775629695 | AB106: -0.0562875911 | AC106: 3.571856204 | AD106: 3731.265946 | AE106: 0.3
Z107: 103 | AA107: 0.4480024275 | AB107: -0.130726213 | AC107: 3.534636893 | AD107: 3424.813238 | AE107: 0.3
Z108: 104 | AA108: 0.7278875377 | AB108: 0.6064259813 | AC108: 3.903212991 | AD108: 8002.266132 | AE108: 0.3
Z109: 105 | AA109: 0.3740332763 | AB109: -0.3212047588 | AC109: 3.439397621 | AD109: 2750.411154 | AE109: 0.3
Z110: 106 | AA110: 0.5299258696 | AB110: 0.07506694616 | AC110: 3.637533473 | AD110: 4340.437161 | AE110: 0.3
Z111: 107 | AA111: 0.5006837197 | AB111: 0.001697165364 | AC111: 3.600848583 | AD111: 3988.858061 | AE111: 0.3
Z112: 108 | AA112: 0.04573192297 | AB112: -1.687695153 | AC112: 2.756152423 | AD112: 570.3644167 | AE112: 0.3
Z113: 109 | AA113: 0.2847392156 | AB113: -0.5688310811 | AC113: 3.315584459 | AD113: 2068.161549 | AE113: 0.3
Z114: 110 | AA114: 0.9951401285 | AB114: 2.585738164 | AC114: 4.892869082 | AD114: 78139.22185 | AE114: 0.3
Z115: 111 | AA115: 0.4941699085 | AB115: -0.01463105546 | AC115: 3.592684472 | AD115: 3914.573685 | AE115: 0.3
Z116: 112 | AA116: 0.3818996979 | AB116: -0.3005104419 | AC116: 3.449744779 | AD116: 2816.727144 | AE116: 0.3
Z117: 113 | AA117: 0.2636262524 | AB117: -0.6322156564 | AC117: 3.283892172 | AD117: 1922.614316 | AE117: 0.3
Z118: 114 | AA118: 0.4507387954 | AB118: -0.123811411 | AC118: 3.538094294 | AD118: 3452.186854 | AE118: 0.3
Z119: 115 | AA119: =RAND() -> 0.7650955276 | AB119: 0.7227819865 | AC119: 3.961390993 | AD119: 9149.365838 | AE119: 0.3
Z120: 116 | AA120: 0.5526740559 | AB120: 0.1324038885 | AC120: 3.666201944 | AD120: 4636.624698 | AE120: 0.3
Z121: 117 | AA121: 0.4197455851 | AB121: -0.2025603587 | AC121: 3.498719821 | AD121: 3152.96987 | AE121: 0.3
Z122: 118 | AA122: 0.7681167628 | AB122: 0.7326512171 | AC122: 3.966325609 | AD122: 9253.917184 | AE122: 0.3
Z123: 119 | AA123: 0.3296078164 | AB123: -0.4410097842 | AC123: 3.379495108 | AD123: 2396.04576 | AE123: 0.3
Z124: 120 | AA124: 0.8992135366 | AB124: 1.27709357 | AC124: 4.238546785 | AD124: 17319.95602 | AE124: 0.3
Z125: 121 | AA125: 0.2361867621 | AB125: -0.718630595 | AC125: 3.240684702 | AD125: 1740.542782 | AE125: 0.3
Z126: 122 | AA126: 0.5494467603 | AB126: 0.1242473011 | AC126: 3.662123651 | AD126: 4593.287724 | AE126: 0.3
Z127: 123 | AA127: 0.04295399426 | AB127: -1.71735723 | AC127: 2.741321385 | AD127: 551.2154539 | AE127: 0.3
Z128: 124 | AA128: 0.6505469382 | AB128: 0.3867833329 | AC128: 3.793391666 | AD128: 6214.292146 | AE128: 0.3
Z129: 125 | AA129: 0.787706075 | AB129: 0.7984811044 | AC129: 3.999240552 | AD129: 9982.528348 | AE129: 0.3
Z130: 126 | AA130: 0.7835574297 | AB130: 0.7842577171 | AC130: 3.992128859 | AD130: 9820.392785 | AE130: 0.3
Z131: 127 | AA131: 0.4067581843 | AB131: -0.2359078778 | AC131: 3.482046061 | AD131: 3034.212975 | AE131: 0.3
Z132: 128 | AA132: 0.8495631643 | AB132: 1.034562822 | AC132: 4.117281411 | AD132: 13100.30512 | AE132: 0.3
Z133: 129 | AA133: 0.2947962108 | AB133: =2/skew*(((NORMSINV(AA133)-skew/6)*skew/6+1)^3-1) -> -0.5394385751 | AC133: =mean+stdev*AB133 -> 3.330280712 | AD133: 2139.344438 | AE133: 0.3
Z134: 130 | AA134: 0.7558221134 | AB134: 0.6929176842 | AC134: 3.946458842 | AD134: =10^AC134 -> 8840.133877 | AE134: 0.3
Z135: 131 | AA135: 0.3203678166 | AB135: -0.4666835446 | AC135: 3.366658228 | AD135: 2326.259864 | AE135: 0.3
Z136: 132 | AA136: 0.03500173278 | AB136: -1.811850199 | AC136: 2.694074901 | AD136: 494.3959456 | AE136: 0.3
Z137: 133 | AA137: 0.2176644403 | AB137: -0.7801118517 | AC137: 3.209944074 | AD137: 1621.601264 | AE137: 0.3
Z138: 134 | AA138: 0.7669187215 | AB138: 0.7287291812 | AC138: 3.964364591 | AD138: 9212.226144 | AE138: 0.3
Z139: 135 | AA139: 0.3229716575 | AB139: -0.4594182092 | AC139: 3.370290895 | AD139: 2345.799532 | AE139: 0.3
Z140: 136 | AA140: 0.3023802316 | AB140: -0.5175791273 | AC140: 3.341210436 | AD140: 2193.867711 | AE140: 0.3
Z141: 137 | AA141: 0.1656962971 | AB141: -0.9713136265 | AC141: 3.114343187 | AD141: 1301.1974 | AE141: 0.3
Z142: 138 | AA142: 0.1666206704 | AB142: -0.9676067391 | AC142: 3.11619663 | AD142: 1306.762402 | AE142: 0.3
Z143: 139 | AA143: 0.4650645215 | AB143: -0.08769902087 | AC143: 3.55615049 | AD143: 3598.740153 | AE143: 0.3
Z144: 140 | AA144: 0.4869429078 | AB144: -0.03275177084 | AC144: 3.583624115 | AD144: 3833.752874 | AE144: 0.3
Z145: 141 | AA145: 0.9333586957 | AB145: 1.501303013 | AC145: 4.350651507 | AD145: 22420.82075 | AE145: 0.3
Z146: 142 | AA146: 0.2302017495 | AB146: -0.7381901778 | AC146: 3.230904911 | AD146: 1701.785861 | AE146: 0.3
Z147: 143 | AA147: 0.4561938405 | AB147: -0.1100438191 | AC147: 3.54497809 | AD147: 3507.341795 | AE147: 0.3
Z148: 144 | AA148: 0.0186816148 | AB148: -2.081717212 | AC148: 2.559141394 | AD148: 362.3609536 | AE148: 0.3
Z149: 145 | AA149: 0.05133888453 | AB149: -1.631980427 | AC149: 2.784009787 | AD149: 608.1487056 | AE149: 0.3
Z150: 146 | AA150: 0.2744603218 | AB150: -0.5993889797 | AC150: 3.30030551 | AD150: 1996.666402 | AE150: 0.3
Z151: 147 | AA151: 0.8778205858 | AB151: 1.164166781 | AC151: 4.182083391 | AD151: 15208.39524 | AE151: 0.3
Z152: 148 | AA152: 0.6639254337 | AB152: 0.4231866117 | AC152: 3.811593306 | AD152: 6480.273055 | AE152: 0.3
Z153: 149 | AA153: 0.9638703112 | AB153: 1.797517641 | AC153: 4.498758821 | AD153: 31532.53022 | AE153: 0.3
Z154: 150 | AA154: 0.1813843367 | AB154: -0.9101049495 | AC154: 3.144947525 | AD154: 1396.199651 | AE154: 0.3
Z155: 151 | AA155: 0.2250677723 | AB155: -0.7551962333 | AC155: 3.222401883 | AD155: 1668.790748 | AE155: 0.3
Z156: 152 | AA156: 0.6153891159 | AB156: 0.2933777773 | AC156: 3.746688889 | AD156: 5580.702721 | AE156: 0.3
Z157: 153 | AA157: 0.9242931686 | AB157: 1.434573624 | AC157: 4.317286812 | AD157: 20762.84261 | AE157: 0.3
Z158: 154 | AA158: 0.4561714759 | AB158: -0.1101002192 | AC158: 3.54494989 | AD158: 3507.11406 | AE158: 0.3
Z159: 155 | AA159: 0.8026832467 | AB159: 0.8512399843 | AC159: 4.025619992 | AD159: 10607.66979 | AE159: 0.3
Z160: 156 | AA160: 0.9942890613 | AB160: 2.52960964 | AC160: 4.86480482 | AD160: 73249.52618 | AE160: 0.3
Z161: 157 | AA161: 0.3498408755 | AB161: -0.3857642912 | AC161: 3.407117854 | AD161: 2553.394123 | AE161: 0.3
Z162: 158 | AA162: 0.5474452229 | AB162: 0.1191928508 | AC162: 3.659596425 | AD162: 4566.636309 | AE162: 0.3
Z163: 159 | AA163: 0.4428059803 | AB163: -0.1438751335 | AC163: 3.528062433 | AD163: 3373.357998 | AE163: 0.3
Z164: 160 | AA164: 0.7646013473 | AB164: 0.7211743908 | AC164: 3.960587195 | AD164: 9132.447734 | AE164: 0.3
Z165: 161 | AA165: 0.232228702 | AB165: -0.731534608 | AC165: 3.234232696 | AD165: 1714.875896 | AE165: 0.3
Z166: 162 | AA166: 0.1220112249 | AB166: -1.164985506 | AC166: 3.017507247 | AD166: 1041.135481 | AE166: 0.3
Z167: 163 | AA167: 0.1673682118 | AB167: -0.9646186726 | AC167: 3.117690664 | AD167: 1311.265587 | AE167: 0.3
Z168: 164 | AA168: 0.01201395614 | AB168: -2.256614431 | AC168: 2.471692784 | AD168: 296.2734839 | AE168: 0.3
Z169: 165 | AA169: 0.2807434387 | AB169: -0.5806454552 | AC169: 3.309677272 | AD169: 2040.221277 | AE169: 0.3
Z170: 166 | AA170: 0.3740676839 | AB170: -0.3211139484 | AC170: 3.439443026 | AD170: 2750.698723 | AE170: 0.3
Z171: 167 | AA171: 0.9318865586 | AB171: 1.490010268 | AC171: 4.345005134 | AD171: 22131.20871 | AE171: 0.3
Z172: 168 | AA172: 0.05775916106 | AB172: -1.573841856 | AC172: 2.813079072 | AD172: 650.2480703 | AE172: 0.3
Z173: 169 | AA173: 0.4644703643 | AB173: -0.08919418253 | AC173: 3.555402909 | AD173: 3592.550724 | AE173: 0.3
Z174: 170 | AA174: 0.2772215099 | AB174: -0.5911263656 | AC174: 3.304436817 | AD174: 2015.75069 | AE174: 0.3
Z175: 171 | AA175: 0.4265195987 | AB175: -0.1852581336 | AC175: 3.507370933 | AD175: 3216.406516 | AE175: 0.3
Z176: 172 | AA176: 0.4355375277 | AB176: -0.1623093184 | AC176: 3.518845341 | AD176: 3302.519121 | AE176: 0.3
Z177: 173 | AA177: 0.718710389 | AB177: 0.5790036686 | AC177: 3.889501834 | AD177: 7753.572182 | AE177: 0.3
Z178: 174 | AA178: 0.5131780805 | AB178: 0.03302191021 | AC178: 3.616510955 | AD178: 4135.337456 | AE178: 0.3
Z179: 175 | AA179: 0.3652973351 | AB179: -0.3443492853 | AC179: 3.427825357 | AD179: 2678.091169 | AE179: 0.3
Z180: 176 | AA180: 0.2562993632 | AB180: -0.6548061103 | AC180: 3.272596945 | AD180: 1873.255191 | AE180: 0.3
Z181: 177 | AA181: 0.007052373535 | AB181: -2.454500852 | AC181: 2.372749574 | AD181: 235.9117509 | AE181: 0.3
Z182: 178 | AA182: 0.6703735843 | AB182: 0.4409315508 | AC182: 3.820465775 | AD182: 6614.024136 | AE182: 0.3
Z183: 179 | AA183: =RAND() -> 0.8519179059 | AB183: 1.044696022 | AC183: 4.122348011 | AD183: 13254.03188 | AE183: 0.3
Z184: 180 | AA184: 0.7408763222 | AB184: 0.6460397015 | AC184: 3.923019851 | AD184: 8375.675648 | AE184: 0.3
Z185: 181 | AA185: 0.8783595781 | AB185: 1.166831532 | AC185: 4.183415766 | AD185: 15255.12483 | AE185: 0.3
Z186: 182 | AA186: 0.06331590888 | AB186: -1.527497536 | AC186: 2.836251232 | AD186: 685.8848842 | AE186: 0.3
Z187: 183 | AA187: 0.995988918 | AB187: 2.651236019 | AC187: 4.925618009 | AD187: 84259.33152 | AE187: 0.3
Z188: 184 | AA188: 0.7531993517 | AB188: 0.6845833344 | AC188: 3.942291667 | AD188: 8755.716017 | AE188: 0.3
Z189: 185 | AA189: 0.7940436317 | AB189: 0.8205268314 | AC189: 4.010263416 | AD189: 10239.13846 | AE189: 0.3
Z190: 186 | AA190: 0.004352318518 | AB190: -2.623343545 | AC190: 2.288328227 | AD190: 194.2353299 | AE190: 0.3
Z191: 187 | AA191: 0.2617284406 | AB191: -0.6380356884 | AC191: 3.280982156 | AD191: 1909.774788 | AE191: 0.3
Z192: 188 | AA192: 0.3926002823 | AB192: -0.2725635902 | AC192: 3.463718205 | AD192: 2908.829091 | AE192: 0.3
Z193: 189 | AA193: 0.1784406876 | AB193: -0.9213263645 | AC193: 3.139336818 | AD193: 1378.27798 | AE193: 0.3
Z194: 190 | AA194: 0.6462512884 | AB194: 0.3752049186 | AC194: 3.787602459 | AD194: 6132.004421 | AE194: 0.3
Z195: 191 | AA195: 0.4733055981 | AB195: -0.06697954497 | AC195: 3.566510228 | AD195: 3685.617213 | AE195: 0.3
Z196: 192 | AA196: 0.9954087924 | AB196: 2.605283366 | AC196: 4.902641683 | AD196: 79917.46195 | AE196: 0.3
Z197: 193 | AA197: 0.3889845287 | AB197: =2/skew*(((NORMSINV(AA197)-skew/6)*skew/6+1)^3-1) -> -0.2819820241 | AC197: =mean+stdev*AB197 -> 3.459008988 | AD197: 2877.457964 | AE197: 0.3
Z198: 194 | AA198: 0.2826858766 | AB198: -0.5748921987 | AC198: 3.312553901 | AD198: =10^AC198 -> 2053.779907 | AE198: 0.3
Z199: 195 | AA199: 0.7980544508 | AB199: 0.8346870313 | AC199: 4.017343516 | AD199: 10407.43041 | AE199: 0.3
Z200: 196 | AA200: 0.5225132655 | AB200: 0.05644576035 | AC200: 3.62822288 | AD200: 4248.375349 | AE200: 0.3
Z201: 197 | AA201: 0.293674675 | AB201: -0.542692915 | AC201: 3.328653542 | AD201: 2131.34396 | AE201: 0.3
... 303 more rows

Sheet g1000 g=0
A1: actual g | B1: 0 | C1: 0 | D1: mean | E1: =mean -> 3.6
A2: average = | B2: =AVERAGE(B8:B1007) -> -0.01392207778 | C2: =AVERAGE(C8:C1007) -> -0.006349111549 | D2: st.dev. | E2: =stdev -> 0.5
A3: st.dev.= | B3: =STDEV(B8:B1007) -> 0.670847886 | C3: =STDEV(C8:C1007) -> 0.3469088334 | D3: skew | E3: =skew -> 0.0001 | G3: N=10 | H3: N=50
A4: s/sqrt(N) | B4: =stdev/SQRT(10) -> 0.158113883 | C4: =stdev/SQRT(50) -> 0.07071067812 | F4: -2.6 | R4: 1.95
A5: skew = | B5: =SKEW(B8:B1007) -> 0.03938015606 | C5: =SKEW(C8:C1007) -> -0.04999052164 | F5: -2.4 | G5: =FREQUENCY(B8:B1007,$F$5:$F$29) -> 0 | H5: =FREQUENCY(C8:C1007,$F$5:$F$29) -> 0 | I5: =AVERAGE(F4:F5) -> -2.5 | R5: 2.05 | S5: =FREQUENCY(B8:B1007,$R5:$R40)/1000/0.1 -> 9.98 | T5: =FREQUENCY(C8:C1007,$R5:$R40)/1000/0.1 -> 10 | U5: =AVERAGE(R4:R5) -> 2
F6: -2.2 | G6: 2 | H6: 0 | I6: =AVERAGE(F5:F6) -> -2.3 | R6: 2.15 | S6: 0.01 | T6: 0 | U6: =AVERAGE(R5:R6) -> 2.1
B7: N=10 | C7: N=50 | F7: -2 | G7: 0 | H7: 0 | I7: -2.1 | R7: 2.25 | S7: 0.01 | T7: 0 | U7: 2.2
A8: 1 | B8: -0.7730815374 | C8: -0.1723394195 | D8: min = | E8: =MIN(B8:B1007) -> -2.352223585 | F8: -1.8 | G8: 4 | H8: 0 | I8: -1.9 | R8: 2.35 | S8: 0 | T8: 0 | U8: 2.3
A9: 2 | B9: -0.1181006842 | C9: -0.5803214538 | D9: max = | E9: =MAX(B8:B1007) -> 2.204483977 | F9: -1.6 | G9: 5 | H9: 0 | I9: -1.7 | R9: 2.45 | S9: 0 | T9: 0 | U9: 2.4
A10: 3 | B10: 0.3819458499 | C10: 0.01662662235 | F10: -1.4 | G10: 9 | H10: 0 | I10: -1.5 | R10: 2.55 | S10: 0 | T10: 0 | U10: 2.5
A11: 4 | B11: 1.18127094 | C11: 0.4989925223 | F11: -1.2 | G11: 17 | H11: 0 | I11: -1.3 | R11: 2.65 | S11: 0 | T11: 0 | U11: 2.6
A12: 5 | B12: -1.376488606 | C12: -0.5892508989 | F12: -1 | G12: 28 | H12: 2 | I12: -1.1 | R12: 2.75 | S12: 0 | T12: 0 | U12: 2.7
A13: 6 | B13: -0.09027784952 | C13: 0.2407654435 | F13: -0.8 | G13: 50 | H13: 13 | I13: -0.9 | R13: 2.85 | S13: 0 | T13: 0 | U13: 2.8
A14: 7 | B14: 0.5444710395 | C14: 0.1514526692 | F14: -0.6 | G14: 67 | H14: 35 | I14: -0.7 | R14: 2.95 | S14: 0 | T14: 0 | U14: 2.9
A15: 8 | B15: 0.4509039219 | C15: 0.2171648097 | F15: -0.4 | G15: 91 | H15: 67 | I15: -0.5 | R15: 3.05 | S15: 0 | T15: 0 | U15: 3
A16: 9 | B16: -0.07410598213 | C16: 0.2017173119 | F16: -0.2 | G16: 103 | H16: 152 | I16: -0.3 | R16: 3.15 | S16: 0 | T16: 0 | U16: 3.1
A17: 10 | B17: 0.5523597841 | C17: 0.08187026497 | F17: 0 | G17: 138 | H17: 250 | I17: -0.1 | R17: 3.25 | S17: 0 | T17: 0 | U17: 3.2
A18: 11 | B18: -0.4325537396 | C18: 0.2155194653 | F18: 0.2 | G18: 119 | H18: 223 | I18: 0.1 | R18: 3.35 | S18: 0 | T18: 0 | U18: 3.3
A19: 12 | B19: -0.1091490963 | C19: 0.2559113271 | F19: 0.4 | G19: 118 | H19: 137 | I19: 0.3 | R19: 3.45 | S19: 0 | T19: 0 | U19: 3.4
A20: 13 | B20: -0.4416314761 | C20: -0.1486222491 | F20: 0.6 | G20: 79 | H20: 84 | I20: 0.5 | R20: 3.55 | S20: 0 | T20: 0 | U20: 3.5
A21: 14 | B21: 1.305576098 | C21: 0.0527332009 | F21: 0.8 | G21: 62 | H21: 26 | I21: 0.7 | R21: 3.65 | S21: 0 | T21: 0 | U21: 3.6
A22: 15 | B22: 0.4801853376 | C22: -0.07559445395 | F22: 1 | G22: 37 | H22: 10 | I22: 0.9 | R22: 3.75 | S22: 0 | T22: 0 | U22: 3.7
A23: 16 | B23: 0.6592434018 | C23: 0.09670463545 | F23: 1.2 | G23: 24 | H23: 1 | I23: 1.1 | R23: 3.85 | S23: 0 | T23: 0 | U23: 3.8
A24: 17 | B24: -0.2304995915 | C24: -1.1892342 | F24: 1.4 | G24: 27 | H24: 0 | I24: 1.3 | R24: 3.95 | S24: 0 | T24: 0 | U24: 3.9
A25: 18 | B25: -0.2667024561 | C25: 0.3957479198 | F25: 1.6 | G25: 12 | H25: 0 | I25: 1.5 | R25: 4.05 | S25: 0 | T25: 0 | U25: 4
A26: 19 | B26: 0.7382208913 | C26: 0.1349426627 | F26: 1.8 | G26: 2 | H26: 0 | I26: 1.7 | R26: 4.15 | S26: 0 | T26: 0 | U26: 4.1
A27: 20 | B27: 0.4136002973 | C27: 0.4446470297 | F27: 2 | G27: 4 | H27: 0 | I27: 1.9 | R27: 4.25 | S27: 0 | T27: 0 | U27: 4.2
A28: 21 | B28: 1.060196493 | C28: -0.007970564196 | F28: 2.2 | G28: 1 | H28: 0 | I28: 2.1 | R28: 4.35 | S28: 0 | T28: 0 | U28: 4.3
A29: 22 | B29: -0.5520398655 | C29: -0.1444708624 | F29: 2.4 | G29: 1 | H29: 0 | I29: 2.3 | R29: 4.45 | S29: 0 | T29: 0 | U29: 4.4
A30: 23 | B30: -0.846853466 | C30: -0.1899643591 | R30: 4.55 | S30: 0 | T30: 0 | U30: 4.5
A31: 24 | B31: 0.275512249 | C31: -0.1693575235 | G31: =SUM(G5:G29) -> 1000 | H31: =SUM(H5:H29) -> 1000 | R31: 4.65 | S31: 0 | T31: 0 | U31: 4.6
A32: 25 | B32: 1.063679995 | C32: 0.4187395823 | R32: 4.75 | S32: 0 | T32: 0 | U32: 4.7
A33: 26 | B33: -0.04283451458 | C33: 0.4030557328 | R33: 4.85 | S33: 0 | T33: 0 | U33: 4.8
A34: 27 | B34: 0.2648597783 | C34: 0.1369979453 | R34: 4.95 | S34: 0 | T34: 0 | U34: 4.9
A35: 28 | B35: -0.5041341008 | C35: -0.07868589955 | R35: 5.05 | S35: 0 | T35: 0 | U35: 5
A36: 29 | B36: -0.2296941854 | C36: 0.2596084676 | R36: 5.15 | S36: 0 | T36: 0 | U36: 5.1
A37: 30 | B37: 0.198917458 | C37: -0.2614250844 | R37: 5.25 | S37: 0 | T37: 0 | U37: 5.2
A38: 31 | B38: 0.1547635271 | C38: -0.4678314697 | R38: 5.35 | S38: 0 | T38: 0 | U38: 5.3
A39: 32 | B39: -0.371610041 | C39: 0.1914808758 | R39: 5.45 | S39: 0 | T39: 0 | U39: 5.4
A40: 33 | B40: 0.3398257953 | C40: 0.09541512999 | R40: 5.55 | S40: 0 | T40: 0 | U40: 5.5
A41: 34 | B41: 0.08573854922 | C41: 0.1925385553
A42: 35 | B42: -0.7581449016 | C42: -0.2352185923
A43: 36 | B43: -0.2648884503 | C43: 0.4695658827
A44: 37 | B44: 0.2049400182 | C44: -0.1605166466
A45: 38 | B45: 0.2125752901 | C45: -0.2160230997
A46: 39 | B46: 0.3363043377 | C46: -0.09162203961
A47: 40 | B47: 0.6459652923 | C47: -0.05662052713
A48: 41 | B48: -0.08333336324 | C48: 0.2572428045
A49: 42 | B49: 0.6104230807 | C49: 0.163625707
A50: 43 | B50: -0.5348026341 | C50: -0.30428293
A51: 44 | B51: -1.764838037 | C51: 0.363223334
A52: 45 | B52: 0.006257753006 | C52: 0.2507830453
A53: 46 | B53: 0.1097253839 | C53: 0.2503982645
A54: 47 | B54: -0.4941476692 | C54: -0.1973725528
A55: 48 | B55: 0.3392912372 | C55: -0.2302460631
A56: 49 | B56: 0.1933490576 | C56: 0.1156541816
A57: 50 | B57: 0.6319497328 | C57: 0.5047093391
A58: 51 | B58: 0.01907365265 | C58: -0.05890375533
A59: 52 | B59: 0.2868128151 | C59: -0.1197648538
A60: 53 | B60: -0.4488939379 | C60: 0.1527372743
A61: 54 | B61: 0.5131161539 | C61: -0.2361872643
A62: 55 | B62: 0.1738190944 | C62: 0.1069573005
A63: 56 | B63: 0.2755782986 | C63: -0.07996111831
A64: 57 | B64: -0.05573692762 | C64: 0.04216251292
A65: 58 | B65: 0.7618990984 | C65: 0.4578114936
A66: 59 | B66: -1.994251362 | C66: -1.057479084
A67: 60 | B67: -0.5491091764 | C67: 0.3220787287
A68: 61 | B68: -0.2749158203 | C68: -0.03935666113
A69: 62 | B69: 0.6611186022 | C69: 0.6156749971
A70: 63 | B70: -0.04643991262 | C70: -0.04030752224
A71: 64 | B71: 0.4929035117 | C71: 0.3244748517
A72: 65 | B72: 0.9485177472 | C72: 0.2615271589
A73: 66 | B73: 0.3474721062 | C73: 0.02214395249
A74: 67 | B74: 0.6939100688 | C74: -0.6217577326
A75: 68 | B75: 0.04225033127 | C75: -0.3646398479
A76: 69 | B76: 1.141885592 | C76: 0.385625599
A77: 70 | B77: 0.03570858417 | C77: -0.493096184
A78: 71 | B78: -0.2076953102 | C78: -0.07464115992
A79: 72 | B79: -0.03765871997 | C79: 0.3007888806
A80: 73 | B80: 0.8362314515 | C80: -0.2261543877
A81: 74 | B81: 0.07009401041 | C81: 0.3065714224
A82: 75 | B82: 1.29534285 | C82: -0.5746879663
A83: 76 | B83: -0.5342768512 | C83: -0.2674481672
A84: 77 | B84: 0.1619476987 | C84: 0.1409387485
A85: 78 | B85: 0.2118219017 | C85: -0.405266616
A86: 79 | B86: 0.2037120558 | C86: 0.1187865698
A87: 80 | B87: 0.2701826797 | C87: -0.1208137001
A88: 81 | B88: 0.5709358113 | C88: -0.3210290561
A89: 82 | B89: -0.7378557719 | C89: -0.5578387733
A90: 83 | B90: -0.4252441298 | C90: 0.386053141
A91: 84 | B91: 0.8628507291 | C91: 0.5087486817
A92: 85 | B92: 0.6653260413 | C92: -0.2691791522
A93: 86 | B93: -0.0667799378 | C93: 0.1756070162
A94: 87 | B94: -0.836947826 | C94: -0.2862255488
A95: 88 | B95: 0.2289624447 | C95: 0.1962201298
A96: 89 | B96: -0.9868492369 | C96: 0.08971869586
A97: 90 | B97: -0.7669111409 | C97: 0.2075559872
A98: 91 | B98: -0.4355396489 | C98: 0.2027233164
A99: 92 | B99: -0.3187457888 | C99: 0.03492912859
A100: 93 | B100: 0.03240074821 | C100: 0.8748673513
A101: 94 | B101: -0.19280715 | C101: 0.0278263095
A102: 95 | B102: -0.1110763839 | C102: 0.08807883549
A103: 96 | B103: -0.8191504998 | C103: -0.1328067809
A104: 97 | B104: -0.2017534794 | C104: -0.04083459731
A105: 98 | B105: 0.2569781678 | C105: 0.2270863766
A106: 99 | B106: -0.005885846584 | C106: 0.01293146639
A107: 100 | B107: 0.4645703059 | C107: 0.2082915656
A108: 101 | B108: 0.4196996174 | C108: -0.1210857283
A109: 102 | B109: 1.412827672 | C109: -0.09980119841
A110: 103 | B110: 0.1732183962 | C110: -0.657482049
A111: 104 | B111: -0.2049629411 | C111: -0.325290989
A112: 105 | B112: -0.7859534755 | C112: -0.3086894588
A113: 106 | B113: -0.6141766988 | C113: 0.08124910696
A114: 107 | B114: -0.3407624621 | C114: -0.06234329309
A115: 108 | B115: -0.4618962467 | C115: -0.05803329872
A116: 109 | B116: -1.166167176 | C116: -0.4201786326
A117: 110 | B117: 0.115774522 | C117: -0.374517618
A118: 111 | B118: -0.8632277674 | C118: -0.2846921027
A119: 112 | B119: -0.5268928323 | C119: -0.02833439364
A120: 113 | B120: 0.4191219683 | C120: 0.5832354151
A121: 114 | B121: -0.5420388599 | C121: -0.2480230986
A122: 115 | B122: 0.2076338589 | C122: -0.04718806129
A123: 116 | B123: -0.545757109 | C123: -0.4710267128
A124: 117 | B124: -0.3046091938 | C124: -0.08470358666
A125: 118 | B125: 0.4003881542 | C125: 0.227270739
A126: 119 | B126: -0.7253952209 | C126: -0.2381520661
A127: 120 | B127: -0.3304684436 | C127: 0.2796946616
A128: 121 | B128: 0.0672373882 | C128: 0.09141406792
A129: 122 | B129: 0.3203509126 | C129: 0.06887432906
A130: 123 | B130: -0.03017245321 | C130: 0.07062908903
A131: 124 | B131: 0.8035781561 | C131: 0.08504839573
A132: 125 | B132: -0.5584036602 | C132: 0.3231226926
A133: 126 | B133: -0.03982744814 | C133: -0.1469433018
A134: 127 | B134: 0.1731367457 | C134: 0.2157997218
A135: 128 | B135: -0.8149911549 | C135: 0.02840693384
A136: 129 | B136: -0.5972503162 | C136: 0.8380842161
A137: 130 | B137: 0.9140914685 | C137: 0.05570980358
A138: 131 | B138: 0.2154939187 | C138: -0.00081594311
A139: 132 | B139: -0.2880340858 | C139: -0.05218535075
A140: 133 | B140: -0.8456689136 | C140: -0.1222943435
A141: 134 | B141: -0.5441795893 | C141: -0.05992631938
A142: 135 | B142: -0.185702284 | C142: 0.5369379133
A143: 136 | B143: 0.5856487137 | C143: 0.4190074651
A144: 137 | B144: 1.141914001 | C144: -0.1008576946
A145: 138 | B145: -0.4960183901 | C145: -0.002881143787
A146: 139 | B146: -0.5618346677 | C146: -0.1856648743
A147: 140 | B147: 0.3133002781 | C147: -0.02428793167
A148: 141 | B148: 0.2447944786 | C148: 0.2596850022
A149: 142 | B149: 0.2034502823 | C149: -0.7363545151
A150: 143 | B150: -0.5789176867 | C150: -0.5983570217
A151: 144 | B151: 0.4559051289 | C151: 0.2716104099
A152: 145 | B152: -0.6227346579 | C152: -0.9828481048
A153: 146 | B153: -0.5351740948 | C153: 0.1906365601
A154: 147 | B154: 0.03781028278 | C154: -0.1252243345
A155: 148 | B155: -1.237106866 | C155: -0.1910659789
A156: 149 | B156: 1.428474603 | C156: -0.02135194372
A157: 150 | B157: -0.1584282619 | C157: 0.2524479245
A158: 151 | B158: -0.9730008331 | C158: 0.4843534213
A159: 152 | B159: 0.5384637803 | C159: -0.2121960154
A160: 153 | B160: 2.204483977 | C160: 0.3159194301
A161: 154 | B161: 0.01538384087 | C161: -0.2454005321
A162: 155 | B162: 0.225279911 | C162: -0.1971729353
A163: 156 | B163: -0.1543552393 | C163: -0.4367548475
A164: 157 | B164: 0.2143859802 | C164: 0.09051212965
A165: 158 | B165: -0.3582806447 | C165: 0.271802258
A166: 159 | B166: -1.062370755 | C166: -0.5290314747
A167: 160 | B167: 0.03540032134 | C167: 0.9994848389
A168: 161 | B168: 0.2385624232 | C168: 0.07672662421
A169: 162 | B169: 0.1102117857 | C169: 0.1596377774
A170: 163 | B170: 0.158112608 | C170: 0.7114254598
A171: 164 | B171: 1.04665959 | C171: 0.3426882774
A172: 165 | B172: -0.4116358788 | C172: -0.2207233173
A173: 166 | B173: -1.116048189 | C173: -0.561100728
A174: 167 | B174: 0.3649129574 | C174: -0.4120530267
A175: 168 | B175: 0.717576473 | C175: -0.261527157
A176: 169 | B176: -0.3573495263 | C176: 0.01251792073
A177: 170 | B177: 0.2141842335 | C177: 0.4870445418
A178: 171 | B178: 0.0774931891 | C178: 0.9878927823
A179: 172 | B179: -0.1354392321 | C179: -0.375836101
A180: 173 | B180: -0.5074678791 | C180: 0.3717689685
A181: 174 | B181: 0.2522883841 | C181: -0.2071983653
A182: 175 | B182: -0.3560213636 | C182: -0.3086050994
A183: 176 | B183: -0.2852622386 | C183: -0.05850062086
A184: 177 | B184: 0.0660061956 | C184: -0.1353806109
A185: 178 | B185: 0.9999225473 | C185: 0.1612226921
A186: 179 | B186: -0.6559618594 | C186: -0.618641516
A187: 180 | B187: -0.6912723144 | C187: -0.1184786796
A188: 181 | B188: -0.1637553129 | C188: 0.04704252517
A189: 182 | B189: 0.2068124505 | C189: -0.2943741959
A190: 183 | B190: -0.5510173492 | C190: 0.05550468038
A191: 184 | B191: -0.1000288139 | C191: -0.1018977334
A192: 185 | B192: -0.9829406445 | C192: -0.02006002385
A193: 186 | B193: 0.8395856109 | C193: 0.1334253423
A194: 187 | B194: -1.109225117 | C194: -0.2347310592
A195: 188 | B195: 0.1399768496 | C195: -0.2569879612
A196: 189 | B196: -0.3276785364 | C196: -0.2051243494
A197: 190 | B197: 1.385046853 | C197: 0.2010647559
A198: 191 | B198: 0.2706882928 | C198: 0.200067216
A199: 192 | B199: 0.4924847173 | C199: 0.3575573719
A200: 193 | B200: 0.2779635363 | C200: 0.5839764379
... 807 more rows

Sheet m1000 g=1
A1: actual m | B1: =mean -> 3.6 | C1: =mean -> 3.6 | D1: mean | E1: =mean -> 3.6 | F1: for skew = 1 | W1: skew = | X1: exp prob | Y1: Zp | Z1: Kp,g | AA1: flow | AB1: logflow
A2: average = | B2: =AVERAGE(B8:B1007) -> 3.601510733 | C2: =AVERAGE(C8:C1007) -> 3.603302774 | D2: st.dev. | E2: =stdev -> 0.5 | W2: 1 | AC2: flow | AD2: logflow
A3: st.dev.= | B3: =STDEV(B8:B1007) -> 0.1644478135 | C3: =STDEV(C8:C1007) -> 0.07084717369 | D3: skew | E3: 1 | G3: N=10 | H3: N=50 | X3: 0.9995 | Y3: =NORMSINV(1-X3) -> -3.290526731 | Z3: =2/$W$2*(((Y3-$W$2/6)*$W$2/6+1)^3-1) -> -1.847764396 | AA3: =10^(mean+stdev*Z3) -> 474.3706406 | AB3: =LOG(AA3) -> 2.676117802 | AC3: =-(X4-X3)/(AA4-AA3) -> 2.302270386e-05 | AD3: =-(X4-X3)/(AB4-AB3) -> 0.02571856217
A4: s/sqrt(N) | B4: =stdev/SQRT(10) -> 0.158113883 | C4: =stdev/SQRT(50) -> 0.07071067812 | F4: 2.975 | R4: 1.95 | X4: 0.999 | Y4: -3.090232306 | Z4: =2/$W$2*(((Y4-$W$2/6)*$W$2/6+1)^3-1) -> -1.808881973 | AA4: 496.088333 | AB4: 2.695559013 | AC4: =-(X5-X4)/(AA5-AA4) -> 3.559878741e-05 | AD4: =-(X5-X4)/(AB5-AB4) -> 0.04180470655
A5: skew = | B5: =SKEW(B8:B1007) -> 0.389956291 | C5: =SKEW(C8:C1007) -> 0.04033863261 | F5: 3.025 | G5: =FREQUENCY(B8:B1007,$F$5:$F$29) -> 0 | H5: =FREQUENCY(C8:C1007,$F$5:$F$29) -> 0 | I5: =AVERAGE(F4:F5) -> 3 | R5: 2.05 | S5: =FREQUENCY(B8:B1007,$R5:$R40)/1000/0.1 -> 0 | T5: =FREQUENCY(C8:C1007,$R5:$R40)/1000/0.1 -> 0 | U5: =AVERAGE(R4:R5) -> 2 | X5: 0.998 | Y5: -2.878161739 | Z5: -1.76104047 | AA5: 524.1791774 | AB5: 2.719479765 | AC5: =-(X6-X5)/(AA6-AA5) -> 5.847910043e-05 | AD5: =-(X6-X5)/(AB6-AB5) -> 0.07398249104
F6: 3.075 | G6: 0 | H6: 0 | I6: =AVERAGE(F5:F6) -> 3.05 | R6: 2.15 | S6: 0 | T6: 0 | U6: =AVERAGE(R5:R6) -> 2.1 | X6: 0.995 | Y6: -2.575829304 | Z6: -1.6799402 | AA6: 575.4795561 | AB6: 2.7600299 | AC6: =-(X7-X6)/(AA7-AA6) -> 9.08725512e-05 | AD6: =-(X7-X6)/(AB7-AB6) -> 0.1260832368
B7: N=10 | C7: N=50 | F7: 3.125 | G7: 0 | H7: 0 | I7: 3.1 | R7: 2.25 | S7: 0 | T7: 0 | U7: 2.2 | X7: 0.99 | Y7: -2.326347874 | Z7: -1.600627515 | AA7: 630.5016716 | AB7: 2.799686242 | AC7: =-(X8-X7)/(AA8-AA7) -> 0.0001195256126 | AD7: =-(X8-X7)/(AB8-AB7) -> 0.1792201775
A8: 1 | B8: 3.941919396 | C8: 3.682253616 | F8: 3.175 | G8: 0 | H8: 0 | I8: 3.15 | R8: 2.35 | S8: 0 | T8: 0 | U8: 2.3 | X8: 0.985 | Y8: -2.170090378 | Z8: -1.544830227 | AA8: 672.3337098 | AB8: 2.827584887 | AC8: 0.0001406300857 | AD8: 0.2234172456
A9: 2 | B9: 3.295436575 | C9: 3.455333031 | F9: 3.225 | G9: 3 | H9: 0 | I9: 3.2 | R9: 2.45 | S9: 0 | T9: 0 | U9: 2.4 | X9: 0.98 | Y9: -2.053748911 | Z9: -1.500070924 | AA9: 707.8879795 | AB9: 2.849964538 | AC9: 0.0001573250477 | AD9: 0.2621498006
A10: 3 | B10: 3.597441533 | C10: 3.480064083 | F10: 3.275 | G10: 9 | H10: 0 | I10: 3.25 | R10: 2.55 | S10: 0 | T10: 0 | U10: 2.5 | X10: 0.975 | Y10: -1.959963985 | Z10: -1.461924796 | AA10: 739.6693143 | AB10: 2.869037602 | AC10: 0.00017100806 | AD10: 0.2969719097
A11: 4 | B11: 3.708747325 | C11: 3.621392806 | F11: 3.325 | G11: 29 | H11: 0 | I11: 3.3 | R11: 2.65 | S11: 0 | T11: 0 | U11: 2.6 | X11: 0.97 | Y11: -1.880793608 | Z11: -1.428251577 | AA11: 768.9077022 | AB11: 2.885874211 | AC11: 0.0001824632812 | AD11: 0.3287696197
A12: 5 | B12: 3.641356275 | C12: 3.735339428 | F12: 3.375 | G12: 37 | H12: 1 | I12: 3.35 | R12: 2.75 | S12: 0 | T12: 0 | U12: 2.7 | X12: 0.965 | Y12: -1.811910673 | Z12: -1.397835142 | AA12: 796.3104759 | AB12: 2.901082429 | AC12: 0.0001921870296 | AD12: 0.358114497
A13: 6 | B13: 3.578181469 | C13: 3.590068869 | F13: 3.425 | G13: 55 | H13: 2 | I13: 3.4 | R13: 2.85 | S13: 0 | T13: 0 | U13: 2.8 | X13: 0.96 | Y13: -1.750686071 | Z13: -1.369911112 | AA13: 822.3267997 | AB13: 2.915044444 | AC13: 0.0002005183097 | AD13: 0.3854046971
A14: 7 | B14: 3.82432472 | C14: 3.691953574 | F14: 3.475 | G14: 88 | H14: 31 | I14: 3.45 | R14: 2.95 | S14: 0 | T14: 0 | U14: 2.9 | X14: 0.955 | Y14: -1.69539771 | Z14: -1.34396436 | AA14: 847.2621785 | AB14: 2.92801782 | AC14: 0.0002077013212 | AD14: 0.4109326918
A15: 8 | B15: 3.774190161 | C15: 3.680050593 | F15: 3.525 | G15: 115 | H15: 98 | I15: 3.5 | R15: 3.05 | S15: 0 | T15: 0 | U15: 3 | X15: 0.95 | Y15: -1.644853627 | Z15: -1.319629474 | AA15: 871.3352078 | AB15: 2.940185263 | AC15: 0.0002139190537 | AD15: 0.4349218823
A16: 9 | B16: 3.713311358 | C16: 3.569849424 | F16: 3.575 | G16: 115 | H16: 206 | I16: 3.55 | R16: 3.15 | S16: 0 | T16: 0 | U16: 3.1 | X16: 0.945 | Y16: -1.59819314 | Z16: -1.29663684 | AA16: 894.7085349 | AB16: 2.95168158 | AC16: 0.0002193128835 | AD16: 0.4575481218
A17: 10 | B17: 3.501000102 | C17: 3.548692968 | F17: 3.625 | G17: 139 | H17: 287 | I17: 3.6 | R17: 3.25 | S17: 0.06 | T17: 0 | U17: 3.2 | X17: 0.94 | Y17: -1.554773595 | Z17: -1.274781215 | AA17: 917.5070131 | AB17: 2.962609393 | AC17: 0.0002239947361 | AD17: 0.4789531858
A18: 11 | B18: 3.673850131 | C18: 3.590209937 | F18: 3.675 | G18: 94 | H18: 227 | I18: 3.65 | R18: 3.35 | S18: 0.53 | T18: 0.01 | U18: 3.3 | X18: 0.935 | Y18: -1.514101888 | Z18: -1.253902348 | AA18: 939.8289662 | AB18: 2.973048826 | AC18: 0.0002280550093 | AD18: 0.499253627
A19: 12 | B19: 3.774053465 | C19: 3.72352606 | F19: 3.725 | G19: 92 | H19: 102 | I19: 3.7 | R19: 3.45 | S19: 1.2 | T19: 0.12 | U19: 3.4 | X19: 0.93 | Y19: -1.475791028 | Z19: -1.233872448 | AA19: 961.7535011 | AB19: 2.983063776 | AC19: 0.0002315679401 | AD19: 0.5185468286
A20: 13 | B20: 3.322073539 | C20: 3.490754029 | F20: 3.775 | G20: 75 | H20: 38 | I20: 3.75 | R20: 3.55 | S20: 2.12 | T20: 2.06 | U20: 3.5 | X20: 0.925 | Y20: -1.439531471 | Z20: -1.214587787 | AA20: 983.3454365 | AB20: 2.992706107 | AC20: 0.0002345953615 | AD20: 0.5369152808
A21: 14 | B21: 3.98347288 | C21: 3.627415362 | F21: 3.825 | G21: 59 | H21: 7 | I21: 3.8 | R21: 3.65 | S21: 2.5 | T21: 5.34 | U21: 3.6 | X21: 0.92 | Y21: -1.40507156 | Z21: -1.195962874 | AA21: 1004.658731 | AB21: 3.002018563 | AC21: 0.0002371894026 | AD21: 0.5544296832
A22: 15 | B22: 3.458008215 | C22: 3.483215667 | F22: 3.875 | G22: 36 | H22: 1 | I22: 3.85 | R22: 3.75 | S22: 1.79 | T22: 2.25 | U22: 3.7 | X22: 0.915 | Y22: -1.372203809 | Z22: -1.177926322 | AA22: 1025.738931 | AB22: 3.011036839 | AC22: 0.0002393944772 | AD22: 0.57115125
A23: 16 | B23: 3.493596719 | C23: 3.567624177 | F23: 3.925 | G23: 24 | H23: 0 | I23: 3.9 | R23: 3.85 | S23: 1.14 | T23: 0.22 | U23: 3.8 | X23: 0.91 | Y23: -1.340755034 | Z23: -1.160417825 | AA23: 1046.62496 | AB23: 3.019791087 | AC23: 0.0002412487764 | AD23: 0.5871334572
A24: 17 | B24: 3.57812291 | C24: 3.669801592 | F24: 3.975 | G24: 11 | H24: 0 | I24: 3.95 | R24: 3.95 | S24: 0.42 | T24: 0 | U24: 3.9 | X24: 0.905 | Y24: -1.310579112 | Z24: -1.143385922 | AA24: 1067.350453 | AB24: 3.028307039 | AC24: 0.000242785409 | AD24: 0.6024233888
A25: 18 | B25: 3.48477386 | C25: 3.673245182 | F25: 4.025 | G25: 10 | H25: 0 | I25: 4 | R25: 4.05 | S25: 0.16 | T25: 0 | U25: 4 | X25: 0.9 | Y25: -1.281551566 | Z25: -1.126786301 | AA25: 1087.944772 | AB25: 3.036606849 | AC25: 0.0002440332877 | AD25: 0.6170627919
A26: 19 | B26: 3.584675401 | C26: 3.662095679 | F26: 4.075 | G26: 5 | H26: 0 | I26: 4.05 | R26: 4.15 | S26: 0.06 | T26: 0 | U26: 4.1 | X26: 0.895 | Y26: -1.253565438 | Z26: -1.110580495 | AA26: 1108.43378 | AB26: 3.044709753 | AC26: 0.0002450178251 | AD26: 0.6310889137
A27: 20 | B27: 3.677117554 | C27: 3.702378979 | F27: 4.125 | G27: 2 | H27: 0 | I27: 4.1 | R27: 4.25 | S27: 0.01 | T27: 0 | U27: 4.2 | X27: 0.89 | Y27: -1.22652812 | Z27: -1.094734867 | AA27: 1128.840458 | AB27: 3.052632566 | AC27: 0.0002457614893 | AD27: 0.6445351745
A28: 21 | B28: 3.352966583 | C28: 3.490286006 | F28: 4.175 | G28: 1 | H28: 0 | I28: 4.15 | R28: 4.35 | S28: 0 | T28: 0 | U28: 4.3 | X28: 0.885 | Y28: -1.200358858 | Z28: -1.07921981 | AA28: 1149.185387 | AB28: 3.060390095 | AC28: 0.0002462842509 | AD28: 0.6574317139
A29: 22 | B29: 3.667903877 | C29: 3.54219068 | F29: 4.225 | G29: 0 | H29: 0 | I29: 4.2 | R29: 4.45 | S29: 0.01 | T29: 0 | U29: 4.4 | X29: 0.88 | Y29: -1.174986792 | Z29: -1.064009105 | AA29: 1169.487132 | AB29: 3.067995448 | AC29: 0.0002466039462 | AD29: 0.6698058392
A30: 23 | B30: 3.814283702 | C30: 3.602344926 | R30: 4.55 | S30: 0 | T30: 0 | U30: 4.5 | X30: 0.875 | Y30: -1.15034938 | Z30: -1.049079405 | AA30: 1189.762558 | AB30: 3.075460297 | AC30: 0.0002467365764 | AD30: 0.6816823965
A31: 24 | B31: 3.753266489 | C31: 3.701522212 | G31: =SUM(G5:G29) -> 999 | H31: =SUM(H5:H29) -> 1000 | R31: 4.65 | S31: 0 | T31: 0 | U31: 4.6 | X31: 0.87 | Y31: -1.126391129 | Z31: -1.034409817 | AA31: 1210.027085 | AB31: 3.082795091 | AC31: 0.0002466965548 | AD31: 0.6930840805
A32: 25 | B32: 3.914841923 | C32: 3.605067945 | R32: 4.75 | S32: 0 | T32: 0 | U32: 4.7 | X32: 0.865 | Y32: -1.103062556 | Z32: -1.019981553 | AA32: 1230.294899 | AB32: 3.090009223 | AC32: 0.0002464969123 | AD32: 0.704031695
A33: 26 | B33: 3.57877767 | C33: 3.706688858 | R33: 4.85 | S33: 0 | T33: 0 | U33: 4.8 | X33: 0.86 | Y33: -1.080319341 | Z33: -1.005777647 | AA33: 1250.579129 | AB33: 3.097111176 | AC33: 0.0002461494716 | AD33: 0.7145443731
A34: 27 | B34: 3.770867862 | C34: 3.744994523 | R34: 4.95 | S34: 0 | T34: 0 | U34: 4.9 | X34: 0.855 | Y34: -1.058121618 | Z34: -0.9917827151 | AA34: 1270.89199 | AB34: 3.104108642 | AC34: 0.0002456649927 | AD34: 0.7246397655
A35: 28 | B35: 3.653046148 | C35: 3.627338803 | R35: 5.05 | S35: 0 | T35: 0 | U35: 5 | X35: 0.85 | Y35: -1.036433389 | Z35: -0.9779827548 | AA35: 1291.24491 | AB35: 3.111008623 | AC35: 0.0002450532983 | AD35: 0.7343342017
A36: 29 | B36: 3.746262325 | C36: 3.535775367 | R36: 5.15 | S36: 0 | T36: 0 | U36: 5.1 | X36: 0.845 | Y36: -1.015222033 | Z36: -0.964364977 | AA36: 1311.648635 | AB36: 3.117817511 | AC36: 0.0002443233799 | AD36: 0.7436428284
A37: 30 | B37: 3.578033901 | C37: 3.565689211 | R37: 5.25 | S37: 0 | T37: 0 | U37: 5.2 | X37: 0.84 | Y37: -0.9944578832 | Z37: -0.9509176612 | AA37: 1332.113315 | AB37: 3.124541169 | AC37: 0.0002434834892 | AD37: 0.7525797301
A38: 31 | B38: 3.657193189 | C38: 3.6289049 | R38: 5.35 | S38: 0 | T38: 0 | U38: 5.3 | X38: 0.835 | Y38: -0.9741138771 | Z38: -0.9376300325 | AA38: 1352.648589 | AB38: 3.131184984 | AC38: 0.0002425412179 | AD38: 0.7611580337
A39: 32 | B39: 3.788391364 | C39: 3.712612176 | R39: 5.45 | S39: 0 | T39: 0 | U39: 5.4 | X39: 0.83 | Y39: -0.9541652531 | Z39: -0.9244921563 | AA39: 1373.263642 | AB39: 3.137753922 | AC39: 0.0002415035659 | AD39: 0.76939
A40: 33 | B40: 3.554444709 | C40: 3.728997419 | R40: 5.55 | S40: 0 | T40: 0 | U40: 5.5 | X40: 0.825 | Y40: -0.9345892911 | Z40: -0.9114948468 | AA40: 1393.96727 | AB40: 3.144252577 | AC40: 0.000240377001 | AD40: 0.7772871043
A41: 34 | B41: 3.515471049 | C41: 3.646306792 | X41: 0.82 | Y41: -0.9153650878 | Z41: -0.8986295876 | AA41: 1414.767928 | AB41: 3.150685206 | AC41: 0.000239167512 | AD41: 0.7848601069
A42: 35 | B42: 3.513868861 | C42: 3.603196798 | X42: 0.815 | Y42: -0.896473364 | Z42: -0.8858884636 | AA42: 1435.673778 | AB42: 3.157055768 | AC42: 0.0002378806539 | AD42: 0.792119116
A43: 36 | B43: 3.74195501 | C43: 3.658495306 | X43: 0.81 | Y43: -0.8778962951 | Z43: -0.8732640996 | AA43: 1456.692721 | AB43: 3.16336795 | AC43: 0.0002365215891 | AD43: 0.7990736434
A44: 37 | B44: 3.233543469 | C44: 3.516878042 | X44: 0.805 | Y44: -0.8596173642 | Z44: -0.8607496085 | AA44: 1477.832441 | AB44: 3.169625196 | AC44: 0.0002350951228 | AD44: 0.8057326539
A45: 38 | B45: 3.400487479 | C45: 3.661419464 | X45: 0.8 | Y45: -0.8416212336 | Z45: -0.848338544 | AA45: 1499.100428 | AB45: 3.175830728 | AC45: 0.0002336057352 | AD45: 0.8121046096
A46: 39 | B46: 3.651279982 | C46: 3.586906016 | X46: 0.795 | Y46: -0.8238936303 | Z46: -0.8360248594 | AA46: 1520.504012 | AB46: 3.18198757 | AC46: 0.0002320576097 | AD46: 0.8181975095
A47: 40 | B47: 3.743647501 | C47: 3.692414432 | X47: 0.79 | Y47: -0.806421247 | Z47: -0.8238028716 | AA47: 1542.050385 | AB47: 3.188098564 | AC47: 0.0002304546578 | AD47: 0.8240189255
A48: 41 | B48: 3.602462578 | C48: 3.754576651 | X48: 0.785 | Y48: -0.7891916527 | Z48: -0.811667228 | AA48: 1563.746627 | AB48: 3.194166386 | AC48: 0.0002288005424 | AD48: 0.8295760341
A49: 42 | B49: 3.428542909 | C49: 3.49490989 | X49: 0.78 | Y49: -0.7721932142 | Z49: -0.7996128778 | AA49: 1585.599722 | AB49: 3.200193561 | AC49: 0.0002270986976 | AD49: 0.8348756458
A50: 43 | B50: 3.582583742 | C50: 3.507283678 | X50: 0.775 | Y50: -0.7554150264 | Z50: -0.7876350461 | AA50: 1607.616581 | AB50: 3.206182477 | AC50: 0.0002253523472 | AD50: 0.839924231
A51: 44 | B51: 3.514669427 | C51: 3.595613517 | X51: 0.77 | Y51: -0.7388468492 | Z51: -0.7757292103 | AA51: 1629.804058 | AB51: 3.212135395 | AC51: 0.0002235645211 | AD51: 0.8447279443
A52: 45 | B52: 3.493131172 | C52: 3.520564077 | X52: 0.765 | Y52: -0.7224790519 | Z52: -0.7638910793 | AA52: 1652.168967 | AB52: 3.21805446 | AC52: 0.0002217380699 | AD52: 0.8492926456
A53: 46 | B53: 3.43525159 | C53: 3.503286529 | X53: 0.76 | Y53: -0.7063025628 | Z53: -0.7521165749 | AA53: 1674.718094 | AB53: 3.223941713 | AC53: 0.0002198756789 | AD53: 0.8536239205
A54: 47 | B54: 3.97509118 | C54: 3.680720636 | X54: 0.755 | Y54: -0.6903088239 | Z54: -0.7404018142 | AA54: 1697.458217 | AB54: 3.229799093 | AC54: 0.0002179798799 | AD54: 0.8577270978
A55: 48 | B55: 3.78112483 | C55: 3.705216644 | X55: 0.75 | Y55: -0.6744897502 | Z55: -0.7287430942 | AA55: 1720.396114 | AB55: 3.235628453 | AC55: 0.0002160530624 | AD55: 0.8616072666
A56: 49 | B56: 3.470999941 | C56: 3.600389058 | X56: 0.745 | Y56: -0.6588376927 | Z56: -0.7171368783 | AA56: 1743.538577 | AB56: 3.241431561 | AC56: 0.0002140974839 | AD56: 0.8652692908
A57: 50 | B57: 3.694184786 | C57: 3.627223105 | X57: 0.74 | Y57: -0.6433454054 | Z57: -0.7055797826 | AA57: 1766.892424 | AB57: 3.247210109 | AC57: 0.0002121152787 | AD57: 0.8687178234
A58: 51 | B58: 3.52281623 | C58: 3.645991515 | X58: 0.735 | Y58: -0.6280060144 | Z58: -0.6940685649 | AA58: 1790.464512 | AB58: 3.252965718 | AC58: 0.0002101084669 | AD58: 0.8719573194
A59: 52 | B59: 3.760792168 | C59: 3.582598193 | X59: 0.73 | Y59: -0.612812991 | Z59: -0.6826001136 | AA59: 1814.261745 | AB59: 3.258699943 | AC59: 0.0002080789618 | AD59: 0.8749920472
A60: 53 | B60: 3.541399387 | C60: 3.713537158 | X60: 0.725 | Y60: -0.597760126 | Z60: -0.6711714383 | AA60: 1838.291084 | AB60: 3.264414281 | AC60: 0.0002060285768 | AD60: 0.8778260997
A61: 54 | B61: 3.494586927 | C61: 3.587483093 | X61: 0.72 | Y61: -0.5828415073 | Z61: -0.6597796604 | AA61: 1862.559562 | AB61: 3.27011017 | AC61: 0.0002039590326 | AD61: 0.8804634044
A62: 55 | B62: 3.571829669 | C62: 3.584017768 | X62: 0.715 | Y62: -0.5680514983 | Z62: -0.6484220049 | AA62: 1887.074289 | AB62: 3.275788998 | AC62: 0.0002018719622 | AD62: 0.8829077327
A63: 56 | B63: 3.581544484 | C63: 3.555832319 | X63: 0.71 | Y63: -0.5533847196 | Z63: -0.6370957931 | AA63: 1911.842464 | AB63: 3.281452103 | AC63: 0.0001997689173 | AD63: 0.8851627081
A64: 57 | B64: 3.662777381 | C64: 3.61392232 | X64: 0.705 | Y64: -0.5388360303 | Z64: -0.6257984351 | AA64: 1936.871382 | AB64: 3.287100782 | AC64: 0.000197651373 | AD64: 0.8872318149
A65: 58 | B65: 3.780152052 | C65: 3.685272049 | X65: 0.7 | Y65: -0.5244005127 | Z65: -0.6145274236 | AA65: 1962.168449 | AB65: 3.292736288 | AC65: 0.0001955207325 | AD65: 0.8891184052
A66: 59 | B66: 4.028140515 | C66: 3.746107285 | X66: 0.695 | Y66: -0.510073457 | Z66: -0.6032803277 | AA66: 1987.741185 | AB66: 3.298359836 | AC66: 0.0001933783312 | AD66: 0.8908257058
A67: 60 | B67: 3.703653352 | C67: 3.600534271 | X67: 0.69 | Y67: -0.4958503473 | Z67: -0.5920547872 | AA67: =10^(mean+stdev*Z67) -> 2013.597236 | AB67: 3.303972606 | AC67: 0.0001912254415 | AD67: 0.8923568247
A68: 61 | B68: 3.438146173 | C68: 3.562015919 | X68: 0.685 | Y68: -0.4817268496 | Z68: =2/$W$2*(((Y68-$W$2/6)*$W$2/6+1)^3-1) -> -0.5808485077 | AA68: 2039.744384 | AB68: 3.309575746 | AC68: 0.0001890632757 | AD68: 0.8937147573
A69: 62 | B69: 3.338832568 | C69: 3.521110111 | X69: 0.68 | Y69: =NORMSINV(1-X69) -> -0.4676987991 | Z69: -0.5696592553 | AA69: 2066.190557 | AB69: =LOG(AA69) -> 3.315170372 | AC69: 0.0001868929899 | AD69: 0.8949023916
A70: 63 | B70: 3.589519919 | C70: 3.699564856 | X70: 0.675 | Y70: -0.4537621902 | Z70: -0.5584848523 | AA70: 2092.943834 | AB70: 3.320757574 | AC70: 0.0001847156871 | AD70: 0.895922514
A71: 64 | B71: 3.457136746 | C71: 3.561289117 | X71: 0.67 | Y71: -0.4399131657 | Z71: -0.5473231727 | AA71: 2120.012461 | AB71: 3.326338414 | AC71: =-(X72-X71)/(AA72-AA71) -> 0.0001825324201 | AD71: =-(X72-X71)/(AB72-AB71) -> 0.8967778136
A72: 65 | B72: 3.419705733 | C72: 3.616538482 | X72: 0.665 | Y72: -0.4261480078 | Z72: -0.5361721386 | AA72: 2147.404855 | AB72: 3.331913931 | AC72: 0.0001803441946 | AD72: 0.8974708872
A73: 66 | B73: 3.544613996 | C73: 3.666226001 | X73: 0.66 | Y73: -0.4124631294 | Z73: -0.5250297159 | AA73: 2175.129618 | AB73: 3.337485142 | AC73: 0.0001781519714 | AD73: 0.8980042436
A74: 67 | B74: 3.290277304 | C74: 3.563630567 | X74: 0.655 | Y74: -0.3988550656 | Z74: -0.513893911 | AA74: 2203.195544 | AB74: 3.343053044 | AC74: 0.0001759566693 | AD74: 0.8983803072
A75: 68 | B75: 3.507219625 | C75: 3.531902027 | X75: 0.65 | Y75: -0.3853204664 | Z75: -0.5027627677 | AA75: 2231.611631 | AB75: 3.348618616 | AC75: 0.0001737591668 | AD75: 0.8986014223
A76: 69 | B76: 3.257826156 | C76: 3.578751724 | X76: 0.645 | Y76: -0.3718560894 | Z76: -0.4916343633 | AA76: 2260.387091 | AB76: 3.354182818 | AC76: 0.0001715603045 | AD76: 0.8986698565
A77: 70 | B77: 3.996022204 | C77: 3.647580652 | X77: 0.64 | Y77: -0.3584587933 | Z77: -0.4805068063 | AA77: 2289.531362 | AB77: 3.359746597 | AC77: 0.0001693608874 | AD77: 0.8985878041
A78: 71 | B78: 3.540405813 | C78: 3.563707784 | X78: 0.635 | Y78: -0.3451255315 | Z78: -0.4693782333 | AA78: 2319.054117 | AB78: 3.365310883 | AC78: 0.0001671616862 | AD78: 0.8983573888
A79: 72 | B79: 3.568608514 | C79: 3.690284591 | X79: 0.63 | Y79: -0.3318533464 | Z79: -0.458246806 | AA79: 2348.965277 | AB79: 3.370876597 | AC79: 0.0001649634392 | AD79: 0.8979806675
A80: 73 | B80: 3.789142685 | C80: 3.637093272 | X80: 0.625 | Y80: -0.318639364 | Z80: -0.4471107088 | AA80: 2379.275024 | AB80: 3.376444646 | AC80: 0.0001627668543 | AD80: 0.8974596324
A81: 74 | B81: 3.575137787 | C81: 3.638064681 | X81: 0.62 | Y81: -0.3054807881 | Z81: -0.4359681463 | AA81: 2409.993809 | AB81: 3.382015927 | AC81: 0.0001605726101 | AD81: 0.8967962139
A82: 75 | B82: 3.543156423 | C82: 3.67299367 | X82: 0.615 | Y82: -0.2923748962 | Z82: -0.424817341 | AA82: 2441.132369 | AB82: 3.38759133 | AC82: 0.0001583813574 | AD82: 0.8959922832
A83: 76 | B83: 3.837425015 | C83: 3.578405337 | X83: 0.61 | Y83: -0.2793190344 | Z83: -0.4136565306 | AA83: 2472.701742 | AB83: 3.393171735 | AC83: 0.0001561937208 | AD83: 0.8950496545
A84: 77 | B84: 3.479871406 | C84: 3.63840338 | X84: 0.605 | Y84: -0.2663106132 | Z84: -0.4024839661 | AA84: 2504.713272 | AB84: 3.398758017 | AC84: 0.0001540102998 | AD84: 0.8939700873
A85: 78 | B85: 3.678723134 | C85: 3.536336542 | X85: 0.6 | Y85: -0.2533471031 | Z85: -0.3912979095 | AA85: 2537.178633 | AB85: 3.404351045 | AC85: 0.0001518316699 | AD85: 0.8927552884
A86: 79 | B86: 3.434926555 | C86: 3.602717057 | X86: 0.595 | Y86: -0.2404260311 | Z86: -0.3800966317 | AA86: 2570.109839 | AB86: 3.409951684 | AC86: 0.0001496583841 | AD86: 0.8914069142
A87: 80 | B87: 3.800773277 | C87: 3.779993341 | X87: 0.59 | Y87: -0.2275449766 | Z87: -0.3688784104 | AA87: 2603.51926 | AB87: 3.415560795 | AC87: 0.0001474909734 | AD87: 0.8899265722
A88: 81 | B88: 3.703314835 | C88: 3.555264805 | X88: 0.585 | Y88: -0.214701568 | Z88: -0.3576415283 | AA88: 2637.41964 | AB88: 3.421179236 | AC88: 0.0001453299485 | AD88: 0.8883158231
A89: 82 | B89: 3.568595816 | C89: 3.574084392 | X89: 0.58 | Y89: -0.2018934791 | Z89: -0.3463842707 | AA89: 2671.824111 | AB89: 3.426807865 | AC89: 0.0001431758 | AD89: 0.8865761822
A90: 83 | B90: 4.066019276 | C90: 3.67127318 | X90: 0.575 | Y90: -0.1891184263 | Z90: -0.3351049242 | AA90: 2706.746214 | AB90: 3.432447538 | AC90: 0.000141029 | AD90: 0.8847091216
A91: 84 | B91: 3.617646839 | C91: 3.600103045 | X91: 0.57 | Y91: -0.1763741648 | Z91: -0.3238017741 | AA91: 2742.199915 | AB91: 3.438099113 | AC91: 0.0001388900025 | AD91: 0.8827160708
A92: 85 | B92: 3.550296116 | C92: 3.719938337 | X92: 0.565 | Y92: -0.1636584862 | Z92: -0.312473103 | AA92: 2778.199626 | AB92: 3.443763448 | AC92: 0.0001367592444 | AD92: 0.880598419
A93: 86 | B93: 3.792621589 | C93: 3.710450422 | X93: 0.56 | Y93: -0.1509692155 | Z93: -0.3011171889 | AA93: 2814.760226 | AB93: 3.449441406 | AC93: 0.0001346371461 | AD93: 0.8783575162
A94: 87 | B94: 3.483391281 | C94: 3.523950431 | X94: 0.555 | Y94: -0.138304208 | Z94: -0.2897323031 | AA94: 2851.897079 | AB94: 3.455133848 | AC94: 0.0001325241125 | AD94: 0.8759946743
A95: 88 | B95: 3.530010999 | C95: 3.61976459 | X95: 0.55 | Y95: -0.1256613469 | Z95: -0.2783167086 | AA95: 2889.626062 | AB95: 3.460841646 | AC95: 0.0001304205333 | AD95: 0.8735111686
A96: 89 | B96: 3.623974969 | C96: 3.611300232 | X96: 0.545 | Y96: -0.1130385406 | Z96: -0.2668686581 | AA96: 2927.963584 | AB96: 3.466565671 | AC96: 0.000128326784 | AD96: 0.8709082389
A97: 90 | B97: 3.609411698 | C97: 3.63379377 | X97: 0.54 | Y97: -0.1004337205 | Z97: -0.2553863922 | AA97: 2966.926611 | AB97: 3.472306804 | AC97: 0.0001262432264 | AD97: 0.8681870905
A98: 91 | B98: 3.552133922 | C98: 3.743443844 | X98: 0.535 | Y98: -0.0878448379 | Z98: -0.2438681375 | AA98: 3006.532697 | AB98: 3.478065931 | AC98: 0.0001241702092 | AD98: 0.8653488958
A99: 92 | B99: 3.518080164 | C99: 3.56918541 | X99: 0.53 | Y99: -0.0752698621 | Z99: -0.232312105 | AA99: 3046.800004 | AB99: 3.483843948 | AC99: 0.0001221080683 | AD99: 0.8623947944
A100: 93 | B100: 3.676282584 | C100: 3.747795875 | X100: 0.525 | Y100: -0.06270677794 | Z100: -0.2207164877 | AA100: 3087.747339 | AB100: 3.489641756 | AC100: 0.0001200571277 | AD100: 0.8593258951
A101: 94 | B101: 3.46062096 | C101: 3.568073187 | X101: 0.52 | Y101: -0.05015358346 | Z101: -0.2090794591 | AA101: 3129.394179 | AB101: 3.49546027 | AC101: 0.0001180177 | AD101: 0.8561432758
A102: 95 | B102: 3.900590635 | C102: 3.656893427 | X102: 0.515 | Y102: -0.03760828766 | Z102: -0.1973991711 | AA102: 3171.760706 | AB102: 3.501300414 | AC102: 0.0001159900865 | AD102: 0.8528479855
A103: 96 | B103: 3.458678143 | C103: 3.564455132 | X103: 0.51 | Y103: -0.02506890826 | Z103: -0.1856737521 | AA103: 3214.867838 | AB103: 3.507163124 | AC103: 0.0001139745781 | AD103: 0.8494410441
A104: 97 | B104: 3.695005024 | C104: 3.64471639 | X104: 0.505 | Y104: -0.01253346951 | Z104: -0.1739013047 | AA104: 3258.73727 | AB104: 3.513049348 | AC104: 0.0001119714553 | AD104: 0.8459234437
A105: 98 | B105: 3.598548944 | C105: 3.612679453 | X105: 0.5 | Y105: 0 | Z105: -0.162079904 | AA105: 3303.391508 | AB105: 3.518960048 | AC105: 0.000109980989 | AD105: 0.8422961495
A106: 99 | B106: 3.514747561 | C106: 3.601082952 | X106: 0.495 | Y106: 0.01253346951 | Z106: -0.1502075952 | AA106: 3348.853911 | AB106: 3.524896202 | AC106: 0.0001080034407 | AD106: 0.8385601001
A107: 100 | B107: 3.923029394 | C107: 3.652429533 | X107: 0.49 | Y107: 0.02506890826 | Z107: -0.1382823915 | AA107: 3395.148732 | AB107: 3.530858804 | AC107: 0.000106039063 | AD107: 0.8347162087
A108: 101 | B108: 3.377902766 | C108: 3.521266989 | X108: 0.485 | Y108: 0.03760828766 | Z108: -0.1263022719 | AA108: 3442.301167 | AB108: 3.536848864 | AC108: 0.0001040880997 | AD108: 0.8307653631
A109: 102 | B109: 3.482327177 | C109: 3.474541562 | X109: 0.48 | Y109: 0.05015358346 | Z109: -0.1142651788 | AA109: 3490.337398 | AB109: 3.542867411 | AC109: 0.0001021507866 | AD109: 0.826708427
A110: 103 | B110: 3.416682815 | C110: 3.633053829 | X110: 0.475 | Y110: 0.06270677794 | Z110: -0.1021690157 | AA110: 3539.284647 | AB110: 3.548915492 | AC110: 0.0001002273511 | AD110: 0.82254624
A111: 104 | B111: 3.755562125 | C111: 3.637297612 | X111: 0.47 | Y111: 0.0752698621 | Z111: -0.09001164444 | AA111: 3589.171229 | AB111: 3.554994178 | AC111: 9.831801353e-05 | AD111: 0.8182796189
A112: 105 | B112: 3.404095762 | C112: 3.640484436 | X112: 0.465 | Y112: 0.0878448379 | Z112: -0.07779088301 | AA112: 3640.02661 | AB112: 3.561104558 | AC112: 9.642298644e-05 | AD112: 0.8139093573
A113: 106 | B113: 3.400071439 | C113: 3.572268347 | X113: 0.46 | Y113: 0.1004337205 | Z113: -0.06550450258 | AA113: 3691.881465 | AB113: 3.567247749 | AC113: 9.454247555e-05 | AD113: 0.8094362268
A114: 107 | B114: 3.599227893 | C114: 3.588569146 | X114: 0.455 | Y114: 0.1130385406 | Z114: -0.05315022479 | AA114: 3744.767747 | AB114: 3.573424888 | AC114: 9.267667975e-05 | AD114: 0.8048609773
A115: 108 | B115: 3.804738598 | C115: 3.674013664 | X115: 0.45 | Y115: 0.1256613469 | Z115: -0.04072571884 | AA115: 3798.718752 | AB115: 3.579637141 | AC115: 9.082579146e-05 | AD115: 0.8001843374
A116: 109 | B116: 3.612012861 | C116: 3.655065872 | X116: 0.445 | Y116: 0.138304208 | Z116: -0.02822859845 | AA116: 3853.769194 | AB116: 3.585885701 | AC116: 8.898999682e-05 | AD116: 0.7954070148
A117: 110 | B117: 3.613975385 | C117: 3.547997507 | X117: 0.44 | Y117: 0.1509692155 | Z117: -0.01565641866 | AA117: 3909.955284 | AB117: 3.592171791 | AC117: 8.7169476e-05 | AD117: 0.790529697
A118: 111 | B118: 3.580560234 | C118: 3.683538624 | X118: 0.435 | Y118: 0.1636584862 | Z118: -0.003006672494 | AA118: 3967.314812 | AB118: 3.598496664 | AC118: 8.536440336e-05 | AD118: 0.785553051
A119: 112 | B119: 3.570347334 | C119: 3.701447591 | X119: 0.43 | Y119: 0.1763741648 | Z119: 0.009723212504 | AA119: 4025.887236 | AB119: 3.604861606 | AC119: 8.357494774e-05 | AD119: 0.7804777247
A120: 113 | B120: 3.847127404 | C120: 3.773867336 | X120: 0.425 | Y120: 0.1891184263 | Z120: 0.02253587798 | AA120: 4085.713777 | AB120: 3.611267939 | AC120: 8.180127266e-05 | AD120: 0.7753043462
A121: 114 | B121: 3.831898749 | C121: 3.580570819 | X121: 0.42 | Y121: 0.2018934791 | Z121: 0.03543403862 | AA121: 4146.83752 | AB121: 3.617717019 | AC121: 8.004353649e-05 | AD121: 0.7700335248
A122: 115 | B122: 3.869274587 | C122: 3.593418092 | X122: 0.415 | Y122: 0.214701568 | Z122: 0.04842048619 | AA122: 4209.303526 | AB122: 3.624210243 | AC122: 7.830189268e-05 | AD122: 0.7646658509
A123: 116 | B123: 3.468253281 | C123: 3.535717491 | X123: 0.41 | Y123: 0.2275449766 | Z123: 0.06149809387 | AA123: 4273.158942 | AB123: 3.630749047 | AC123: 7.657648999e-05 | AD123: 0.7592018968
A124: 117 | B124: 3.626268609 | C124: 3.657950381 | X124: 0.405 | Y124: 0.2404260311 | Z124: 0.07466982071 | AA124: 4338.453134 | AB124: 3.63733491 | AC124: 7.486747257e-05 | AD124: 0.7536422163
A125: 118 | B125: 3.576030524 | C125: 3.624950182 | X125: 0.4 | Y125: 0.2533471031 | Z125: 0.08793871646 | AA125: 4405.237811 | AB125: 3.643969358 | AC125: 7.317498026e-05 | AD125: 0.7479873454
A126: 119 | B126: 3.729240968 | C126: 3.686879527 | X126: 0.395 | Y126: 0.2663106132 | Z126: 0.1013079266 | AA126: 4473.567177 | AB126: 3.650653963 | AC126: 7.149914868e-05 | AD126: 0.7422378023
A127: 120 | B127: 3.556224682 | C127: 3.493068001 | X127: 0.39 | Y127: 0.2793190344 | Z127: 0.1147806977 | AA127: 4543.49808 | AB127: 3.657390349 | AC127: 6.984010942e-05 | AD127: 0.7363940878
A128: 121 | B128: 3.285453358 | C128: 3.53811039 | X128: 0.385 | Y128: 0.2923748962 | Z128: 0.128360383 | AA128: 4615.090178 | AB128: 3.664180192 | AC128: 6.819799022e-05 | AD128: 0.7304566853
A129: 122 | B129: 3.72403985 | C129: 3.548428572 | X129: 0.38 | Y129: 0.3054807881 | Z129: 0.1420504487 | AA129: 4688.406122 | AB129: 3.671025224 | AC129: 6.657291509e-05 | AD129: 0.7244260609
A130: 123 | B130: 3.730718252 | C130: 3.616644289 | X130: 0.375 | Y130: 0.318639364 | Z130: 0.15585448 | AA130: 4763.511741 | AB130: 3.67792724 | AC130: 6.496500448e-05 | AD130: 0.718302664
A131: 124 | B131: 3.47054519 | C131: 3.6183439 | X131: 0.37 | Y131: 0.3318533464 | Z131: 0.1697761881 | AA131: =10^(mean+stdev*Z131) -> 4840.476255 | AB131: 3.684888094 | AC131: 6.337437544e-05 | AD131: 0.7120869267
A132: 125 | B132: 3.632932653 | C132: 3.675391319 | X132: 0.365 | Y132: 0.3451255315 | Z132: =2/$W$2*(((Y132-$W$2/6)*$W$2/6+1)^3-1) -> 0.1838194174 | AA132: 4919.372496 | AB132: 3.691909709 | AC132: 6.180114173e-05 | AD132: 0.7057792646
A133: 126 | B133: 3.595601441 | C133: 3.629444664 | X133: 0.36 | Y133: =NORMSINV(1-X133) -> 0.3584587933 | Z133: 0.1979881533 | AA133: 5000.27715 | AB133: =LOG(AA133) -> 3.698994077 | AC133: 6.024541398e-05 | AD133: 0.6993800765
A134: 127 | B134: 3.489302012 | C134: 3.635849005 | X134: 0.355 | Y134: 0.3718560894 | Z134: 0.2122865303 | AA134: 5083.271019 | AB134: 3.706143265 | AC134: 5.870729982e-05 | AD134: 0.6928897444
A135: 128 | B135: 3.438880473 | C135: 3.580419723 | X135: 0.35 | Y135: 0.3853204664 | Z135: 0.2267188409 | AA135: 5168.439304 | AB135: 3.71335942 | AC135: =-(X136-X135)/(AA136-AA135) -> 5.718690399e-05 | AD135: =-(X136-X135)/(AB136-AB135) -> 0.686308634
A136: 129 | B136: 3.28266729 | C136: 3.478310851 | X136: 0.345 | Y136: 0.3988550656 | Z136: 0.2412895449 | AA136: 5255.871909 | AB136: 3.720644772 | AC136: 5.56843285e-05 | AD136: 0.6796370942
A137: 130 | B137: 3.995970012 | C137: 3.702234833 | X137: 0.34 | Y137: 0.4124631294 | Z137: 0.2560032798 | AA137: 5345.663779 | AB137: 3.72800164 | AC137: 5.419967272e-05 | AD137: 0.6728754573
A138: 131 | B138: 3.843398442 | C138: 3.636880816 | X138: 0.335 | Y138: 0.4261480078 | Z138: 0.270864871 | AA138: 5437.915259 | AB138: 3.735432436 | AC138: 5.273303351e-05 | AD138: 0.6660240392
A139: 132 | B139: 3.532001204 | C139: 3.600105025 | X139: 0.33 | Y139: 0.4399131657 | Z139: 0.2858793441 | AA139: 5532.732485 | AB139: 3.742939672 | AC139: 5.128450536e-05 | AD139: 0.6590831391
A140: 133 | B140: 3.476511934 | C140: 3.593579204 | X140: 0.325 | Y140: 0.4537621902 | Z140: 0.3010519367 | AA140: 5630.22782 | AB140: 3.750525968 | AC140: 4.985418046e-05 | AD140: 0.6520530395
A141: 134 | B141: 3.619029633 | C141: 3.609383684 | X141: 0.32 | Y141: 0.4676987991 | Z141: 0.3163881125 | AA141: 5730.520312 | AB141: 3.758194056 | AC141: 4.844214887e-05 | AD141: 0.6449340061
A142: 135 | B142: 3.64314607 | C142: 3.553674061 | X142: 0.315 | Y142: 0.4817268496 | Z142: 0.3318935749 | AA142: 5833.736212 | AB142: 3.765946787 | AC142: 4.704849857e-05 | AD142: 0.6377262878
A143: 136 | B143: 3.818544302 | C143: 3.612509668 | X143: 0.31 | Y143: 0.4958503473 | Z143: 0.3475742834 | AA143: 5940.009529 | AB143: 3.773787142 | AC143: 4.56733156e-05 | AD143: 0.6304301163
A144: 137 | B144: 3.476504659 | C144: 3.566035524 | X144: 0.305 | Y144: 0.510073457 | Z144: 0.3634364697 | AA144: 6049.482641 | AB144: 3.781718235 | AC144: 4.431668418e-05 | AD144: 0.6230457066
A145: 138 | B145: 3.399960052 | C145: 3.447756224 | X145: 0.3 | Y145: 0.5244005127 | Z145: 0.3794866566 | AA145: 6162.306967 | AB145: 3.789743328 | AC145: 4.297868678e-05 | AD145: 0.6155732557
A146: 139 | B146: 3.845382654 | C146: 3.575154489 | X146: 0.295 | Y146: 0.5388360303 | Z146: 0.3957316768 | AA146: 6278.643699 | AB146: 3.797865838 | AC146: 4.165940425e-05 | AD146: 0.6080129436
A147: 140 | B147: 3.767984967 | C147: 3.603931255 | X147: 0.29 | Y147: 0.5533847196 | Z147: 0.4121786951 | AA147: 6398.664619 | AB147: 3.806089348 | AC147: 4.035891591e-05 | AD147: 0.6003649321
A148: 141 | B148: 3.64006163 | C148: 3.582228946 | X148: 0.285 | Y148: 0.5680514983 | Z148: 0.4288352309 | AA148: 6522.552981 | AB148: 3.814417615 | AC148: 3.907729968e-05 | AD148: 0.592629365
A149: 142 | B149: 3.471701704 | C149: 3.643779017 | X149: 0.28 | Y149: 0.5828415073 | Z149: 0.4457091838 | AA149: 6650.504504 | AB149: 3.822854592 | AC149: 3.781463212e-05 | AD149: 0.5848063677
A150: 143 | B150: 3.79976033 | C150: 3.621204749 | X150: 0.275 | Y150: 0.597760126 | Z150: 0.4628088608 | AA150: 6782.728453 | AB150: 3.83140443 | AC150: 3.657098861e-05 | AD150: 0.5768960469
A151: 144 | B151: 3.914160207 | C151: 3.631512505 | X151: 0.27 | Y151: 0.612812991 | Z151: 0.4801430063 | AA151: 6919.448848 | AB151: 3.840071503 | AC151: 3.534644339e-05 | AD151: 0.5688984898
A152: 145 | B152: 3.462813906 | C152: 3.529429538 | X152: 0.265 | Y152: 0.6280060144 | Z152: 0.4977208347 | AA152: 7060.905796 | AB152: 3.848860417 | AC152: 3.414106971e-05 | AD152: 0.5608137645
A153: 146 | B153: 3.627651132 | C153: 3.552389913 | X153: 0.26 | Y153: 0.6433454054 | Z153: 0.5155520661 | AA153: 7207.356978 | AB153: 3.857776033 | AC153: 3.295493987e-05 | AD153: 0.5526419184
A154: 147 | B154: 3.571680191 | C154: 3.649665958 | X154: 0.255 | Y154: 0.6588376927 | Z154: 0.5336469656 | AA154: 7359.0793 | AB154: 3.866823483 | AC154: 3.178812539e-05 | AD154: 0.5443829787
A155: 148 | B155: 3.881007814 | C155: 3.693657395 | X155: 0.25 | Y155: 0.6744897502 | Z155: 0.5520163864 | AA155: 7516.370739 | AB155: 3.876008193 | AC155: 3.064069709e-05 | AD155: 0.5360369512
A156: 149 | B156: 3.37211961 | C156: 3.527896534 | X156: 0.245 | Y156: 0.6903088239 | Z156: 0.5706718167 | AA156: 7679.552405 | AB156: 3.885335908 | AC156: 2.951272518e-05 | AD156: 0.5276038198
A157: 150 | B157: 3.488175961 | C157: 3.514070086 | X157: 0.24 | Y157: 0.7063025628 | Z157: 0.5896254323 | AA157: 7848.97085 | AB157: 3.894812716 | AC157: 2.840427939e-05 | AD157: 0.5190835459
A158: 151 | B158: 3.502041595 | C158: 3.556512026 | X158: 0.235 | Y158: 0.7224790519 | Z158: 0.6088901539 | AA158: 8025.000663 | AB158: 3.904445077 | AC158: 2.731542905e-05 | AD158: 0.5104760672
A159: 152 | B159: 3.648777687 | C159: 3.553631012 | X159: 0.23 | Y159: 0.7388468492 | Z159: 0.6284797109 | AA159: 8208.047394 | AB159: 3.914239855 | AC159: 2.624624327e-05 | AD159: 0.5017812977
A160: 153 | B160: 3.648394092 | C160: 3.611823949 | X160: 0.225 | Y160: 0.7554150264 | Z160: 0.6484087119 | AA160: 8398.550848 | AB160: 3.924204356 | AC160: 2.519679096e-05 | AD160: 0.4929991257
A161: 154 | B161: 3.431884108 | C161: 3.522221385 | X161: 0.22 | Y161: 0.7721932142 | Z161: 0.6686927236 | AA161: 8596.988817 | AB161: 3.934346362 | AC161: 2.416714105e-05 | AD161: 0.4841294135
A162: 155 | B162: 3.248862101 | C162: 3.439240098 | X162: 0.215 | Y162: 0.7891916527 | Z162: 0.6893483576 | AA162: 8803.881307 | AB162: 3.944674179 | AC162: 2.315736253e-05 | AD162: 0.475171996
A163: 156 | B163: 3.495826867 | C163: 3.611990833 | X163: 0.21 | Y163: 0.806421247 | Z163: 0.7103933689 | AA163: 9019.79536 | AB163: 3.955196684 | AC163: 2.216752465e-05 | AD163: 0.4661266796
A164: 157 | B164: 3.587205991 | C164: 3.552621368 | X164: 0.205 | Y164: 0.8238936303 | Z164: 0.7318467643 | AA164: 9245.350539 | AB164: 3.965923382 | AC164: 2.119769701e-05 | AD164: 0.4569932404
A165: 158 | B165: 3.744809494 | C165: 3.527845908 | X165: 0.2 | Y165: 0.8416212336 | Z165: 0.7537289261 | AA165: 9481.225219 | AB165: 3.976864463 | AC165: 2.02479497e-05 | AD165: 0.4477714233
A166: 159 | B166: 3.735255619 | C166: 3.641681776 | X166: 0.195 | Y166: 0.8596173642 | Z166: 0.7760617492 | AA166: 9728.163802 | AB166: 3.988030875 | AC166: 1.93183535e-05 | AD166: 0.4384609399
A167: 160 | B167: 3.525553934 | C167: 3.433447542 | X167: 0.19 | Y167: 0.8778962951 | Z167: 0.7988687979 | AA167: 9986.985031 | AB167: 3.999434399 | AC167: 1.840897998e-05 | AD167: 0.4290614666
A168: 161 | B168: 3.723265309 | C168: 3.584356178 | X168: 0.185 | Y168: 0.896473364 | Z168: 0.8221754818 | AA168: 10258.59161 | AB168: 4.011087741 | AC168: 1.751990171e-05 | AD168: 0.4195726429
A169: 162 | B169: 3.780948139 | C169: 3.623344198 | X169: 0.18 | Y169: 0.9153650878 | Z169: 0.8460092569 | AA169: 10543.98134 | AB169: 4.023004628 | AC169: 1.66511924e-05 | AD169: 0.409994069
A170: 163 | B170: 3.709594802 | C170: 3.54654707 | X170: 0.175 | Y170: 0.9345892911 | Z170: 0.8703998537 | AA170: 10844.26013 | AB170: 4.035199927 | AC170: 1.580292715e-05 | AD170: 0.4003253031
A171: 164 | B171: 3.594504572 | C171: 3.663835191 | X171: 0.17 | Y171: 0.9541652531 | Z171: 0.8953795387 | AA171: 11160.65721 | AB171: 4.047689769 | AC171: 1.497518258e-05 | AD171: 0.3905658588
A172: 165 | B172: 3.823791919 | C172: 3.632781396 | X172: 0.165 | Y172: 0.9741138771 | Z172: 0.9209834152 | AA172: 11494.54296 | AB172: 4.060491708 | AC172: 1.416803712e-05 | AD172: 0.3807152019
A173: 166 | B173: 3.642635696 | C173: 3.664766693 | X173: 0.16 | Y173: 0.9944578832 | Z173: 0.9472497685 | AA173: 11847.44999 | AB173: 4.073624884 | AC173: 1.338157122e-05 | AD173: 0.370772747
A174: 167 | B174: 3.621087884 | C174: 3.693115828 | X174: 0.155 | Y174: 1.015222033 | Z174: 0.9742204671 | AA174: 12221.09819 | AB174: 4.087110234 | AC174: 1.261586761e-05 | AD174: 0.3607378534
A175: 168 | B175: 3.346948251 | C175: 3.541723753 | X175: 0.15 | Y175: 1.036433389 | Z175: 1.001941428 | AA175: 12617.42448 | AB175: 4.100970714 | AC175: 1.187101159e-05 | AD175: 0.3506098209
A176: 169 | B176: 3.36143122 | C176: 3.519624564 | X176: 0.145 | Y176: 1.058121618 | Z176: 1.030463162 | AA176: 13038.61858 | AB176: 4.115231581 | AC176: 1.114709137e-05 | AD176: 0.3403878848
A177: 170 | B177: 3.627361796 | C177: 3.706878174 | X177: 0.14 | Y177: 1.080319341 | Z177: 1.059841411 | AA177: 13487.16608 | AB177: 4.129920705 | AC177: 1.044419838e-05 | AD177: 0.3300712098
A178: 171 | B178: 3.213300287 | C178: 3.553783093 | X178: 0.135 | Y178: 1.103062556 | Z178: 1.090137904 | AA178: 13965.90076 | AB178: 4.145068952 | AC178: 9.76242767e-06 | AD178: 0.3196588844
A179: 172 | B179: 3.494476216 | C179: 3.517278504 | X179: 0.13 | Y179: 1.126391129 | Z179: 1.121421251 | AA179: 14478.06845 | AB179: 4.160710626 | AC179: 9.101878349e-06 | AD179: 0.3091499128
A180: 173 | B180: 3.639244556 | C180: 3.58154285 | X180: 0.125 | Y180: 1.15034938 | Z180: 1.153768018 | AA180: 15027.40561 | AB180: 4.176884009 | AC180: 8.462654061e-06 | AD180: 0.2985432068
A181: 174 | B181: 3.313108359 | C181: 3.551816822 | X181: 0.12 | Y181: 1.174986792 | Z181: 1.187264007 | AA181: 15618.2368 | AB181: 4.193632003 | AC181: 7.844863526e-06 | AD181: 0.2878375758
A182: 175 | B182: 3.6927445 | C182: 3.572677243 | X182: 0.115 | Y182: 1.200358858 | Z182: 1.222005822 | AA182: 16255.59652 | AB182: 4.211002911 | AC182: 7.248621158e-06 | AD182: 0.2770317158
A183: 176 | B183: 4.005109774 | C183: 3.748383765 | X183: 0.11 | Y183: 1.22652812 | Z183: 1.258102772 | AA183: 16945.38288 | AB183: 4.229051386 | AC183: 6.674047765e-06 | AD183: 0.2661241957
A184: 177 | B184: 3.682090272 | C184: 3.61341092 | X184: 0.105 | Y184: 1.253565438 | Z184: 1.295679213 | AA184: 17694.55343 | AB184: 4.247839606 | AC184: 6.121271357e-06 | AD184: 0.255113442
A185: 178 | B185: 3.512509781 | C185: 3.700526572 | X185: 0.1 | Y185: 1.281551566 | Z185: 1.334877461 | AA185: 18511.37721 | AB185: 4.26743873 | AC185: 5.590428072e-06 | AD185: 0.2439977197
A186: 179 | B186: 3.823504359 | C186: 3.60427688 | X186: 0.095 | Y186: 1.310579112 | Z186: 1.375861451 | AA186: 19405.7631 | AB186: 4.287930725 | AC186: 5.081663262e-06 | AD186: 0.2327751108
A187: 180 | B187: 3.599955208 | C187: 3.57658435 | X187: 0.09 | Y187: 1.340755034 | Z187: 1.41882137 | AA187: 20389.69291 | AB187: 4.309410685 | AC187: 4.595132761e-06 | AD187: 0.2214434864
A188: 181 | B188: 3.446146093 | C188: 3.586801705 | X188: 0.085 | Y188: 1.372203809 | Z188: 1.463979619 | AA188: 21477.80076 | AB188: 4.331989809 | AC188: 4.131004392e-06 | AD188: 0.2100004747
A189: 182 | B189: 3.77634646 | C189: 3.665856613 | X189: 0.08 | Y189: 1.40507156 | Z189: 1.511598559 | AA189: 22688.16016 | AB189: 4.355799279 | AC189: 3.689459763e-06 | AD189: 0.1984434193
A190: 183 | B190: 3.901399813 | C190: 3.610220855 | X190: 0.075 | Y190: 1.439531471 | Z190: 1.561990756 | AA190: 24043.37212 | AB190: 4.380995378 | AC190: 3.27069644e-06 | AD190: 0.1867693287
A191: 184 | B191: 3.80573539 | C191: 3.617153105 | X191: 0.07 | Y191: 1.475791028 | Z191: 1.615532738 | AA191: 25572.09852 | AB191: 4.407766369 | AC191: 2.874930598e-06 | AD191: 0.1749748108
A192: 185 | B192: 3.802612838 | C192: 3.643640919 | X192: 0.065 | Y192: 1.514101888 | Z192: 1.672683821 | AA192: 27311.27094 | AB192: 4.436341911 | AC192: 2.502400311e-06 | AD192: 0.1630559876
A193: 186 | B193: 3.718148423 | C193: 3.669279763 | X193: 0.06 | Y193: 1.554773595 | Z193: 1.734012449 | AA193: 29309.35253 | AB193: 4.467006225 | AC193: 2.153369683e-06 | AD193: 0.151008383
A194: 187 | B194: 3.331078445 | C194: 3.556568226 | X194: 0.055 | Y194: 1.59819314 | Z194: 1.800233938 | AA194: 31631.29476 | AB194: 4.500116969 | AC194: 1.828134135e-06 | AD194: 0.1388267683
A195: 188 | B195: 3.768488166 | C195: 3.610731194 | X195: 0.05 | Y195: 1.644853627 | Z195: 1.872266156 | AA195: =10^(mean+stdev*Z195) -> 34366.32383 | AB195: 4.536133078 | AC195: 1.527027301e-06 | AD195: 0.1265049462
A196: 189 | B196: 3.572063023 | C196: 3.561858047 | X196: 0.045 | Y196: 1.69539771 | Z196: =2/$W$2*(((Y196-$W$2/6)*$W$2/6+1)^3-1) -> 1.951314449 | AA196: 37640.65953 | AB196: 4.575657224 | AC196: 1.250430231e-06 | AD196: 0.1140354333
A197: 190 | B197: 3.503499861 | C197: 3.666293266 | X197: 0.04 | Y197: =NORMSINV(1-X197) -> 1.750686071 | Z197: 2.039006491 | AA197: 41639.28326 | AB197: =LOG(AA197) -> 4.619503245 | AC197: 9.987840388e-07 | AD197: 0.1014089736
A198: 191 | B198: 3.743330101 | C198: 3.595486619 | X198: 0.035 | Y198: 1.811910673 | Z198: 2.137617093 | AA198: 46645.37047 | AB198: 4.668808547 | AC198: 7.726078292e-07 | AD198: 0.08861374215
A199: 192 | B199: 3.486135437 | C199: 3.627508034 | X199: 0.03 | Y199: 1.880793608 | Z199: 2.250466407 | AA199: 53116.95904 | AB199: 4.725233204 | AC199: =-(X200-X199)/(AA200-AA199) -> 5.725252249e-07 | AD199: =-(X200-X199)/(AB200-AB199) -> 0.07563393081
A200: 193 | B200: 3.528237057 | C200: 3.591838498 | X200: 0.025 | Y200: 1.959963985 | Z200: 2.382682198 | AA200: 61850.1987 | AB200: 4.791341099 | AC200: 3.993056545e-07 | AD200: 0.0624469355
... 807 more rows

Sheet m1000 g=0 N=500
A1: actual m | B1: =mean -> 3.6 | C1: =mean -> 3.6 | D1: =mean -> 3.6
A2: average = | B2: =AVERAGE(B8:B1007) -> 3.601452641 | C2: =AVERAGE(C8:C1007) -> 3.601715753 | D2: =AVERAGE(D8:D1007) -> 3.600248673
A3: st.dev.= | B3: =STDEV(B8:B1007) -> 0.1539723007 | C3: =STDEV(C8:C1007) -> 0.07165838218 | D3: =STDEV(D8:D1007) -> 0.0226998101 | G3: N=10 | H3: N=50 | I3: N=500
A4: s/sqrt(N) | B4: =stdev/SQRT(10) -> 0.158113883 | C4: =stdev/SQRT(50) -> 0.07071067812 | D4: =stdev/SQRT(500) -> 0.02236067977 | F4: 2.975 | R4: 1.95
A5: skew = | B5: =SKEW(B8:B1007) -> 0.02191793093 | C5: =SKEW(C8:C1007) -> 0.06159867109 | D5: =SKEW(D8:D1007) -> 0.002438780049 | F5: 3.025 | G5: =FREQUENCY(B8:B1007,$F$5:$F$29) -> 0 | H5: =FREQUENCY(C8:C1007,$F$5:$F$29) -> 0 | I5: =FREQUENCY(D8:D1007,$F$5:$F$29) -> 0 | J5: =AVERAGE(F4:F5) -> 3 | R5: 2.05 | S5: =FREQUENCY(B8:B1007,$R5:$R40)/1000/0.1 -> 0 | T5: =FREQUENCY(C8:C1007,$R5:$R40)/1000/0.1 -> 0 | U5: =FREQUENCY(D8:D1007,$R5:$R40)/1000/0.1 -> 0 | V5: =AVERAGE(R4:R5) -> 2
F6: 3.075 | G6: 0 | H6: 0 | I6: 0 | J6: 3.05 | R6: 2.15 | S6: 0 | T6: 0 | U6: 0 | V6: 2.1
B7: N=10 | C7: N=50 | D7: N=500 | F7: 3.125 | G7: 0 | H7: 0 | I7: 0 | J7: 3.1 | R7: 2.25 | S7: 0 | T7: 0 | U7: 0 | V7: 2.2
A8: 1 | B8: 3.517425962 | C8: 3.532136469 | D8: 3.625746366 | F8: 3.175 | G8: 3 | H8: 0 | I8: 0 | J8: 3.15 | R8: 2.35 | S8: 0 | T8: 0 | U8: 0 | V8: 2.3
A9: 2 | B9: 3.734948768 | C9: 3.729970963 | D9: 3.590569587 | F9: 3.225 | G9: 6 | H9: 0 | I9: 0 | J9: 3.2 | R9: 2.45 | S9: 0 | T9: 0 | U9: 0 | V9: 2.4
A10: 3 | B10: 3.578347598 | C10: 3.482486767 | D10: 3.625242515 | F10: 3.275 | G10: 9 | H10: 0 | I10: 0 | J10: 3.25 | R10: 2.55 | S10: 0 | T10: 0 | U10: 0 | V10: 2.5
A11: 4 | B11: 3.659568681 | C11: 3.702410816 | D11: 3.567638872 | F11: 3.325 | G11: 21 | H11: 0 | I11: 0 | J11: 3.3 | R11: 2.65 | S11: 0 | T11: 0 | U11: 0 | V11: 2.6
A12: 5 | B12: 3.743128592 | C12: 3.59122061 | D12: 3.619156807 | F12: 3.375 | G12: 32 | H12: 0 | I12: 0 | J12: 3.35 | R12: 2.75 | S12: 0 | T12: 0 | U12: 0 | V12: 2.7
A13: 6 | B13: 3.634516884 | C13: 3.616781361 | D13: 3.611583513 | F13: 3.425 | G13: 51 | H13: 7 | I13: 0 | J13: 3.4 | R13: 2.85 | S13: 0 | T13: 0 | U13: 0 | V13: 2.8
A14: 7 | B14: 3.616653533 | C14: 3.633442061 | D14: 3.622208037 | F14: 3.475 | G14: 73 | H14: 28 | I14: 0 | J14: 3.45 | R14: 2.95 | S14: 0 | T14: 0 | U14: 0 | V14: 2.9
A15: 8 | B15: 3.619185356 | C15: 3.64880881 | D15: 3.592042922 | F15: 3.525 | G15: 109 | H15: 96 | I15: 0 | J15: 3.5 | R15: 3.05 | S15: 0 | T15: 0 | U15: 0 | V15: 3
A16: 9 | B16: 3.396397465 | C16: 3.465001979 | D16: 3.596419012 | F16: 3.575 | G16: 128 | H16: 227 | I16: 136 | J16: 3.55 | R16: 3.15 | S16: 0 | T16: 0 | U16: 0 | V16: 3.1
A17: 10 | B17: 3.629016632 | C17: 3.607570562 | D17: 3.632513137 | F17: 3.625 | G17: 137 | H17: 271 | I17: 721 | J17: 3.6 | R17: 3.25 | S17: 0.15 | T17: 0 | U17: 0 | V17: 3.2
A18: 11 | B18: 3.575821111 | C18: 3.644684839 | D18: 3.616108563 | F18: 3.675 | G18: 121 | H18: 226 | I18: 143 | J18: 3.65 | R18: 3.35 | S18: 0.38 | T18: 0 | U18: 0 | V18: 3.3
A19: 12 | B19: 3.885560182 | C19: 3.682028249 | D19: 3.615399924 | F19: 3.725 | G19: 105 | H19: 96 | I19: 0 | J19: 3.7 | R19: 3.45 | S19: 1.05 | T19: 0.16 | U19: 0 | V19: 3.4
A20: 13 | B20: 3.673578 | C20: 3.62770164 | D20: 3.578047079 | F20: 3.775 | G20: 70 | H20: 41 | I20: 0 | J20: 3.75 | R20: 3.55 | S20: 2.17 | T20: 2.2 | U20: 0.1 | V20: 3.5
A21: 14 | B21: 3.295880654 | C21: 3.435041792 | D21: 3.555544276 | F21: 3.825 | G21: 57 | H21: 6 | I21: 0 | J21: 3.8 | R21: 3.65 | S21: 2.55 | T21: 5.13 | U21: 9.75 | V21: 3.6
A22: 15 | B22: 3.681340986 | C22: 3.631215358 | D22: 3.614273062 | F22: 3.875 | G22: 43 | H22: 1 | I22: 0 | J22: 3.85 | R22: 3.75 | S22: 2.03 | T22: 2.34 | U22: 0.15 | V22: 3.7
A23: 16 | B23: 3.783403548 | C23: 3.622377794 | D23: 3.598657542 | F23: 3.925 | G23: 20 | H23: 1 | I23: 0 | J23: 3.9 | R23: 3.85 | S23: 1.11 | T23: 0.16 | U23: 0 | V23: 3.8
A24: 17 | B24: 3.34480892 | C24: 3.433369464 | D24: 3.612462259 | F24: 3.975 | G24: 7 | H24: 0 | I24: 0 | J24: 3.95 | R24: 3.95 | S24: 0.45 | T24: 0.01 | U24: 0 | V24: 3.9
A25: 18 | B25: 3.577118846 | C25: 3.614215356 | D25: 3.585889685 | F25: 4.025 | G25: 4 | H25: 0 | I25: 0 | J25: 4 | R25: 4.05 | S25: 0.08 | T25: 0 | U25: 0 | V25: 4
A26: 19 | B26: 3.71361571 | C26: 3.570733673 | D26: 3.648792316 | F26: 4.075 | G26: 3 | H26: 0 | I26: 0 | J26: 4.05 | R26: 4.15 | S26: 0.03 | T26: 0 | U26: 0 | V26: 4.1
A27: 20 | B27: 3.65435207 | C27: 3.662301646 | D27: 3.608199365 | F27: 4.125 | G27: 1 | H27: 0 | I27: 0 | J27: 4.1 | R27: 4.25 | S27: 0 | T27: 0 | U27: 0 | V27: 4.2
A28: 21 | B28: 3.894250367 | C28: 3.567264975 | D28: 3.575798013 | F28: 4.175 | G28: 0 | H28: 0 | I28: 0 | J28: 4.15 | R28: 4.35 | S28: 0 | T28: 0 | U28: 0 | V28: 4.3
A29: 22 | B29: 3.658619597 | C29: 3.677482826 | D29: 3.569505374 | F29: 4.225 | G29: 0 | H29: 0 | I29: 0 | J29: 4.2 | R29: 4.45 | S29: 0 | T29: 0 | U29: 0 | V29: 4.4
A30: 23 | B30: 3.709029684 | C30: 3.683226666 | D30: 3.596083499 | R30: 4.55 | S30: 0 | T30: 0 | U30: 0 | V30: 4.5
A31: 24 | B31: 3.50448059 | C31: 3.540906891 | D31: 3.62921548 | G31: =SUM(G5:G29) -> 1000 | H31: =SUM(H5:H29) -> 1000 | R31: 4.65 | S31: 0 | T31: 0 | U31: 0 | V31: 4.6
A32: 25 | B32: 3.514677052 | C32: 3.617499921 | D32: 3.629830632 | R32: 4.75 | S32: 0 | T32: 0 | U32: 0 | V32: 4.7
A33: 26 | B33: 3.725018046 | C33: 3.630772411 | D33: 3.61536387 | R33: 4.85 | S33: 0 | T33: 0 | U33: 0 | V33: 4.8
A34: 27 | B34: 3.640379099 | C34: 3.625191932 | D34: 3.61388574 | R34: 4.95 | S34: 0 | T34: 0 | U34: 0 | V34: 4.9
A35: 28 | B35: 3.636517585 | C35: 3.610805935 | D35: 3.582072697 | R35: 5.05 | S35: 0 | T35: 0 | U35: 0 | V35: 5
A36: 29 | B36: 3.321250291 | C36: 3.51905801 | D36: 3.616193339 | R36: 5.15 | S36: 0 | T36: 0 | U36: 0 | V36: 5.1
A37: 30 | B37: 3.53296162 | C37: 3.503037471 | D37: 3.562507629 | R37: 5.25 | S37: 0 | T37: 0 | U37: 0 | V37: 5.2
A38: 31 | B38: 3.477111859 | C38: 3.602817348 | D38: 3.588924511 | R38: 5.35 | S38: 0 | T38: 0 | U38: 0 | V38: 5.3
A39: 32 | B39: 3.711556884 | C39: 3.571283207 | D39: 3.577599283 | R39: 5.45 | S39: 0 | T39: 0 | U39: 0 | V39: 5.4
A40: 33 | B40: 3.534197244 | C40: 3.535851413 | D40: 3.583725881 | R40: 5.55 | S40: 0 | T40: 0 | U40: 0 | V40: 5.5
A41: 34 | B41: 3.848812351 | C41: 3.647736835 | D41: 3.620247088
A42: 35 | B42: 3.492565797 | C42: 3.688465907 | D42: 3.641115174
A43: 36 | B43: 3.54238399 | C43: 3.645795237 | D43: 3.586882263
A44: 37 | B44: 3.451847244 | C44: 3.595498869 | D44: 3.629557824
A45: 38 | B45: 3.60081455 | C45: 3.480145127 | D45: 3.608030572
A46: 39 | B46: 3.653969074 | C46: 3.587930188 | D46: 3.617277116
A47: 40 | B47: 3.608673889 | C47: 3.555376328 | D47: 3.60199325
A48: 41 | B48: 3.750034223 | C48: 3.737227916 | D48: 3.634531821
A49: 42 | B49: 3.577185662 | C49: 3.55334262 | D49: 3.625225991
A50: 43 | B50: 3.47016879 | C50: 3.533142507 | D50: 3.625218293
A51: 44 | B51: 3.566533991 | C51: 3.704297577 | D51: 3.600165107
A52: 45 | B52: 3.442208635 | C52: 3.570274481 | D52: 3.541044138
A53: 46 | B53: 3.646062847 | C53: 3.655460718 | D53: 3.593515067
A54: 47 | B54: 3.549808199 | C54: 3.530700519 | D54: 3.607417586
A55: 48 | B55: 3.631727562 | C55: 3.692924252 | D55: 3.651951212
A56: 49 | B56: 3.265732527 | C56: 3.628731983 | D56: 3.568774082
A57: 50 | B57: 3.600374202 | C57: 3.585496926 | D57: 3.599508636
A58: 51 | B58: 3.778608959 | C58: 3.513861503 | D58: 3.590929026
A59: 52 | B59: 3.537515519 | C59: 3.584786144 | D59: 3.582743793
A60: 53 | B60: 3.748301335 | C60: 3.677512891 | D60: 3.612629547
A61: 54 | B61: 3.919764549 | C61: 3.724758569 | D61: 3.636299856
A62: 55 | B62: 3.447849693 | C62: 3.568852166 | D62: 3.614921754
A63: 56 | B63: 3.682507203 | C63: 3.672604199 | D63: 3.561671875
A64: 57 | B64: 3.827055982 | C64: 3.636782799 | D64: 3.607474511
A65: 58 | B65: 3.54211141 | C65: 3.549217872 | D65: 3.59860935
A66: 59 | B66: 3.816486746 | C66: 3.632888077 | D66: 3.580391947
A67: 60 | B67: 3.521970491 | C67: 3.6671353 | D67: 3.649530925
A68: 61 | B68: 3.574484522 | C68: 3.59226697 | D68: 3.623214466
A69: 62 | B69: 3.609208903 | C69: 3.627285684 | D69: 3.602380832
A70: 63 | B70: 3.79081912 | C70: 3.729117 | D70: 3.610691002
A71: 64 | B71: 3.631437682 | C71: 3.683561443 | D71: 3.606047276
A72: 65 | B72: 3.637049158 | C72: 3.583319854 | D72: 3.614138285
A73: 66 | B73: 3.641966852 | C73: 3.569449687 | D73: 3.612805942
A74: 67 | B74: 3.671620131 | C74: 3.707195073 | D74: 3.577533381
A75: 68 | B75: 3.681277176 | C75: 3.624413054 | D75: 3.633749623
A76: 69 | B76: 4.004357037 | C76: 3.676742082 | D76: 3.605694662
A77: 70 | B77: 3.423444683 | C77: 3.561597171 | D77: 3.584195563
A78: 71 | B78: 3.808872843 | C78: 3.542345502 | D78: 3.612375046
A79: 72 | B79: 3.57754715 | C79: 3.540951333 | D79: 3.592801304
A80: 73 | B80: 3.449106054 | C80: 3.446519068 | D80: 3.584726338
A81: 74 | B81: 3.589537734 | C81: 3.480413946 | D81: 3.553353582
A82: 75 | B82: 3.503721811 | C82: 3.56353441 | D82: 3.603612099
A83: 76 | B83: 3.853300813 | C83: 3.578871007 | D83: 3.600614979
A84: 77 | B84: 3.568922146 | C84: 3.641043808 | D84: 3.595651757
A85: 78 | B85: 3.582473281 | C85: 3.611460979 | D85: 3.575930273
A86: 79 | B86: 3.654090093 | C86: 3.697373774 | D86: 3.582487369
A87: 80 | B87: 3.546105462 | C87: 3.4758156 | D87: 3.59837273
A88: 81 | B88: 3.543507177 | C88: 3.588082548 | D88: 3.605993561
A89: 82 | B89: 3.557207042 | C89: 3.696498509 | D89: 3.617210847
A90: 83 | B90: 3.528932975 | C90: 3.579689763 | D90: 3.584201611
A91: 84 | B91: 3.49224625 | C91: 3.549745998 | D91: 3.608674152
A92: 85 | B92: 3.831027779 | C92: 3.65858033 | D92: 3.64139677
A93: 86 | B93: 3.589548619 | C93: 3.548586405 | D93: 3.631490216
A94: 87 | B94: 3.653752257 | C94: 3.574653402 | D94: 3.602333055
A95: 88 | B95: 3.364525733 | C95: 3.679611903 | D95: 3.603416127
A96: 89 | B96: 3.644046679 | C96: 3.554984786 | D96: 3.613765233
A97: 90 | B97: 3.245873976 | C97: 3.526725534 | D97: 3.60493299
A98: 91 | B98: 3.568840165 | C98: 3.444194678 | D98: 3.596483805
A99: 92 | B99: 3.428458492 | C99: 3.577089404 | D99: 3.615520379
A100: 93 | B100: 3.701279895 | C100: 3.562421099 | D100: 3.591739119
A101: 94 | B101: 3.84470653 | C101: 3.673920148 | D101: 3.621226669
A102: 95 | B102: 3.563549016 | C102: 3.497839864 | D102: 3.621315422
A103: 96 | B103: 3.678923946 | C103: 3.595405783 | D103: 3.565969534
A104: 97 | B104: 3.57855266 | C104: 3.717596713 | D104: 3.614332845
A105: 98 | B105: 3.245147256 | C105: 3.522985726 | D105: 3.644643186
A106: 99 | B106: 3.563942281 | C106: 3.625840051 | D106: 3.586402634
A107: 100 | B107: 3.59097387 | C107: 3.594375305 | D107: 3.586446937
A108: 101 | B108: 3.45962073 | C108: 3.500476744 | D108: 3.641155225
A109: 102 | B109: 3.870493893 | C109: 3.686999983 | D109: 3.651665438
A110: 103 | B110: 3.851497217 | C110: 3.526293761 | D110: 3.600835578
A111: 104 | B111: 3.559358176 | C111: 3.529178832 | D111: 3.590209106
A112: 105 | B112: 3.668572186 | C112: 3.587456746 | D112: 3.59091115
A113: 106 | B113: 3.657686586 | C113: 3.603442751 | D113: 3.617340867
A114: 107 | B114: 3.536934173 | C114: 3.56146142 | D114: 3.574353797
A115: 108 | B115: 3.38630073 | C115: 3.62301701 | D115: 3.591036341
A116: 109 | B116: 3.516661081 | C116: 3.641108631 | D116: 3.576560088
A117: 110 | B117: 3.756184317 | C117: 3.529756505 | D117: 3.597585708
A118: 111 | B118: 3.363962623 | C118: 3.495877847 | D118: 3.589540186
A119: 112 | B119: 3.510566453 | C119: 3.654587857 | D119: 3.610909746
A120: 113 | B120: 3.59093974 | C120: 3.591114275 | D120: 3.590610516
A121: 114 | B121: 3.533937705 | C121: 3.617573506 | D121: 3.636923223
A122: 115 | B122: 3.593556721 | C122: 3.621267187 | D122: 3.570654129
A123: 116 | B123: 3.521042409 | C123: 3.582792797 | D123: 3.576759486
A124: 117 | B124: 3.663132445 | C124: 3.748350386 | D124: 3.569204174
A125: 118 | B125: 3.783488409 | C125: 3.648250844 | D125: 3.597607255
A126: 119 | B126: 3.631963145 | C126: 3.604995916 | D126: 3.596144968
A127: 120 | B127: 3.443855243 | C127: 3.607771429 | D127: 3.591813406
A128: 121 | B128: 3.725461575 | C128: 3.555795209 | D128: 3.588766884
A129: 122 | B129: 3.469869162 | C129: 3.493176122 | D129: 3.6121753
A130: 123 | B130: 3.693557581 | C130: 3.784389178 | D130: 3.565840456
A131: 124 | B131: 3.479552627 | C131: 3.516371201 | D131: 3.603836821
A132: 125 | B132: 3.691100232 | C132: 3.666169089 | D132: 3.592453275
A133: 126 | B133: 3.705454113 | C133: 3.632979827 | D133: 3.589856766
A134: 127 | B134: 3.44717601 | C134: 3.557695714 | D134: 3.628382263
A135: 128 | B135: 3.651669254 | C135: 3.53474583 | D135: 3.570948409
A136: 129 | B136: 3.728145814 | C136: 3.623286452 | D136: 3.563783252
A137: 130 | B137: 3.908415031 | C137: 3.658752228 | D137: 3.620920466
A138: 131 | B138: 4.085014384 | C138: 3.648771993 | D138: 3.639672367
A139: 132 | B139: 3.73621702 | C139: 3.686453121 | D139: 3.626809851
A140: 133 | B140: 3.874593052 | C140: 3.652931831 | D140: 3.583797118
A141: 134 | B141: 3.540487001 | C141: 3.633243046 | D141: 3.613765484
A142: 135 | B142: 3.214567526 | C142: 3.517812011 | D142: 3.588935695
A143: 136 | B143: 3.485064061 | C143: 3.551317519 | D143: 3.591536413
A144: 137 | B144: 3.459826392 | C144: 3.549699455 | D144: 3.595209418
A145: 138 | B145: 3.428158137 | C145: 3.427561356 | D145: 3.600690011
A146: 139 | B146: 3.755179457 | C146: 3.745553936 | D146: 3.590219688
A147: 140 | B147: 3.688098464 | C147: 3.594977462 | D147: 3.6120362
A148: 141 | B148: 3.39188141 | C148: 3.537893368 | D148: 3.600793849
A149: 142 | B149: 3.702206868 | C149: 3.624512714 | D149: 3.613718239
A150: 143 | B150: 3.559886513 | C150: 3.596920255 | D150: 3.59521045
A151: 144 | B151: 3.722865714 | C151: 3.647554198 | D151: 3.598771264
A152: 145 | B152: 3.572565482 | C152: 3.638606155 | D152: 3.586403342
A153: 146 | B153: 3.429398135 | C153: 3.598742483 | D153: 3.612520786
A154: 147 | B154: 3.212712681 | C154: 3.665930084 | D154: 3.592083747
A155: 148 | B155: 3.504509527 | C155: 3.567113227 | D155: 3.569357246
A156: 149 | B156: 3.289409921 | C156: 3.490211321 | D156: 3.58268449
A157: 150 | B157: 3.261780932 | C157: 3.519470941 | D157: 3.601533324
A158: 151 | B158: 3.551796285 | C158: 3.62812203 | D158: 3.606420894
A159: 152 | B159: 3.526313289 | C159: 3.569079546 | D159: 3.589590798
A160: 153 | B160: 3.531661297 | C160: 3.684957241 | D160: 3.625564089
A161: 154 | B161: 3.649967596 | C161: 3.540515909 | D161: 3.630612121
A162: 155 | B162: 3.607291777 | C162: 3.659777894 | D162: 3.663721288
A163: 156 | B163: 3.873121039 | C163: 3.645322145 | D163: 3.596033239
A164: 157 | B164: 3.600129145 | C164: 3.591571506 | D164: 3.646878813
A165: 158 | B165: 3.418382776 | C165: 3.633480321 | D165: 3.59785905
A166: 159 | B166: 3.723425205 | C166: 3.685633994 | D166: 3.578424015
A167: 160 | B167: 3.70013083 | C167: 3.602659012 | D167: 3.565011217
A168: 161 | B168: 3.505763569 | C168: 3.591582086 | D168: 3.608263765
A169: 162 | B169: 3.55233082 | C169: 3.531745135 | D169: 3.591225167
A170: 163 | B170: 3.689848053 | C170: 3.5699663 | D170: 3.619013754
A171: 164 | B171: 3.65148083 | C171: 3.65734899 | D171: 3.624202803
A172: 165 | B172: 3.58083446 | C172: 3.474216082 | D172: 3.55915356
A173: 166 | B173: 3.615730623 | C173: 3.540259461 | D173: 3.614329415
A174: 167 | B174: 3.734862706 | C174: 3.611688166 | D174: 3.590287116
A175: 168 | B175: 3.579638825 | C175: 3.750685192 | D175: 3.655529021
A176: 169 | B176: 3.827684207 | C176: 3.664182162 | D176: 3.604566652
A177: 170 | B177: 3.603782419 | C177: 3.610005006 | D177: 3.573838243
A178: 171 | B178: 3.776857813 | C178: 3.780906649 | D178: 3.611194452
A179: 172 | B179: 3.575479515 | C179: 3.642883953 | D179: 3.564858255
A180: 173 | B180: 3.635489354 | C180: 3.594154383 | D180: 3.632677568
A181: 174 | B181: 3.729514841 | C181: 3.582458805 | D181: 3.589612733
A182: 175 | B182: 3.507508581 | C182: 3.696268471 | D182: 3.568128316
A183: 176 | B183: 3.512924953 | C183: 3.615507474 | D183: 3.62041848
A184: 177 | B184: 3.662062882 | C184: 3.515291867 | D184: 3.6114354
A185: 178 | B185: 3.366804615 | C185: 3.495305812 | D185: 3.597146947
A186: 179 | B186: 3.581407134 | C186: 3.674279363 | D186: 3.591265459
A187: 180 | B187: 3.772934009 | C187: 3.556830915 | D187: 3.616851632
A188: 181 | B188: 3.417677601 | C188: 3.485478435 | D188: 3.599113772
A189: 182 | B189: 3.689481593 | C189: 3.634931396 | D189: 3.603668222
A190: 183 | B190: 3.674084212 | C190: 3.526526825 | D190: 3.619105701
A191: 184 | B191: 3.596040743 | C191: 3.668185821 | D191: 3.611096779
A192: 185 | B192: 3.705561083 | C192: 3.587810366 | D192: 3.609658548
A193: 186 | B193: 3.459584074 | C193: 3.554681453 | D193: 3.588641953
A194: 187 | B194: 3.890977062 | C194: 3.70336225 | D194: 3.578303383
A195: 188 | B195: 3.69925568 | C195: 3.608487443 | D195: 3.599585432
A196: 189 | B196: 3.488847258 | C196: 3.604671126 | D196: 3.5880605
A197: 190 | B197: 3.692954549 | C197: 3.611506663 | D197: 3.612802072
A198: 191 | B198: 3.468241341 | C198: 3.697453817 | D198: 3.543300398
A199: 192 | B199: 3.559574957 | C199: 3.608208902 | D199: 3.602602971
A200: 193 | B200: 3.795702784 | C200: 3.623385521 | D200: 3.612361342
... 807 more rows
